Workbook

Sheet Nabídka
A1: Cenová nabídka | D1: email I telefon | H1: Červené písmo přepsat a změnit na černé
A2: Název společnosti
A3: Ulice a číslo popisné
A4: PSČ a Město
A5: IČO:
A6: DIČ:
A7: Akce: | G7: =IF(A7=0,"<--Zde vyplnit název akce","") -> 
A8: Označení dodávky | C8: množství | D8: mj | E8: cena mj. | F8: cena bez DPH
A9: Montáž/demontáž lešení | C9: =Rekapitulace!C8 -> 1593 | D9: m2 | E9: 0 | F9: =C9*E9 -> 0
A10: Pronájem lešení | C10: 21 | D10: den | E10: 0 | F10: =C10*E10 -> 0
A11: Doprava | C11: 440 | D11: km | E11: 0 | F11: =C11*E11 -> 0
A23: Celková nabídková cena je orientační. Finální fakturace probíhá v souladu s reálnými výměrami pohledové plochy lešení a počty dnů pronájmu. | E23: Celkem bez DPH | F23: =SUM(F9:F22) -> 0
E24: DPH 21% | F24: =F23*0.21 -> 0
E26: Celkem | F26: =F23+F24 -> 0
A28: Výpočet plochy lešení: Za pohledovou plochu lešení se považuje součin celkové výšky lešení, přičemž k výšce poslední podlahy je přičteno 2m, a celkové délky lešení včetně nároží.
A31: Výpočet doby pronájmu: Dobou pronájmu lešení se rozumí interval mezi předáním lešení (oboustraně potvrzený předávací protokol) a dnem demontáže. Při pronájmu přesahujícím poslední kalendářní den v měsící fakturujeme měsíčně. V ostatních případech po demontáži lešení.
A35: Dodatečné informace: V případě ztráty či poškození použitých komponent účtujeme katalogovou cenu materiálu. Fakturace montáže/demontáže probíhá vždy po dokončení. Doprava lešení je kalkulována za každý kilometr v závislosti na množství dopraveného materiálu, v okolí do 15 km je účtována paušálně. Manipulace s lešením je v rámci skladovacích prostor a do 30m na stavbě zahrnuta v ceně.
A40: V případě jakýchkoliv dotazů Vám rádi poskytneme další informace.

Sheet Půdorys
B1: Rozhraní pro náčrt půdorysu objektu | E1: Výkres: | Q1: Data grafu:
A2: - | B2: náčrt bude začínat z bodu [0;0] | V2: Výpočetní data:
B3: STĚNA | F3: LEŠENÍ | Q3: stěna | R3: bod X | S3: bod Y | W3: X | X3: Y | Y3: délka
A4: → | B4: název | C4: délka | D4: načrtnout jako... | E4: odkaz | F4: orientace | G4: vlevo | H4: vpravo | I4: Poznámky | Q4: počátek | R4: 0 | S4: 0 | V4: lešení A | W4: =IF($R$4=$R$5,$R$5+1,$R$4)-1 -> -1 | X4: =IF(S4=S5,S5-1,S5) -> -1 | Y4: =ABS(W5-W4) -> 21
A5: → | B5: A | C5: 20 | D5: vodorovná zleva doprava | E5: =B5 -> A | Q5: A | R5: =IF(D5=Data_podpora!$B$2,R4+Půdorys!C5,IF(Půdorys!D5=Data_podpora!$B$3,R4-Půdorys!C5,Půdorys!R4)) -> 20 | S5: =IF(D5=Data_podpora!$B$4,Půdorys!C5,IF(Půdorys!D5=Data_podpora!$B$5,-Půdorys!C5,Půdorys!S4)) -> 0 | W5: =IF($R$4=$R$5,$R$5+1,$R$5) -> 20 | X5: =IF(S4=S5,S5-1,S5) -> -1
A6: → | B6: =IF(C6>0,Q6,"") -> B | C6: 5 | D6: svislá shora dolu | E6: =B6 -> B | I6: 2m sestava | Q6: B | R6: =IF(D6=Data_podpora!$B$2,R4+Půdorys!C6,IF(Půdorys!D6=Data_podpora!$B$3,R4-Půdorys!C6,Půdorys!R5)) -> 20 | S6: =IF(D6=Data_podpora!$B$4,S5+Půdorys!C6,IF(Půdorys!D6=Data_podpora!$B$5,S5-Půdorys!C6,Půdorys!S5)) -> -5 | V6: lešení B | W6: =W7 -> 19 | X6: =$S$5-1 -> -1 | Y6: =ABS(X7-X6) -> 5
A7: → | B7: C | C7: 21.5 | D7: vodorovná zleva doprava | E7: =B7 -> C | Q7: C | R7: =IF(D7=Data_podpora!$B$2,R5+Půdorys!C7,IF(Půdorys!D7=Data_podpora!$B$3,R5-Půdorys!C7,Půdorys!R6)) -> 41.5 | S7: =IF(D7=Data_podpora!$B$4,S6+Půdorys!C7,IF(Půdorys!D7=Data_podpora!$B$5,S6-Půdorys!C7,Půdorys!S6)) -> -5 | W7: =IF(R5=R6,R6-1,R6) -> 19 | X7: =IF(S5=S6,S6-1,S6)-1 -> -6
A8: → | B8: D | C8: 16.4 | D8: svislá zdora nahoru | E8: D | Q8: D | R8: =IF(D8=Data_podpora!$B$2,R6+Půdorys!C8,IF(Půdorys!D8=Data_podpora!$B$3,R6-Půdorys!C8,Půdorys!R7)) -> 41.5 | S8: =IF(D8=Data_podpora!$B$4,S7+Půdorys!C8,IF(Půdorys!D8=Data_podpora!$B$5,S7-Půdorys!C8,Půdorys!S7)) -> 11.4 | V8: lešení C | W8: =$R$6 -> 20 | X8: =$X$9 -> -6 | Y8: =ABS(W9-W8) -> 22.5
A9: → | B9: E | C9: 21 | D9: vodorovná zprava doleva | E9: E | Q9: E | R9: =IF(D9=Data_podpora!$B$2,R7+Půdorys!C9,IF(Půdorys!D9=Data_podpora!$B$3,R7-Půdorys!C9,IF(C9=0,0,Půdorys!R8))) -> 20.5 | S9: =IF(D9=Data_podpora!$B$4,S8+Půdorys!C9,IF(Půdorys!D9=Data_podpora!$B$5,S8-Půdorys!C9,IF(C9=0,0,Půdorys!S8))) -> 11.4 | W9: =IF($R$6=$R$7,$R$7+1,$R$7)+1 -> 42.5 | X9: =IF(S6=S7,S7-1,S7) -> -6
A10: → | B10: F | C10: 2.25 | D10: svislá zdora nahoru | E10: F | Q10: F | R10: =IF(D10=Data_podpora!$B$2,R8+Půdorys!C10,IF(Půdorys!D10=Data_podpora!$B$3,R8-Půdorys!C10,IF(C10=0,0,Půdorys!R9))) -> 20.5 | S10: =IF(D10=Data_podpora!$B$4,S9+Půdorys!C10,IF(Půdorys!D10=Data_podpora!$B$5,S9-Půdorys!C10,IF(C10=0,0,Půdorys!S9))) -> 13.65 | V10: lešení D | W10: =$W$11 -> 42.5 | X10: =$S$7-1 -> -6 | Y10: =ABS(X11-X10) -> 18.4
A11: → | B11: G | C11: 20.5 | D11: vodorovná zprava doleva | E11: G | Q11: G | R11: =IF(D11=Data_podpora!$B$2,R9+Půdorys!C11,IF(Půdorys!D11=Data_podpora!$B$3,R9-Půdorys!C11,IF(C11=0,0,Půdorys!R10))) -> 0 | S11: =IF(D11=Data_podpora!$B$4,S10+Půdorys!C11,IF(Půdorys!D11=Data_podpora!$B$5,S10-Půdorys!C11,IF(C11=0,0,Půdorys!S10))) -> 13.65 | W11: =IF(R7=R8,R8+1,"") -> 42.5 | X11: =IF($S$7=$S$8,$S$8+1,$S$8)+1 -> 12.4
A12: → | B12: H | C12: 13.25 | D12: svislá shora dolu | E12: H | Q12: H | R12: =IF(D12=Data_podpora!$B$2,R10+Půdorys!C12,IF(Půdorys!D12=Data_podpora!$B$3,R10-Půdorys!C12,IF(C12=0,0,Půdorys!R11))) -> 0 | S12: =IF(D12=Data_podpora!$B$4,S11+Půdorys!C12,IF(Půdorys!D12=Data_podpora!$B$5,S11-Půdorys!C12,IF(C12=0,0,Půdorys!S11))) -> 0.4 | V12: lešení E | W12: =$R$8+1 -> 42.5 | X12: =$X$13 -> 12.4 | Y12: =ABS(W13-W12) -> 21
A13: → | Q13: I | R13: =IF(D13=Data_podpora!$B$2,R11+Půdorys!C13,IF(Půdorys!D13=Data_podpora!$B$3,R11-Půdorys!C13,IF(C13=0,0,Půdorys!R12))) -> 0 | S13: =IF(D13=Data_podpora!$B$4,S12+Půdorys!C13,IF(Půdorys!D13=Data_podpora!$B$5,S12-Půdorys!C13,IF(C13=0,0,Půdorys!S12))) -> 0 | W13: =IF($R$8=$R$9,$R$9+1,$R$9)+1 -> 21.5 | X13: =IF(S8=S9,S9+1,S9) -> 12.4
A14: → | Q14: J | R14: =IF(D14=Data_podpora!$B$2,R12+Půdorys!C14,IF(Půdorys!D14=Data_podpora!$B$3,R12-Půdorys!C14,IF(C14=0,0,Půdorys!R13))) -> 0 | S14: =IF(D14=Data_podpora!$B$4,S13+Půdorys!C14,IF(Půdorys!D14=Data_podpora!$B$5,S13-Půdorys!C14,IF(C14=0,0,Půdorys!S13))) -> 0 | V14: lešení F | W14: =$W$15 -> 21.5 | X14: =$S$9 -> 11.4 | Y14: =ABS(X15-X14) -> 3.25
B15: =IF(C15>0,U15,"") ->  | W15: =IF(R9=R10,R10+1,R10) -> 21.5 | X15: =IF($S$9=$S$10,$S$10+1,$S$10)+1 -> 14.65
B16: Obvod [m]: | C16: =SUM(C5:C12) -> 119.9 | D16: [m] | V16: lešení G | W16: =$R$10 -> 20.5 | X16: =$X$17 -> 14.65 | Y16: =ABS(W17-W16) -> 20.5
W17: =IF($R$10=$R$11,$R$11+1,$R$11) -> 0 | X17: =IF(S10=S11,S11+1,S11) -> 14.65
V18: lešení H | W18: =$W$19 -> -1 | X18: =$S$11+1 -> 14.65 | Y18: =ABS(X19-X18) -> 15.25
W19: =IF(R11=R12,R12-1,R12) -> -1 | X19: =IF($S$11=$S$12,$S$12+1,$S$12)-1 -> -0.6
V20: lešení I
V22: lešení J

Sheet stěna A
C1: Stěna A | D1: Výkres: | H1: Data grafu:
C2: Nastavení parametrů výpočtu: | I2: Tvar střechy | K2: Tvar terénu | M2: úhel alfa | V2: NAKLÁDACÍ LIST: | X2: =$C$1 -> Stěna A | Y2: =IF(AD6=0,"(BUDE NAKLÁDÁNO POUZE AUTO)","") ->  | AB2: VYTÍŽENOST ODVOZNÍHO PROSTŘEDKU:
C3: Terén: absolutní výška (±0,00 = svislice od hřebene střechy na terén) | I3: osa x | J3: osa y | K3: osa x | L3: osa y | M3: tg A | N3: =($D$14-$J$4)/($D$12/2) -> 0 | V3: obestavběná plocha lešení [m2] | Y3: =IF(K41>=1,SUM(I48,K48,M48,O48,Q48,S48,U48,W48,Y48,AA48)+SUM(I44,K44,M44,O44,Q44,S44,U44,W44,Y44,AA44)*2+SUM(I44,K44,M44,O44,Q44,S44,U44,W44,Y44,AA44),SUM(I48,K48,M48,O48,Q48,S48,U48,W48,Y48,AA48)+SUM(I44,K44,M44,O44,Q44,S44,U44,W44,Y44,AA44)*2) -> 252 | Z3: [m2] | AB3: [kg] | AC3: 1. cesta | AF3: 2.cesta
B4: → | C4: Výška terénu v levém rohu [m] | D4: 0 | E4: [m] | H4: vlevo | I4: 0 | J4: =IF($D$13=Data_podpora!$B$9,$D$14,$D$15+$D$4) -> 11.76 | K4: 0 | L4: =$D$4 -> 0 | M4: A | N4: =DEGREES(ATAN(N3)) -> 0 | V4: Komponenta | X4: počet kusů [ks] | Y4: jednotková hmotnost [kg/ks] | Z4: hmotnost [kg] | AC4: KAPACITA | AD4: VYUŽITO | AE4: ZBÝVÁ | AF4: KAPACITA | AG4: VYUŽITO | AH4: ZBÝVÁ
B5: → | C5: Výška terénu v pravém rohu [m] | D5: 0 | E5: [m] | H5: max | I5: =$D$9 -> 0 | J5: =IF($D$12/2<I5,-$N$3*I5+$J$4+$N$3*$D$12,$N$3*I5+$J$4) -> 11.76 | K5: =$D$9 -> 0 | L5: =$D$8 -> 0 | M5: tg A | N5: =TAN(RADIANS($N$4)) -> 0 | AB5: AUTO | AC5: 2500 | AD5: =IF(Z30<=AC5,SUM(Z6:Z29),SUM(Z6:Z9,Z26:Z29,Z15:Z23,Z13/2,Z14/2)) -> 1196.2 | AE5: =IF((AC5-AD5)<=0,0,AC5-AD5) -> 1303.8 | AF5: 2500 | AG5: =IF(AC5-AD5<=0,-(AC5-AD5),0) -> 0 | AH5: =AF5-AG5 -> 2500
B6: → | C6: Výška nejnižšího bodu terénu [m] | D6: 0 | E6: [m] | H6: min | I6: =$D$7 -> 0 | J6: =IF($D$12/2>I6,$N$3*I6+$J$4,-$N$3*I6+$J$4+$N$3*$D$12) -> 11.76 | K6: =$D$7 -> 0 | L6: =$D$6 -> 0 | M6: sklon | N6: =$N$5 -> 0 | V6: stavitelná patka 0,5m | X6: =IF(X7>0,(COUNT(I46:AB46)+2)-X7,(COUNT(I46:AB46)+2)) -> 16 | Y6: 3.1 | Z6: =Y7*X6 -> 75.2 | AB6: ZÁVĚS | AC6: 3500 | AD6: =IF(Z30<=AC5,0,SUM(Z10:Z12,Z24:Z25,Z13/2,Z14/2)) -> 1899.25 | AE6: =IF((AC6-AD6)<=0,0,AC6-AD6) -> 1600.75 | AF6: 3500 | AG6: =IF(AC6-AD6<=0,-(AC6-AD6),0) -> 0 | AH6: =AF6-AG6 -> 3500
B7: → | C7: Místo nejnižšího bodu (zleva) [m] | D7: 0 | E7: [m] | H7: top | I7: =$D$12/2 -> 10 | J7: =$D$14 -> 11.76 | K7: =$D$12/2 -> 10 | L7: =0 -> 0 | V7: stavitelná patka 1m | X7: 0 | Y7: 4.7 | Z7: =Y9*X7 -> 0
B8: → | C8: Výška nejvyššího bodu terénu [m] | D8: 0 | E8: [m] | H8: vpravo | I8: =$D$12 -> 20 | J8: =$J$4 -> 11.76 | K8: =$D$12 -> 20 | L8: =$D$5 -> 0 | V8: rám 2m | X8: =IF(X9>0,SUM(J46-I46,L46-K46,N46-M46,P46-O46,R46-Q46,T46-S46,V46-U46,X46-W46,Z46-Y46,AB46-AA46)+MIN(J46-I46,L46-K46,N46-M46,P46-O46,R46-Q46,T46-S46,V46-U46,X46-W46,Z46-Y46,AB46-AA46)+MAX(J46-I46,L46-K46,N46-M46,P46-O46,R46-Q46,T46-S46,V46-U46,X46-W46,Z46-Y46,AB46-AA46)-MIN(J46-I46,L46-K46,N46-M46,P46-O46,R46-Q46,T46-S46,V46-U46,X46-W46,Z46-Y46,AB46-AA46)-X9,SUM(J46-I46,L46-K46,N46-M46,P46-O46,R46-Q46,T46-S46,V46-U46,X46-W46,Z46-Y46,AB46-AA46)+MIN(J46-I46,L46-K46,N46-M46,P46-O46,R46-Q46,T46-S46,V46-U46,X46-W46,Z46-Y46,AB46-AA46)+MAX(J46-I46,L46-K46,N46-M46,P46-O46,R46-Q46,T46-S46,V46-U46,X46-W46,Z46-Y46,AB46-AA46)-MIN(J46-I46,L46-K46,N46-M46,P46-O46,R46-Q46,T46-S46,V46-U46,X46-W46,Z46-Y46,AB46-AA46)) -> 40 | Y8: 16.5 | Z8: =Y8*X8 -> 660
B9: → | C9: Místo nejvyššího bodu (zleva) [m] | D9: 0 | E9: [m] | V9: rám 1m | X9: 0 | Y9: 11.3 | Z9: 0
I10: Tvar střechy | K10: Tvar terénu | M10: úhel alfa | V10: podlaha 3m | X10: =((IF(I44=3,J46-I46,0)+IF(K44=3,L46-K46,0)+IF(M44=3,N46-M46,0)+IF(O44=3,P46-O46,0)+IF(Q44=3,R46-Q46,0)+IF(S44=3,T46-S46,0)+IF(U44=3,V46-U46,0)+IF(W44=3,X46-W46,0)+IF(Y44=3,Z46-Y46,0)+IF(AA44=3,AB46-AA46,0))-X12)*2 -> 60 | Y10: 22 | Z10: 1320
C11: Střecha: | I11: osa x | J11: osa y | K11: osa x | L11: osa y | M11: tg A | N11: =($D$14-$J$4)/($D$17) ->  | V11: podlaha 2m | X11: =(IF(I44=2,J46-I46,0)+IF(K44=2,L46-K46,0)+IF(M44=2,N46-M46,0)+IF(O44=2,P46-O46,0)+IF(Q44=2,R46-Q46,0)+IF(S44=2,T46-S46,0)+IF(U44=2,V46-U46,0)+IF(W44=2,X46-W46,0)+IF(Y44=2,Z46-Y46,0)+IF(AA44=2,AB46-AA46,0))*2 -> 0 | Y11: 14.5 | Z11: 0
C12: Délka strany [m] | D12: =Půdorys!$C$5 -> 20 | E12: [m] | H12: vlevo | I12: 0 | J12: =$D$15+$D$4 -> 11.76 | K12: 0 | L12: =$D$4 -> 0 | M12: A | N12: =DEGREES(ATAN(N11)) ->  | V12: průlezová podlaha 3m | X12: =MAX(J46:AB46) -> 5 | Y12: 28 | Z12: 140
B13: → | C13: Tvar střechy: | D13: sedlová | H13: max | I13: =$D$9 -> 0 | J13: =IF($I$17<I13,-$N$3*I13+$J$4+$N$11*$D$12,IF(I13<$I$14,$N$11*I13+$J$4,J14)) ->  | K13: =$D$9 -> 0 | L13: =$D$8 -> 0 | M13: tg A | N13: =TAN(RADIANS($N$12)) ->  | V13: zábradlí 3m | X13: =IF(I44=3,2*(J46-I46)+1,0)+IF(K44=3,2*(L46-K46)+1,0)+IF(M44=3,2*(N46-M46)+1,0)+IF(O44=3,2*(P46-O46)+1,0)+IF(Q44=3,2*(R46-Q46)+1,0)+IF(S44=3,2*(T46-S46)+1,0)+IF(U44=3,2*(V46-U46)+1,0)+IF(W44=3,2*(X46-W46)+1,0)+IF(Y44=3,2*(Z46-Y46)+1,0)+IF(AA44=3,2*(AB46-AA46)+1,0) -> 77 | Y13: 5.5 | Z13: 423.5
B14: → | C14: =IF('stěna A'!$D$13=Data_podpora!$B$9,"Výška stěny [m]","Výška uprostřed stěny [m]") -> Výška uprostřed stěny [m] | D14: =507.76-496 -> 11.76 | E14: [m] | H14: min | I14: =$D$7 -> 0 | J14: =IF($I$13>=I14,$N$11*I14+$J$4,IF(I14<=$I$16,J12,-$N$11*I14+$J$12+$N$11*$D$12)) ->  | K14: =$D$7 -> 0 | L14: =$D$6 -> 0 | M14: sklon | N14: =$N$13 ->  | V14: zábradlí 2m | X14: =IF(I44=2,2*(J46-I46)+1,0)+IF(K44=2,2*(L46-K46)+1,0)+IF(M44=2,2*(N46-M46)+1,0)+IF(O44=2,2*(P46-O46)+1,0)+IF(Q44=2,2*(R46-Q46)+1,0)+IF(S44=2,2*(T46-S46)+1,0)+IF(U44=2,2*(V46-U46)+1,0)+IF(W44=2,2*(X46-W46)+1,0)+IF(Y44=2,2*(Z46-Y46)+1,0)+IF(AA44=2,2*(AB46-AA46)+1,0) -> 0 | Y14: 3.5 | Z14: 0
B15: =IF($D$13=Data_podpora!B9,"","→") -> → | C15: =IF($D$13=Data_podpora!$B$9,"","Výška od terénu k okapu (levý) [m]") -> Výška od terénu k okapu (levý) [m] | D15: =507.76-496 -> 11.76 | E15: =IF($D$13=Data_podpora!$B$9,"","[m]") -> [m] | H15: polov1 | I15: =$D$17 -> 0 | J15: =$D$14 -> 11.76 | K15: =$D$17 -> 0 | L15: =$D$18 -> 0 | V15: diagonální úchyt | X15: =X16/MAX(I46:AB46) -> 2 | Y15: 0.5 | Z15: 1
C16: =IF(D13=Data_podpora!B10,"Upřesňující parametry pro polovalbovou střechu:","") ->  | H16: top | I16: =$D$12/2 -> 10 | J16: =$D$14 -> 11.76 | K16: =$D$12/2 -> 10 | L16: =0 -> 0 | V16: diagonála 3m | X16: =MAX(J46-I46,L46-K46,N46-M46,P46-O46,R46-Q46,T46-S46,V46-U46,X46-W46,Z46-Y46,AB46-AA46)*ROUNDUP((IF(I44=3,I44,0)+IF(K44=3,K44,0)+IF(M44=3,M44,0)+IF(O44=3,O44,0)+IF(Q44=3,Q44,0)+IF(S44=3,S44,0)+IF(U44=3,U44,0)+IF(W44=3,W44,0)+IF(Y44=3,Y44,0)+IF(AA44=3,AA44,0))/20,0) -> 10 | Y16: 11 | Z16: 110
B17: =IF($D$13=Data_podpora!$B$10,'stěna A'!$B$15,"") ->  | C17: =IF($D$13=Data_podpora!$B$10,"Vzdálenost polovalby zleva [m]","") ->  | E17: =IF($D$13=Data_podpora!$B$10,"[m]","") ->  | H17: polov2 | I17: =$D$12-$D$17 -> 20 | J17: =$D$14 -> 11.76 | K17: =$D$12-$D$17 -> 20 | L17: =$D$19 -> 0 | V17: diagonála 2m | X17: =IF(X16=0,MAX(J46-I46,L46-K46,N46-M46,P46-O46,R46-Q46,T46-S46,V46-U46,X46-W46,Z46-Y46,AB46-AA46)*ROUNDUP((IF(I44=2,I44,0)+IF(K44=2,K44,0)+IF(M44=2,M44,0)+IF(O44=2,O44,0)+IF(Q44=2,Q44,0)+IF(S44=2,S44,0)+IF(U44=2,U44,0)+IF(W44=2,W44,0)+IF(Y44=2,Y44,0)+IF(AA44=2,AA44,0))/12,0),0) -> 0 | Y17: 8 | Z17: 0
B18: =IF($D$13=Data_podpora!$B$10,'stěna A'!$B$15,"") ->  | C18: =IF($D$13=Data_podpora!$B$10,"Výška terénu v místě levé polovalby [m]","") ->  | E18: =IF($D$13=Data_podpora!$B$10,"[m]","") ->  | H18: vpravo | I18: =$D$12 -> 20 | J18: =$J$4 -> 11.76 | K18: =$D$12 -> 20 | L18: =$D$5 -> 0 | V18: kotva 0,5 m | X18: =IF(X19=0,ROUNDUP(X8*0.45,0),ROUNDUP(X8*0.45,0)-X19) -> 18 | Y18: 2 | Z18: 36
B19: =IF($D$13=Data_podpora!$B$10,'stěna A'!$B$15,"") ->  | C19: =IF($D$13=Data_podpora!$B$10,"Výška terénu v místě pravé polovalby [m]","") ->  | E19: =IF($D$13=Data_podpora!$B$10,"[m]","") ->  | V19: kotva dlouhá 1 m | X19: 0 | Y19: 3.8 | Z19: 0
H20: Patra lešení | V20: eLko / sloupek | X20: =IF(X22=0,COUNT(J46,L46,N46,P46,R46,T46,V46,X46,Z46,AB46)+1,(COUNT(J46,L46,N46,P46,R46,T46,V46,X46,Z46,AB46)+1)-X22) -> 8 | Y20: 5 | Z20: 40
V21: eLko 2 m | Y21: 11.5 | Z21: 0
B22: =IF($D$21=Data_podpora!B30,"→","") ->  | C22: =IF(D21=Data_podpora!B30,"Vzdálenost od levého rohu [m]","") ->  | E22: =IF(D21=Data_podpora!B30,"[m]","") ->  | H22: -0,5 | I22: =I26-1 -> -0.6 | J22: =J26-1 -> -0.6 | K22: =K26-1 -> -0.6 | L22: =L26-1 -> -0.6 | M22: =M26-1 -> -0.6 | V22: Háčko | X22: =2*(MAX(I46:AB46)-MIN(J46,L46,N46,P46,R46,T46,V46,X46,Z46,AB46)) -> 0 | Y22: 9.7 | Z22: 0
B23: =IF($D$21=Data_podpora!$B$30,"→","") ->  | C23: =IF(D21=Data_podpora!B30,"Výška od terénu (zleva) [m]","") ->  | E23: =IF(D21=Data_podpora!B30,"[m]","") ->  | H23: -3 | I23: =I24-2 -> -5.6 | J23: -5.9 | K23: -5.9 | L23: -5.9 | M23: -5.9 | V23: boční zábradlí | X23: =IF(X22=0,(MAX(J46-I46,L46-K46,N46-M46,P46-O46,R46-Q46,T46-S46,V46-U46,X46-W46,Z46-Y46,AB46-AA46)+1)*2,(MAX(J46-I46,L46-K46,N46-M46,P46-O46,R46-Q46,T46-S46,V46-U46,X46-W46,Z46-Y46,AB46-AA46)+1)*2-X22) -> 12 | Y23: 3 | Z23: 36
B24: =IF($D$21=Data_podpora!$B$30,"→","") ->  | C24: =IF(D21=Data_podpora!B30,"Šířka [m]","") ->  | E24: =IF(D21=Data_podpora!B30,"[m]","") ->  | H24: -2 | I24: -3.6 | J24: -3.9 | K24: -3.9 | L24: -3.9 | M24: -3.9 | V24: okopové prkno 3m | X24: =IF(I44=3,J46-I46,0)+IF(K44=3,L46-K46,0)+IF(M44=3,N46-M46,0)+IF(O44=3,P46-O46,0)+IF(Q44=3,R46-Q46,0)+IF(S44=3,T46-S46,0)+IF(U44=3,V46-U46,0)+IF(W44=3,X46-W46,0)+IF(Y44=3,Z46-Y46,0)+IF(AA44=3,AB46-AA46,0) -> 35 | Y24: 6.5 | Z24: 227.5
H25: -1 | I25: =I26-2 -> -1.6 | J25: =$D$85-2 -> -1.9 | K25: =$D$85-2 -> -1.9 | L25: =$D$85-2 -> -1.9 | M25: =$D$85-2 -> -1.9 | V25: okopové prkno 2m | X25: =IF(I44=2,J46-I46,0)+IF(K44=2,L46-K46,0)+IF(M44=2,N46-M46,0)+IF(O44=2,P46-O46,0)+IF(Q44=2,R46-Q46,0)+IF(S44=2,T46-S46,0)+IF(U44=2,V46-U46,0)+IF(W44=2,X46-W46,0)+IF(Y44=2,Z46-Y46,0)+IF(AA44=2,AB46-AA46,0) -> 0 | Y25: 4.5 | Z25: 0
H26: 0 | I26: =$K$41 -> 0.4 | J26: =$K$41 -> 0.4 | K26: =$K$41 -> 0.4 | L26: =$K$41 -> 0.4 | M26: =$K$41 -> 0.4 | V26: konzola | Y26: 10 | Z26: 0
H27: 1 | I27: =I26+$D$86 -> 2.4 | J27: =J26+$D$86 -> 2.4 | K27: =K26+$D$86 -> 2.4 | L27: =L26+$D$86 -> 2.4 | M27: =M26+$D$86 -> 2.4 | V27: pevna spojka | X27: =J46*2 -> 10 | Y27: 1.15 | Z27: 11.5
H28: 2 | I28: 4.4 | J28: 4.4 | K28: 4.4 | L28: 4.4 | M28: 4.4 | V28: otočná spojka | X28: =J46 -> 5 | Y28: 1.35 | Z28: 6.75
H29: 3 | I29: 6.4 | J29: 6.4 | K29: 6.4 | L29: 6.4 | M29: 6.4 | V29: závlačná spojka | X29: =J46*2 -> 10 | Y29: 0.8 | Z29: 8
H30: 4 | I30: 8.4 | J30: 8.4 | K30: 8.4 | L30: 8.4 | M30: 8.4 | V30: CELKOVÁ HMOTNOST [kg] | Z30: =SUM(Z6:Z29) -> 3095.45
H31: 5 | I31: 10.4 | J31: 10.4 | K31: 10.4 | L31: 10.4 | M31: 10.4
H32: 6 | I32: 12.4 | J32: 12.4 | K32: 12.4 | L32: 12.4 | M32: 12.4
H33: 7 | I33: 14.4 | J33: 14.4 | K33: 14.4 | L33: 14.4 | M33: 14.4
H34: 8 | I34: 16.4 | J34: 16.4 | K34: 16.4 | L34: 16.4 | M34: 16.4
H35: 9 | I35: 18.4 | J35: 18.4 | K35: 18.4 | L35: 18.4 | M35: 18.4
H36: 10 | I36: 20.4 | J36: 20.4 | K36: 20.4 | L36: 20.4 | M36: 20.4
H37: 11 | I37: 22.4 | J37: 22.4 | K37: 22.4 | L37: 22.4 | M37: 22.4
H38: 12 | I38: 24.4 | J38: 24.4 | K38: 24.4 | L38: 24.4 | M38: 24.4
H39: 13 | I39: 26.4 | J39: 26.4 | K39: 26.4 | L39: 26.4 | M39: 26.4
H41: LEŠENÍ | I41: výška založení [m] | K41: 0.4 | L41: [m] | M41: nepsat nuly v kolonce "patro",pokud není sestava lešení využita | S41: Poznámka: | T41: =IF(Půdorys!I5=0,"",Půdorys!I5) -> 
I42: ZALOŽENÍ | J42: VÝŠKA P.P. | K42: ZALOŽENÍ | L42: VÝŠKA P.P. | M42: ZALOŽENÍ | N42: VÝŠKA P.P. | O42: ZALOŽENÍ | P42: VÝŠKA P.P. | Q42: ZALOŽENÍ | R42: VÝŠKA P.P. | S42: ZALOŽENÍ | T42: VÝŠKA P.P. | U42: ZALOŽENÍ | V42: VÝŠKA P.P. | W42: ZALOŽENÍ | X42: VÝŠKA P.P. | Y42: ZALOŽENÍ | Z42: VÝŠKA P.P. | AA42: ZALOŽENÍ | AB42: VÝŠKA P.P.
H43: SESTAVA | I43: 1 | K43: 2 | M43: 3 | O43: 4 | Q43: 5 | S43: 6 | U43: 7 | W43: 8 | Y43: 9 | AA43: 10
H44: DÉLKA SESTAVY | I44: 3 | K44: 3 | M44: 3 | O44: 3 | Q44: 3 | S44: 3 | U44: 3 | W44: 0 | Y44: 0 | AA44: 0
H45: "potvrdit"
H46: PATRO | I46: 0 | J46: 5 | K46: 0 | L46: 5 | M46: 0 | N46: 5 | O46: 0 | P46: 5 | Q46: 0 | R46: 5 | S46: 0 | T46: 5 | U46: 0 | V46: 5
H47: POSUN
H48: plocha [m2] | I48: =(J46-I46)*$D$86*I44 -> 30 | K48: =L46*$D$86*K44 -> 30 | M48: =N46*$D$86*M44 -> 30 | O48: =P46*$D$86*O44 -> 30 | Q48: =R46*$D$86*Q44 -> 30 | S48: =T46*$D$86*S44 -> 30 | U48: =V46*$D$86*U44 -> 30 | W48: =X46*$D$86*W44 -> 0 | Y48: =Z46*$D$86*Y44 -> 0 | AA48: =AB46*$D$86*AA44 -> 0
H49: výška | I49: =IF(I46=-0.5,M22,INDEX($M$23:$M$39,I46+4)) -> 0.4 | J49: =INDEX($M$23:$M$39,J46+4) -> 10.4 | K49: =IF(K46=-0.5,M22,INDEX($M$23:$M$39,K46+4)) -> 0.4 | L49: =INDEX($M$23:$M$39,L46+4) -> 10.4 | M49: =IF(M46=-0.5,M22,INDEX($M$23:$M$39,M46+4)) -> 0.4 | N49: =INDEX($M$23:$M$39,N46+4) -> 10.4 | O49: =IF(O46=-0.5,M22,INDEX($M$23:$M$39,O46+4)) -> 0.4 | P49: =INDEX($M$23:$M$39,P46+4) -> 10.4 | Q49: =IF(Q46=-0.5,M22,INDEX($M$23:$M$39,Q46+4)) -> 0.4 | R49: =INDEX($M$23:$M$39,R46+4) -> 10.4 | S49: =IF(S46=-0.5,M22,INDEX($M$23:$M$39,S46+4)) -> 0.4 | T49: =INDEX($M$23:$M$39,T46+4) -> 10.4 | U49: =IF(U46=-0.5,M22,INDEX($M$23:$M$39,U46+4)) -> 0.4 | V49: =INDEX($M$23:$M$39,V46+4) -> 10.4 | W49: =IF(W46=-0.5,M22,INDEX($M$23:$M$39,W46+4)) -> 0.4 | X49: =INDEX($M$23:$M$39,X46+4) -> 0.4 | Y49: =IF(Y46=-0.5,M22,INDEX($M$23:$M$39,Y46+4)) -> 0.4 | Z49: =INDEX($M$23:$M$39,Z46+4) -> 0.4 | AA49: =IF(AA46=-0.5,M22,INDEX($M$23:$M$39,AA46+4)) -> 0.4 | AB49: =INDEX($M$23:$M$39,AB46+4) -> 0.4
H55: -1 | I55: =$I$49 -> 0.4 | J55: =$J$49 -> 10.4
H56: 0 | I56: =$I$49 -> 0.4 | J56: =$J$49 -> 10.4
H57: 1 | I57: =$I$49 -> 0.4 | J57: =$J$49 -> 10.4
H58: 2 | I58: =$I$49 -> 0.4 | J58: =$J$49 -> 10.4 | K58: =$K$49 -> 0.4 | L58: =$L$49 -> 10.4
H59: 3 | K59: =$K$49 -> 0.4 | L59: =$L$49 -> 10.4
H60: 4 | K60: =$K$49 -> 0.4 | L60: =$L$49 -> 10.4
H61: 5 | K61: =$K$49 -> 0.4 | L61: =$L$49 -> 10.4 | M61: =$M$49 -> 0.4 | N61: =$N$49 -> 10.4
H62: 6 | M62: =$M$49 -> 0.4 | N62: =$N$49 -> 10.4
H63: 7 | M63: =$M$49 -> 0.4 | N63: =$N$49 -> 10.4
H64: 8 | M64: =$M$49 -> 0.4 | N64: =$N$49 -> 10.4 | O64: =$O$49 -> 0.4 | P64: =$P$49 -> 10.4
H65: 9 | O65: =$O$49 -> 0.4 | P65: =$P$49 -> 10.4
H66: 10 | O66: =$O$49 -> 0.4 | P66: =$P$49 -> 10.4
H67: 11 | O67: =$O$49 -> 0.4 | P67: =$P$49 -> 10.4 | Q67: =$Q$49 -> 0.4 | R67: =$R$49 -> 10.4
H68: 12 | Q68: =$Q$49 -> 0.4 | R68: =$R$49 -> 10.4
C69: Pomocný výpočet počtu sestav lešení: | H69: 13 | Q69: =$Q$49 -> 0.4 | R69: =$R$49 -> 10.4
C70: Délka: | H70: 14 | Q70: =$Q$49 -> 0.4 | R70: =$R$49 -> 10.4 | S70: =$S$49 -> 0.4 | T70: =$T$49 -> 10.4
C71: přesah za roh objektu: | D71: Ne | H71: 15 | S71: =$S$49 -> 0.4 | T71: =$T$49 -> 10.4
C72: Požadovaná minimální délka lešení [m] | D72: =IF(D71=Data_podpora!B17,'stěna A'!D12+2,IF('stěna A'!D71=Data_podpora!B14,'stěna A'!D12+0.5,IF(D71=Data_podpora!B13,'stěna A'!D12,'stěna A'!D12+1))) -> 20 | E72: [m] | H72: 16 | S72: =$S$49 -> 0.4 | T72: =$T$49 -> 10.4
C73: Počet sestav lešení (3m) [-] | D73: =ROUNDDOWN(D72/E73,0) -> 6 | E73: 3 | F73: =D73*E73 -> 18 | G73: [m] | H73: 17 | S73: =$S$49 -> 0.4 | T73: =$T$49 -> 10.4 | U73: =$U$49 -> 0.4 | V73: =$V$49 -> 10.4
C74: Počet sestav lešení (2m) [-] | D74: =ROUNDDOWN(MOD(D72,E73)/E74,0) -> 1 | E74: 2 | F74: =D74*E74 -> 2 | G74: [m] | H74: 18 | U74: =$U$49 -> 0.4 | V74: =$V$49 -> 10.4
C75: Počet sestav lešení (0,75m) [-] | D75: =ROUNDUP(D72-(D73*E73+D74*E74),0) -> 0 | E75: 0,75 | F75: =D75*E75 -> 0 | G75: [m] | H75: 19 | U75: =$U$49 -> 0.4 | V75: =$V$49 -> 10.4
C76: Reálná délka lešení [m] | D76: =D73*E73+D74*E74+D75*E75 -> 20 | E76: [m] | H76: 20 | U76: =$U$49 -> 0.4 | V76: =$V$49 -> 10.4
H77: 21 | W77: =$W$49 -> 0.4 | X77: =$X$49 -> 0.4
C78: Výška: | H78: 22 | W78: =$W$49 -> 0.4 | X78: =X77 -> 0.4
C79: Lešení pro: | D79: Fasádu | H79: 23 | W79: =$W$49 -> 0.4 | X79: =X78 -> 0.4
C80: Výška zábradlí posledního patra [m] | D80: 1 | E80: [m] | H80: 24 | W80: =$W$49 -> 0.4 | X80: =X79 -> 0.4 | Y80: =$Y$49 -> 0.4 | Z80: =$Z$49 -> 0.4
C81: Požadovaná výška [m] | D81: =IF(D79=Data_podpora!B22,'stěna A'!D14+D80,'stěna A'!D14) -> 11.76 | E81: [m] | H81: 25 | Y81: =$Y$49 -> 0.4 | Z81: =Z80 -> 0.4
A82: Založení | C82: Výška nejnižžšího bodu terénu [m] | D82: =MIN(D4,D5,D6,D8) -> 0 | E82: [m] | H82: 26 | Y82: =$Y$49 -> 0.4 | Z82: =Z81 -> 0.4
C83: Výška nejvyššího bodu terénu [m] | D83: =D8 -> 0 | E83: [m] | H83: 27 | Y83: =$Y$49 -> 0.4 | Z83: =Z82 -> 0.4 | AA83: =$AA$49 -> 0.4 | AB83: =$AB$49 -> 0.4
C84: Rozdíl max a min [m] | D84: =D83-D82 -> 0 | E84: [m] | F84: =IF(D84<0.4,"(Patky 0,4m)",IF(D84<=1,"(Patky 1m)",IF(2>=D84>1,"(Rám 1m)",IF(5>D84>2,"(Rám 2m)","")))) -> (Patky 0,4m) | H84: 28 | AA84: =$AA$49 -> 0.4 | AB84: =AB83 -> 0.4
B85: # | C85: Výška založení [m] | D85: =D8+0.1 -> 0.1 | E85: [m] | H85: 29 | AA85: =$AA$49 -> 0.4 | AB85: =AB84 -> 0.4
C86: Modulová výška patra lešení [m] | D86: 2 | E86: [m] | H86: 30 | AA86: =$AA$49 -> 0.4 | AB86: =AB85 -> 0.4
C87: Počet pater lešení [-]; výška [m]) | D87: =IF(D81-D85<11,ROUNDDOWN((D81-D85)/2.15,0),ROUNDDOWN((D81-D85)/2.1,0)) -> 5 | E87: pater | F87: =INDEX(M27:M39,D87) -> 10.4 | G87: [m] | H87: 31
C88: Reálná výška lešení [m] | D88: =D87*D86+D85+D80 -> 11.1 | E88: [m]
A90: Uskočení pater | B90: → | C90: Hranice posouzení uskočení | D90: 4 | F90: =INDEX(M27:M39,D90) -> 8.4 | G90: [m]
C91: Zbývající výška do hřebene | D91: =$D$14-F90 -> 3.36 | E91: [m]
C92: Počet uskočených pater | D92: =IF(D91<11,ROUNDDOWN((D91)/2.6,0),ROUNDDOWN((D91)/2.6,0)) -> 1 | E92: =IF(D92=1,"patro",IF(D92<=4,"patra","pater")) -> patro
C93: Rozdíl výšky okapu a nejbližšího patra | D93: =$J$4-(INDEX(M27:M39,D90)) -> 3.36 | E93: [m]
C94: Rozdíl výšek na 3 m sestavu | D94: =$N$5*$E$73 -> 0 | E94: [m]
B95: =IF($D$92>=1,1,"") -> 1 | C95: První sestava | D95: =D93+D94 -> 3.36 | E95: [m] | F95: =IF(D$95<=2,"posoudit další",IF(D$95<=3.2,"ponechat","pokračuje patrem")) -> pokračuje patrem
B96: =IF(1<=$D$92,2,"X") -> 2 | C96: Druhá sestava | D96: =IF(F95="ponechat",$D$93+$D$94*B96,$D$93+$D$94*B96-2) -> 1.36 | E96: [m] | F96: =IF(D96<2,"posoudit další",IF(D96<=3.2,"ponechat",IF(D96>3.2,"pokračuje patrem",""))) -> posoudit další
B97: =IF(2<=$D$92,3,"X") -> X | C97: Třetí sestava | D97: =IF(F96="ponechat",$D$93+$D$94*B97,$D$93+$D$94*B97-2) ->  | E97: [m] | F97: =IF(D97<2,"posoudit další",IF(D97<=3.2,"ponechat",IF(D97>3.2,"pokračuje patrem",""))) -> 
B98: =IF(3<=$D$92,4,"X") -> X | C98: Čtvrtá sestava | D98: =IF(F97="ponechat",$D$93+$D$94*B98,$D$93+$D$94*B98-2) ->  | E98: [m] | F98: =IF(D98<2,"posoudit další",IF(D98<=3.2,"ponechat",IF(D98>3.2,"pokračuje patrem",""))) -> 
C103: NAKLÁDACÍ LIST
C105: stavitelná patka 0,5m | D105: počet kusů
C106: stavitelná patka 1m | D106: =IF(D107>=0,($D$73+$D$74+$D$75)*2+2-D107,($D$73+$D$74+$D$75)*2+2) -> 14
C107: rám 2m | D107: 2
C108: rám 1m | D108: =(($D$73+$D$74+$D$75)+1)*$D$87 -> 40
C109: podlaha 3m | D109: =IF(D85>=1,($D$73+$D$74+$D$75)+1,0) -> 0
C110: podlaha 2m | D110: =(D73*D87-$D112)*2 -> 50
C111: průlezová podlaha 3m | D111: =D74*D87 -> 5
C112: zábradlí 3m | D112: =D87 -> 5
C113: zábradlí 2m | D113: =(1+$D$87*2)*D73 -> 66
C114: diagonální úchyt | D114: =(1+$D$87*2)*D74 -> 11
C115: diagonála 3m
C116: diagonála 2m | D116: =$D$87*(ROUNDUP((D73+D74+D75)/4,0)) -> 10
C117: kotva 0,5 m | D117: =IF(D116=0,$D$87*ROUNDUP(D74/4,0),0) -> 0
C118: kotva dlouhá 1 m | D118: =(($D$87-1)*SUM(D73:D75))/2 -> 14
C119: eLko / sloupek
C120: eLko 2 m | D120: =SUM(D73:D75)+1 -> 8
C121: Háčko
C122: boční zábradlí
C123: okopové prkno 3m | D123: =D87*2 -> 10
C124: okopové prkno 2m | D124: =D73*D87 -> 30
C125: konzola | D125: =D74*D87 -> 5
C126: pevna spojka
C127: otočná spojka
C128: závlačná spojka

Sheet stěna B
C1: Stěna B | D1: Výkres: | H1: Data grafu:
C2: Nastavení parametrů výpočtu: | I2: Tvar střechy | K2: Tvar terénu | M2: úhel alfa | V2: NAKLÁDACÍ LIST: | X2: =$C$1 -> Stěna B | Y2: =IF(AD6=0,"(BUDE NAKLÁDÁNO POUZE AUTO)","") -> (BUDE NAKLÁDÁNO POUZE AUTO) | AB2: VYTÍŽENOST ODVOZNÍHO PROSTŘEDKU:
C3: Terén: absolutní výška (±0,00 = svislice od hřebene střechy na terén) | I3: osa x | J3: osa y | K3: osa x | L3: osa y | M3: tg A | N3: =($D$14-$J$4)/($D$12/2) -> 0 | V3: obestavběná plocha lešení [m2] | Y3: =IF(K41>=1,SUM(I48,K48,M48,O48,Q48,S48,U48,W48,Y48,AA48)+SUM(I44,K44,M44,O44,Q44,S44,U44,W44,Y44,AA44)*2+SUM(I44,K44,M44,O44,Q44,S44,U44,W44,Y44,AA44),SUM(I48,K48,M48,O48,Q48,S48,U48,W48,Y48,AA48)+SUM(I44,K44,M44,O44,Q44,S44,U44,W44,Y44,AA44)*2) -> 60 | Z3: [m2] | AB3: [kg] | AC3: 1. cesta | AF3: 2.cesta
B4: → | C4: Výška terénu v levém rohu [m] | D4: 0 | E4: [m] | H4: vlevo | I4: 0 | J4: =IF($D$13=Data_podpora!$B$9,$D$14,$D$15+$D$4) -> 11.76 | K4: 0 | L4: =$D$4 -> 0 | M4: A | N4: =DEGREES(ATAN(N3)) -> 0 | V4: Komponenta | X4: počet kusů [ks] | Y4: jednotková hmotnost [kg/ks] | Z4: hmotnost [kg] | AC4: KAPACITA | AD4: VYUŽITO | AE4: Zbývá | AF4: KAPACITA | AG4: VYUŽITO | AH4: ZBÝVÁ
B5: → | C5: Výška terénu v pravém rohu [m] | D5: 0 | E5: [m] | H5: max | I5: =$D$9 -> 0 | J5: =IF($D$12/2<I5,-$N$3*I5+$J$4+$N$3*$D$12,$N$3*I5+$J$4) -> 11.76 | K5: =$D$9 -> 0 | L5: =$D$8 -> 0 | M5: tg A | N5: =TAN(RADIANS($N$4)) -> 0 | AB5: AUTO | AC5: 2500 | AD5: =IF(Z30<=AC5,SUM(Z6:Z29),SUM(Z6:Z9,Z26:Z29,Z15:Z23,Z13/2,Z14/2)) -> 941.45 | AE5: =IF((AC5-AD5)<=0,0,AC5-AD5) -> 1558.55 | AF5: 2500 | AG5: =IF(AC5-AD5<=0,-(AC5-AD5),0) -> 0 | AH5: =AF5-AG5 -> 2500
B6: → | C6: Výška nejnižšího bodu terénu [m] | D6: 0 | E6: [m] | H6: min | I6: =$D$7 -> 0 | J6: =IF($D$12/2>I6,$N$3*I6+$J$4,-$N$3*I6+$J$4+$N$3*$D$12) -> 11.76 | K6: =$D$7 -> 0 | L6: =$D$6 -> 0 | M6: sklon | N6: =$N$5 -> 0 | V6: stavitelná patka 0,5m | X6: =IF(X7>0,(COUNT(I46:AB46)+2)-X7,(COUNT(I46:AB46)+2)) -> 6 | Y6: 3.1 | Z6: =Y7*X6 -> 28.2 | AB6: ZÁVĚS | AC6: 3500 | AD6: =IF(Z30<=AC5,0,SUM(Z10:Z12,Z24:Z25,Z13/2,Z14/2)) -> 0 | AE6: =IF((AC6-AD6)<=0,0,AC6-AD6) -> 3500 | AF6: 3500 | AG6: =IF(AC6-AD6<=0,-(AC6-AD6),0) -> 0 | AH6: =AF6-AG6 -> 3500
B7: → | C7: Místo nejnižšího bodu (zleva) [m] | D7: 0 | E7: [m] | H7: top | I7: =$D$12/2 -> 2.5 | J7: =$D$14 -> 11.76 | K7: =$D$12/2 -> 2.5 | L7: =0 -> 0 | V7: stavitelná patka 1m | X7: 0 | Y7: 4.7 | Z7: =Y9*X7 -> 0
B8: → | C8: Výška nejvyššího bodu terénu [m] | D8: 0 | E8: [m] | H8: vpravo | I8: =$D$12 -> 5 | J8: =$J$4 -> 11.76 | K8: =$D$12 -> 5 | L8: =$D$5 -> 0 | V8: rám 2m | X8: =IF(X9>0,SUM(J46-I46,L46-K46,N46-M46,P46-O46,R46-Q46,T46-S46,V46-U46,X46-W46,Z46-Y46,AB46-AA46)+MIN(J46-I46,L46-K46,N46-M46,P46-O46,R46-Q46,T46-S46,V46-U46,X46-W46,Z46-Y46,AB46-AA46)+MAX(J46-I46,L46-K46,N46-M46,P46-O46,R46-Q46,T46-S46,V46-U46,X46-W46,Z46-Y46,AB46-AA46)-MIN(J46-I46,L46-K46,N46-M46,P46-O46,R46-Q46,T46-S46,V46-U46,X46-W46,Z46-Y46,AB46-AA46)-X9,SUM(J46-I46,L46-K46,N46-M46,P46-O46,R46-Q46,T46-S46,V46-U46,X46-W46,Z46-Y46,AB46-AA46)+MIN(J46-I46,L46-K46,N46-M46,P46-O46,R46-Q46,T46-S46,V46-U46,X46-W46,Z46-Y46,AB46-AA46)+MAX(J46-I46,L46-K46,N46-M46,P46-O46,R46-Q46,T46-S46,V46-U46,X46-W46,Z46-Y46,AB46-AA46)-MIN(J46-I46,L46-K46,N46-M46,P46-O46,R46-Q46,T46-S46,V46-U46,X46-W46,Z46-Y46,AB46-AA46)) -> 15 | Y8: 16.5 | Z8: =Y8*X8 -> 247.5
B9: → | C9: Místo nejvyššího bodu (zleva) [m] | D9: 0 | E9: [m] | V9: rám 1m | X9: 0 | Y9: 11.3 | Z9: 0
I10: Tvar střechy | K10: Tvar terénu | M10: úhel alfa | V10: podlaha 3m | X10: =((IF(I44=3,J46-I46,0)+IF(K44=3,L46-K46,0)+IF(M44=3,N46-M46,0)+IF(O44=3,P46-O46,0)+IF(Q44=3,R46-Q46,0)+IF(S44=3,T46-S46,0)+IF(U44=3,V46-U46,0)+IF(W44=3,X46-W46,0)+IF(Y44=3,Z46-Y46,0)+IF(AA44=3,AB46-AA46,0))-X12)*2 -> 10 | Y10: 22 | Z10: 220
C11: Střecha: | I11: osa x | J11: osa y | K11: osa x | L11: osa y | M11: tg A | N11: =($D$14-$J$4)/($D$17) ->  | V11: podlaha 2m | X11: =(IF(I44=2,J46-I46,0)+IF(K44=2,L46-K46,0)+IF(M44=2,N46-M46,0)+IF(O44=2,P46-O46,0)+IF(Q44=2,R46-Q46,0)+IF(S44=2,T46-S46,0)+IF(U44=2,V46-U46,0)+IF(W44=2,X46-W46,0)+IF(Y44=2,Z46-Y46,0)+IF(AA44=2,AB46-AA46,0))*2 -> 10 | Y11: 14.5 | Z11: 145
C12: Délka strany [m] | D12: =Půdorys!C6 -> 5 | E12: [m] | H12: vlevo | I12: 0 | J12: =$D$15+$D$4 -> 11.76 | K12: 0 | L12: =$D$4 -> 0 | M12: A | N12: =DEGREES(ATAN(N11)) ->  | V12: průlezová podlaha 3m | X12: 0 | Y12: 28 | Z12: 0
B13: → | C13: Tvar střechy: | D13: sedlová | H13: max | I13: =$D$9 -> 0 | J13: =IF($I$17<I13,-$N$3*I13+$J$4+$N$11*$D$12,IF(I13<$I$14,$N$11*I13+$J$4,J14)) ->  | K13: =$D$9 -> 0 | L13: =$D$8 -> 0 | M13: tg A | N13: =TAN(RADIANS($N$12)) ->  | V13: zábradlí 3m | X13: =IF(I44=3,2*(J46-I46)+1,0)+IF(K44=3,2*(L46-K46)+1,0)+IF(M44=3,2*(N46-M46)+1,0)+IF(O44=3,2*(P46-O46)+1,0)+IF(Q44=3,2*(R46-Q46)+1,0)+IF(S44=3,2*(T46-S46)+1,0)+IF(U44=3,2*(V46-U46)+1,0)+IF(W44=3,2*(X46-W46)+1,0)+IF(Y44=3,2*(Z46-Y46)+1,0)+IF(AA44=3,2*(AB46-AA46)+1,0) -> 11 | Y13: 5.5 | Z13: 60.5
B14: → | C14: =IF('stěna B'!$D$13=Data_podpora!$B$9,"Výška stěny [m]","Výška uprostřed stěny [m]") -> Výška uprostřed stěny [m] | D14: =507.76-496 -> 11.76 | E14: [m] | H14: min | I14: =$D$7 -> 0 | J14: =IF($I$13>=I14,$N$11*I14+$J$4,IF(I14<=$I$16,J12,-$N$11*I14+$J$12+$N$11*$D$12)) ->  | K14: =$D$7 -> 0 | L14: =$D$6 -> 0 | M14: sklon | N14: =$N$13 ->  | V14: zábradlí 2m | X14: =IF(I44=2,2*(J46-I46)+1,0)+IF(K44=2,2*(L46-K46)+1,0)+IF(M44=2,2*(N46-M46)+1,0)+IF(O44=2,2*(P46-O46)+1,0)+IF(Q44=2,2*(R46-Q46)+1,0)+IF(S44=2,2*(T46-S46)+1,0)+IF(U44=2,2*(V46-U46)+1,0)+IF(W44=2,2*(X46-W46)+1,0)+IF(Y44=2,2*(Z46-Y46)+1,0)+IF(AA44=2,2*(AB46-AA46)+1,0) -> 11 | Y14: 3.5 | Z14: 38.5
B15: =IF($D$13=Data_podpora!B9,"","→") -> → | C15: =IF($D$13=Data_podpora!$B$9,"","Výška od terénu k okapu (levý) [m]") -> Výška od terénu k okapu (levý) [m] | D15: =507.76-496 -> 11.76 | E15: =IF($D$13=Data_podpora!$B$9,"","[m]") -> [m] | H15: polov1 | I15: =$D$17 -> 0 | J15: =$D$14 -> 11.76 | K15: =$D$17 -> 0 | L15: =$D$18 -> 0 | V15: diagonální úchyt | X15: =X16/MAX(I46:AB46) -> 1 | Y15: 0.5 | Z15: 0.5
C16: =IF(D13=Data_podpora!B10,"Upřesňující parametry pro polovalbovou střechu:","") ->  | H16: top | I16: =$D$12/2 -> 2.5 | J16: =$D$14 -> 11.76 | K16: =$D$12/2 -> 2.5 | L16: =0 -> 0 | V16: diagonála 3m | X16: =MAX(J46-I46,L46-K46,N46-M46,P46-O46,R46-Q46,T46-S46,V46-U46,X46-W46,Z46-Y46,AB46-AA46)*ROUNDUP((IF(I44=3,I44,0)+IF(K44=3,K44,0)+IF(M44=3,M44,0)+IF(O44=3,O44,0)+IF(Q44=3,Q44,0)+IF(S44=3,S44,0)+IF(U44=3,U44,0)+IF(W44=3,W44,0)+IF(Y44=3,Y44,0)+IF(AA44=3,AA44,0))/20,0) -> 5 | Y16: 11 | Z16: 55
B17: =IF($D$13=Data_podpora!$B$10,'stěna B'!$B$15,"") ->  | C17: =IF($D$13=Data_podpora!$B$10,"Místo polovalby [m]","") ->  | E17: =IF($D$13=Data_podpora!$B$10,"[m]","") ->  | H17: polov2 | I17: =$D$12-$D$17 -> 5 | J17: =$D$14 -> 11.76 | K17: =$D$12-$D$17 -> 5 | L17: =$D$19 -> 0 | V17: diagonála 2m | X17: =IF(X16=0,MAX(J46-I46,L46-K46,N46-M46,P46-O46,R46-Q46,T46-S46,V46-U46,X46-W46,Z46-Y46,AB46-AA46)*ROUNDUP((IF(I44=2,I44,0)+IF(K44=2,K44,0)+IF(M44=2,M44,0)+IF(O44=2,O44,0)+IF(Q44=2,Q44,0)+IF(S44=2,S44,0)+IF(U44=2,U44,0)+IF(W44=2,W44,0)+IF(Y44=2,Y44,0)+IF(AA44=2,AA44,0))/12,0),0) -> 0 | Y17: 8 | Z17: 0
B18: =IF($D$13=Data_podpora!$B$10,'stěna B'!$B$15,"") ->  | C18: =IF($D$13=Data_podpora!$B$10,"Výška terénu v místě levé polovalby [m]","") ->  | E18: =IF($D$13=Data_podpora!$B$10,"[m]","") ->  | H18: vpravo | I18: =$D$12 -> 5 | J18: =$J$4 -> 11.76 | K18: =$D$12 -> 5 | L18: =$D$5 -> 0 | V18: kotva 0,5 m | X18: =IF(X19=0,ROUNDUP(X8*0.45,0),ROUNDUP(X8*0.45,0)-X19) -> 7 | Y18: 2 | Z18: 14
B19: =IF($D$13=Data_podpora!$B$10,'stěna B'!$B$15,"") ->  | C19: =IF($D$13=Data_podpora!$B$10,"Výška terénu v místě pravé polovalby [m]","") ->  | E19: =IF($D$13=Data_podpora!$B$10,"[m]","") ->  | V19: kotva dlouhá 1 m | X19: 0 | Y19: 3.8 | Z19: 0
H20: Patra lešení | V20: eLko / sloupek | X20: =IF(X22=0,COUNT(J46,L46,N46,P46,R46,T46,V46,X46,Z46,AB46)+1,(COUNT(J46,L46,N46,P46,R46,T46,V46,X46,Z46,AB46)+1)-X22) -> 3 | Y20: 5 | Z20: 15
V21: eLko 2 m | Y21: 11.5 | Z21: 0
B22: =IF($D$21=Data_podpora!B30,"→","") ->  | C22: =IF(D21=Data_podpora!B30,"Vzdálenost od levého rohu [m]","") ->  | E22: =IF(D21=Data_podpora!B30,"[m]","") ->  | H22: -0,5 | I22: =I26-1 -> -0.2 | J22: =J26-1 -> -0.2 | K22: =K26-1 -> -0.2 | L22: =L26-1 -> -0.2 | M22: =M26-1 -> -0.2 | V22: Háčko | X22: =2*(MAX(I46:AB46)-MIN(J46,L46,N46,P46,R46,T46,V46,X46,Z46,AB46)) -> 0 | Y22: 9.7 | Z22: 0
B23: =IF($D$21=Data_podpora!$B$30,"→","") ->  | C23: =IF(D21=Data_podpora!B30,"Výška od terénu (zleva) [m]","") ->  | E23: =IF(D21=Data_podpora!B30,"[m]","") ->  | H23: -3 | I23: =I24-2 -> -5.2 | J23: -5.9 | K23: -5.9 | L23: -5.9 | M23: -5.9 | V23: boční zábradlí | X23: =IF(X22=0,(MAX(J46-I46,L46-K46,N46-M46,P46-O46,R46-Q46,T46-S46,V46-U46,X46-W46,Z46-Y46,AB46-AA46)+1)*2,(MAX(J46-I46,L46-K46,N46-M46,P46-O46,R46-Q46,T46-S46,V46-U46,X46-W46,Z46-Y46,AB46-AA46)+1)*2-X22) -> 12 | Y23: 3 | Z23: 36
B24: =IF($D$21=Data_podpora!$B$30,"→","") ->  | C24: =IF(D21=Data_podpora!B30,"Šířka [m]","") ->  | E24: =IF(D21=Data_podpora!B30,"[m]","") ->  | H24: -2 | I24: -3.2 | J24: -3.9 | K24: -3.9 | L24: -3.9 | M24: -3.9 | V24: okopové prkno 3m | X24: =IF(I44=3,J46-I46,0)+IF(K44=3,L46-K46,0)+IF(M44=3,N46-M46,0)+IF(O44=3,P46-O46,0)+IF(Q44=3,R46-Q46,0)+IF(S44=3,T46-S46,0)+IF(U44=3,V46-U46,0)+IF(W44=3,X46-W46,0)+IF(Y44=3,Z46-Y46,0)+IF(AA44=3,AB46-AA46,0) -> 5 | Y24: 6.5 | Z24: 32.5
H25: -1 | I25: =I26-2 -> -1.2 | J25: =$D$85-2 -> -1.9 | K25: =$D$85-2 -> -1.9 | L25: =$D$85-2 -> -1.9 | M25: =$D$85-2 -> -1.9 | V25: okopové prkno 2m | X25: =IF(I44=2,J46-I46,0)+IF(K44=2,L46-K46,0)+IF(M44=2,N46-M46,0)+IF(O44=2,P46-O46,0)+IF(Q44=2,R46-Q46,0)+IF(S44=2,T46-S46,0)+IF(U44=2,V46-U46,0)+IF(W44=2,X46-W46,0)+IF(Y44=2,Z46-Y46,0)+IF(AA44=2,AB46-AA46,0) -> 5 | Y25: 4.5 | Z25: 22.5
H26: 0 | I26: =$K$41 -> 0.8 | J26: =$K$41 -> 0.8 | K26: =$K$41 -> 0.8 | L26: =$K$41 -> 0.8 | M26: =$K$41 -> 0.8 | V26: konzola | Y26: 10 | Z26: 0
H27: 1 | I27: =I26+$D$86 -> 2.8 | J27: =J26+$D$86 -> 2.8 | K27: =K26+$D$86 -> 2.8 | L27: =L26+$D$86 -> 2.8 | M27: =M26+$D$86 -> 2.8 | V27: pevna spojka | X27: =J46*2 -> 10 | Y27: 1.15 | Z27: 11.5
H28: 2 | I28: 4.8 | J28: 4.8 | K28: 4.8 | L28: 4.8 | M28: 4.8 | V28: otočná spojka | X28: =J46 -> 5 | Y28: 1.35 | Z28: 6.75
H29: 3 | I29: 6.8 | J29: 6.8 | K29: 6.8 | L29: 6.8 | M29: 6.8 | V29: závlačná spojka | X29: =J46*2 -> 10 | Y29: 0.8 | Z29: 8
H30: 4 | I30: 8.8 | J30: 8.8 | K30: 8.8 | L30: 8.8 | M30: 8.8 | V30: CELKOVÁ HMOTNOST [kg] | Z30: =SUM(Z6:Z29) -> 941.45
H31: 5 | I31: 10.8 | J31: 10.8 | K31: 10.8 | L31: 10.8 | M31: 10.8
H32: 6 | I32: 12.8 | J32: 12.8 | K32: 12.8 | L32: 12.8 | M32: 12.8
H33: 7 | I33: 14.8 | J33: 14.8 | K33: 14.8 | L33: 14.8 | M33: 14.8
H34: 8 | I34: 16.8 | J34: 16.8 | K34: 16.8 | L34: 16.8 | M34: 16.8
H35: 9 | I35: 18.8 | J35: 18.8 | K35: 18.8 | L35: 18.8 | M35: 18.8
H36: 10 | I36: 20.8 | J36: 20.8 | K36: 20.8 | L36: 20.8 | M36: 20.8
H37: 11 | I37: 22.8 | J37: 22.8 | K37: 22.8 | L37: 22.8 | M37: 22.8
H38: 12 | I38: 24.8 | J38: 24.8 | K38: 24.8 | L38: 24.8 | M38: 24.8
H39: 13 | I39: 26.8 | J39: 26.8 | K39: 26.8 | L39: 26.8 | M39: 26.8
H41: LEŠENÍ | I41: výška založení [m] | K41: =D8+0.8 -> 0.8 | L41: [m] | M41: nepsat nuly v kolonce "patro",pokud není sestava lešení využita | S41: Poznámka: | T41: =IF(Půdorys!I6=0,"",Půdorys!I6) -> 2m sestava
I42: ZALOŽENÍ | J42: VÝŠKA P.P. | K42: ZALOŽENÍ | L42: VÝŠKA P.P. | M42: ZALOŽENÍ | N42: VÝŠKA P.P. | O42: ZALOŽENÍ | P42: VÝŠKA P.P. | Q42: ZALOŽENÍ | R42: VÝŠKA P.P. | S42: ZALOŽENÍ | T42: VÝŠKA P.P. | U42: ZALOŽENÍ | V42: VÝŠKA P.P. | W42: ZALOŽENÍ | X42: VÝŠKA P.P. | Y42: ZALOŽENÍ | Z42: VÝŠKA P.P. | AA42: ZALOŽENÍ | AB42: VÝŠKA P.P.
H43: SESTAVA | I43: 1 | K43: 2 | M43: 3 | O43: 4 | Q43: 5 | S43: 6 | U43: 7 | W43: 8 | Y43: 9 | AA43: 10
H44: DÉLKA SESTAVY | I44: 2 | K44: 3 | M44: 0 | O44: 0 | Q44: 0 | S44: 0 | U44: 0 | W44: 0 | Y44: 0 | AA44: 0
H45: "potvrdit"
H46: PATRO | I46: 0 | J46: 5 | K46: 0 | L46: 5
H47: POSUN
H48: plocha [m2] | I48: =(J46-I46)*$D$86*I44 -> 20 | K48: =L46*$D$86*K44 -> 30 | M48: =N46*$D$86*M44 -> 0 | O48: =P46*$D$86*O44 -> 0 | Q48: =R46*$D$86*Q44 -> 0 | S48: =T46*$D$86*S44 -> 0 | U48: =V46*$D$86*U44 -> 0 | W48: =X46*$D$86*W44 -> 0 | Y48: =Z46*$D$86*Y44 -> 0 | AA48: =AB46*$D$86*AA44 -> 0
H49: výška | I49: =IF(I46=-0.5,M22,INDEX($M$23:$M$39,I46+4)) -> 0.8 | J49: =INDEX($M$23:$M$39,J46+4) -> 10.8 | K49: =IF(K46=-0.5,M22,INDEX($M$23:$M$39,K46+4)) -> 0.8 | L49: =INDEX($M$23:$M$39,L46+4) -> 10.8 | M49: =IF(M46=-0.5,M22,INDEX($M$23:$M$39,M46+4)) -> 0.8 | N49: =INDEX($M$23:$M$39,N46+4) -> 0.8 | O49: =IF(O46=-0.5,M22,INDEX($M$23:$M$39,O46+4)) -> 0.8 | P49: =INDEX($M$23:$M$39,P46+4) -> 0.8 | Q49: =IF(Q46=-0.5,M22,INDEX($M$23:$M$39,Q46+4)) -> 0.8 | R49: =INDEX($M$23:$M$39,R46+4) -> 0.8 | S49: =IF(S46=-0.5,M22,INDEX($M$23:$M$39,S46+4)) -> 0.8 | T49: =INDEX($M$23:$M$39,T46+4) -> 0.8 | U49: =IF(U46=-0.5,M22,INDEX($M$23:$M$39,U46+4)) -> 0.8 | V49: =INDEX($M$23:$M$39,V46+4) -> 0.8 | W49: =IF(W46=-0.5,M22,INDEX($M$23:$M$39,W46+4)) -> 0.8 | X49: =INDEX($M$23:$M$39,X46+4) -> 0.8 | Y49: =IF(Y46=-0.5,M22,INDEX($M$23:$M$39,Y46+4)) -> 0.8 | Z49: =INDEX($M$23:$M$39,Z46+4) -> 0.8 | AA49: =IF(AA46=-0.5,M22,INDEX($M$23:$M$39,AA46+4)) -> 0.8 | AB49: =INDEX($M$23:$M$39,AB46+4) -> 0.8
H55: -1
H56: 0
H57: 1 | I57: =$I$49 -> 0.8 | J57: =$J$49 -> 10.8
H58: 2 | I58: =$I$49 -> 0.8 | J58: =$J$49 -> 10.8
H59: 3 | I59: =$I$49 -> 0.8 | J59: =$J$49 -> 10.8 | K59: =$K$49 -> 0.8 | L59: =$L$49 -> 10.8
H60: 4 | K60: =$K$49 -> 0.8 | L60: =$L$49 -> 10.8
H61: 5 | K61: =$K$49 -> 0.8 | L61: =$L$49 -> 10.8
H62: 6 | K62: =$K$49 -> 0.8 | L62: =$L$49 -> 10.8 | M62: =$M$49 -> 0.8 | N62: =$N$49 -> 0.8
H63: 7 | M63: =$M$49 -> 0.8 | N63: =$N$49 -> 0.8
H64: 8 | M64: =$M$49 -> 0.8 | N64: =$N$49 -> 0.8
H65: 9 | M65: =$M$49 -> 0.8 | N65: =$N$49 -> 0.8 | O65: =$O$49 -> 0.8 | P65: =$P$49 -> 0.8
H66: 10 | O66: =$O$49 -> 0.8 | P66: =$P$49 -> 0.8
H67: 11 | O67: =$O$49 -> 0.8 | P67: =$P$49 -> 0.8
H68: 12 | O68: =$O$49 -> 0.8 | P68: =$P$49 -> 0.8 | Q68: =$Q$49 -> 0.8 | R68: =$R$49 -> 0.8
C69: Pomocný výpočet počtu sestav lešení: | H69: 13 | Q69: =$Q$49 -> 0.8 | R69: =$R$49 -> 0.8
C70: Délka: | H70: 14 | Q70: =$Q$49 -> 0.8 | R70: =$R$49 -> 0.8
C71: přesah za roh objektu: | D71: Ne | H71: 15 | Q71: =$Q$49 -> 0.8 | R71: =$R$49 -> 0.8 | S71: =$S$49 -> 0.8 | T71: =$T$49 -> 0.8
C72: Požadovaná minimální délka lešení [m] | D72: =IF(D71=Data_podpora!B17,'stěna B'!D12+2,IF('stěna B'!D71=Data_podpora!B14,'stěna B'!D12+0.5,IF(D71=Data_podpora!B13,'stěna B'!D12,'stěna B'!D12+1))) -> 5 | E72: [m] | H72: 16 | S72: =$S$49 -> 0.8 | T72: =$T$49 -> 0.8
C73: Počet sestav lešení (3m) [-] | D73: =ROUNDDOWN(D72/E73,0) -> 1 | E73: 3 | F73: =D73*E73 -> 3 | G73: [m] | H73: 17 | S73: =$S$49 -> 0.8 | T73: =$T$49 -> 0.8
C74: Počet sestav lešení (2m) [-] | D74: =ROUNDDOWN(MOD(D72,E73)/E74,0) -> 1 | E74: 2 | F74: =D74*E74 -> 2 | G74: [m] | H74: 18 | S74: =$S$49 -> 0.8 | T74: =$T$49 -> 0.8 | U74: =$U$49 -> 0.8 | V74: =$V$49 -> 0.8
C75: Počet sestav lešení (0,75m) [-] | D75: =ROUNDUP(D72-(D73*E73+D74*E74),0) -> 0 | E75: 0,75 | F75: =D75*E75 -> 0 | G75: [m] | H75: 19 | U75: =$U$49 -> 0.8 | V75: =$V$49 -> 0.8
C76: Reálná délka lešení [m] | D76: =D73*E73+D74*E74+D75*E75 -> 5 | E76: [m] | H76: 20 | U76: =$U$49 -> 0.8 | V76: =$V$49 -> 0.8
H77: 21 | U77: =$U$49 -> 0.8 | V77: =$V$49 -> 0.8 | W77: =$W$49 -> 0.8 | X77: =$X$49 -> 0.8
C78: Výška: | H78: 22 | W78: =$W$49 -> 0.8 | X78: =X77 -> 0.8
C79: Lešení pro: | D79: Fasádu | H79: 23 | W79: =$W$49 -> 0.8 | X79: =X78 -> 0.8
C80: Výška zábradlí posledního patra [m] | D80: 1 | E80: [m] | H80: 24 | W80: =$W$49 -> 0.8 | X80: =X79 -> 0.8 | Y80: =$Y$49 -> 0.8 | Z80: =$Z$49 -> 0.8
C81: Požadovaná výška [m] | D81: =IF(D79=Data_podpora!B22,'stěna B'!D14+D80,'stěna B'!D14) -> 11.76 | E81: [m] | H81: 25 | Y81: =$Y$49 -> 0.8 | Z81: =Z80 -> 0.8
A82: Založení | C82: Výška nejnižžšího bodu terénu [m] | D82: =MIN(D4,D5,D6,D8) -> 0 | E82: [m] | H82: 26 | Y82: =$Y$49 -> 0.8 | Z82: =Z81 -> 0.8
C83: Výška nejvyššího bodu terénu [m] | D83: =D8 -> 0 | E83: [m] | H83: 27 | Y83: =$Y$49 -> 0.8 | Z83: =Z82 -> 0.8 | AA83: =$AA$49 -> 0.8 | AB83: =$AB$49 -> 0.8
C84: Rozdíl max a min [m] | D84: =D83-D82 -> 0 | E84: [m] | F84: =IF(D84<0.4,"(Patky 0,4m)",IF(D84<=1,"(Patky 1m)",IF(2>=D84>1,"(Rám 1m)",IF(5>D84>2,"(Rám 2m)","")))) -> (Patky 0,4m) | H84: 28 | AA84: =$AA$49 -> 0.8 | AB84: =AB83 -> 0.8
B85: # | C85: Výška založení [m] | D85: =D8+0.1 -> 0.1 | E85: [m] | H85: 29 | AA85: =$AA$49 -> 0.8 | AB85: =AB84 -> 0.8
C86: Modulová výška patra lešení [m] | D86: 2 | E86: [m] | H86: 30 | AA86: =$AA$49 -> 0.8 | AB86: =AB85 -> 0.8
C87: Počet pater lešení [-]; výška [m]) | D87: =IF(D81-D85<11,ROUNDDOWN((D81-D85)/2.15,0),ROUNDDOWN((D81-D85)/2.1,0)) -> 5 | E87: pater | F87: =INDEX(M27:M39,D87) -> 10.8 | G87: [m] | H87: 31
C88: Reálná výška lešení [m] | D88: =D87*D86+D85+D80 -> 11.1 | E88: [m]
A90: Uskočení pater | B90: → | C90: Hranice posouzení uskočení | D90: 4 | F90: =INDEX(M27:M39,D90) -> 8.8 | G90: [m]
C91: Zbývající výška do hřebene | D91: =$D$14-F90 -> 2.96 | E91: [m]
C92: Počet uskočených pater | D92: =IF(D91<11,ROUNDDOWN((D91)/2.6,0),ROUNDDOWN((D91)/2.6,0)) -> 1 | E92: =IF(D92=1,"patro",IF(D92<=4,"patra","pater")) -> patro
C93: Rozdíl výšky okapu a nejbližšího patra | D93: =$J$4-(INDEX(M27:M39,D90)) -> 2.96 | E93: [m]
C94: Rozdíl výšek na 3 m sestavu | D94: =$N$5*$E$73 -> 0 | E94: [m]
B95: =IF($D$92>=1,1,"") -> 1 | C95: První sestava | D95: =D93+D94 -> 2.96 | E95: [m] | F95: =IF(D$95<=2,"posoudit další",IF(D$95<=3.2,"ponechat","pokračuje patrem")) -> ponechat
B96: =IF(1<=$D$92,2,"X") -> 2 | C96: Druhá sestava | D96: =IF(F95="ponechat",$D$93+$D$94*B96,$D$93+$D$94*B96-2) -> 2.96 | E96: [m] | F96: =IF(D96<2,"posoudit další",IF(D96<=3.2,"ponechat",IF(D96>3.2,"pokračuje patrem",""))) -> ponechat
B97: =IF(2<=$D$92,3,"X") -> X | C97: Třetí sestava | D97: =IF(F96="ponechat",$D$93+$D$94*B97,$D$93+$D$94*B97-2) ->  | E97: [m] | F97: =IF(D97<2,"posoudit další",IF(D97<=3.2,"ponechat",IF(D97>3.2,"pokračuje patrem",""))) -> 
B98: =IF(3<=$D$92,4,"X") -> X | C98: Čtvrtá sestava | D98: =IF(F97="ponechat",$D$93+$D$94*B98,$D$93+$D$94*B98-2) ->  | E98: [m] | F98: =IF(D98<2,"posoudit další",IF(D98<=3.2,"ponechat",IF(D98>3.2,"pokračuje patrem",""))) -> 
C103: NAKLÁDACÍ LIST
C105: stavitelná patka 0,5m | D105: počet kusů
C106: stavitelná patka 1m | D106: =IF(D107>=0,($D$73+$D$74+$D$75)*2+2-D107,($D$73+$D$74+$D$75)*2+2) -> 4
C107: rám 2m | D107: 2
C108: rám 1m | D108: =(($D$73+$D$74+$D$75)+1)*$D$87 -> 15
C109: podlaha 3m | D109: =IF(D85>=1,($D$73+$D$74+$D$75)+1,0) -> 0
C110: podlaha 2m | D110: =(D73*D87-$D112)*2 -> 0
C111: průlezová podlaha 3m | D111: =D74*D87 -> 5
C112: zábradlí 3m | D112: =D87 -> 5
C113: zábradlí 2m | D113: =(1+$D$87*2)*D73 -> 11
C114: diagonální úchyt | D114: =(1+$D$87*2)*D74 -> 11
C115: diagonála 3m
C116: diagonála 2m | D116: =$D$87*(ROUNDUP((D73+D74+D75)/4,0)) -> 5
C117: kotva 0,5 m | D117: =IF(D116=0,$D$87*ROUNDUP(D74/4,0),0) -> 0
C118: kotva dlouhá 1 m | D118: =(($D$87-1)*SUM(D73:D75))/2 -> 4
C119: eLko / sloupek
C120: eLko 2 m | D120: =SUM(D73:D75)+1 -> 3
C121: Háčko
C122: boční zábradlí
C123: okopové prkno 3m | D123: =D87*2 -> 10
C124: okopové prkno 2m | D124: =D73*D87 -> 5
C125: konzola | D125: =D74*D87 -> 5
C126: pevna spojka
C127: otočná spojka
C128: závlačná spojka

Sheet stěna C
C1: Stěna A | D1: Výkres: | H1: Data grafu:
C2: Nastavení parametrů výpočtu: | I2: Tvar střechy | K2: Tvar terénu | M2: úhel alfa | V2: NAKLÁDACÍ LIST: | X2: =$C$1 -> Stěna A | Y2: =IF(AD6=0,"(BUDE NAKLÁDÁNO POUZE AUTO)","") ->  | AB2: VYTÍŽENOST ODVOZNÍHO PROSTŘEDKU:
C3: Terén: absolutní výška (±0,00 = svislice od hřebene střechy na terén) | I3: osa x | J3: osa y | K3: osa x | L3: osa y | M3: tg A | N3: =($D$14-$J$4)/($D$12/2) -> 0 | V3: obestavběná plocha lešení [m2] | Y3: =IF(K41>=1,SUM(I48,K48,M48,O48,Q48,S48,U48,W48,Y48,AA48)+SUM(I44,K44,M44,O44,Q44,S44,U44,W44,Y44,AA44)*2+SUM(I44,K44,M44,O44,Q44,S44,U44,W44,Y44,AA44),SUM(I48,K48,M48,O48,Q48,S48,U48,W48,Y48,AA48)+SUM(I44,K44,M44,O44,Q44,S44,U44,W44,Y44,AA44)*2) -> 288 | Z3: [m2] | AB3: [kg] | AC3: 1. cesta | AF3: 2.cesta
B4: → | C4: Výška terénu v levém rohu [m] | D4: 0 | E4: [m] | H4: vlevo | I4: 0 | J4: =IF($D$13=Data_podpora!$B$9,$D$14,$D$15+$D$4) -> 11.76 | K4: 0 | L4: =$D$4 -> 0 | M4: A | N4: =DEGREES(ATAN(N3)) -> 0 | V4: Komponenta | X4: počet kusů [ks] | Y4: jednotková hmotnost [kg/ks] | Z4: hmotnost [kg] | AC4: KAPACITA | AD4: VYUŽITO | AE4: Zbývá | AF4: KAPACITA | AG4: VYUŽITO | AH4: ZBÝVÁ
B5: → | C5: Výška terénu v pravém rohu [m] | D5: 0 | E5: [m] | H5: max | I5: =$D$9 -> 0 | J5: =IF($D$12/2<I5,-$N$3*I5+$J$4+$N$3*$D$12,$N$3*I5+$J$4) -> 11.76 | K5: =$D$9 -> 0 | L5: =$D$8 -> 0 | M5: tg A | N5: =TAN(RADIANS($N$4)) -> 0 | AB5: AUTO | AC5: 2500 | AD5: =IF(Z30<=AC5,SUM(Z6:Z29),SUM(Z6:Z9,Z26:Z29,Z15:Z23,Z13/2,Z14/2)) -> 1329.35 | AE5: =IF((AC5-AD5)<=0,0,AC5-AD5) -> 1170.65 | AF5: 2500 | AG5: =IF(AC5-AD5<=0,-(AC5-AD5),0) -> 0 | AH5: =AF5-AG5 -> 2500
B6: → | C6: Výška nejnižšího bodu terénu [m] | D6: 0 | E6: [m] | H6: min | I6: =$D$7 -> 0 | J6: =IF($D$12/2>I6,$N$3*I6+$J$4,-$N$3*I6+$J$4+$N$3*$D$12) -> 11.76 | K6: =$D$7 -> 0 | L6: =$D$6 -> 0 | M6: sklon | N6: =$N$5 -> 0 | V6: stavitelná patka 0,5m | X6: =IF(X7>0,(COUNT(I46:AB46)+2)-X7,(COUNT(I46:AB46)+2)) -> 18 | Y6: 3.1 | Z6: =Y7*X6 -> 84.6 | AB6: ZÁVĚS | AC6: 3500 | AD6: =IF(Z30<=AC5,0,SUM(Z10:Z12,Z24:Z25,Z13/2,Z14/2)) -> 2182 | AE6: =IF((AC6-AD6)<=0,0,AC6-AD6) -> 1318 | AF6: 3500 | AG6: =IF(AC6-AD6<=0,-(AC6-AD6),0) -> 0 | AH6: =AF6-AG6 -> 3500
B7: → | C7: Místo nejnižšího bodu (zleva) [m] | D7: 0 | E7: [m] | H7: top | I7: =$D$12/2 -> 10.75 | J7: =$D$14 -> 11.76 | K7: =$D$12/2 -> 10.75 | L7: =0 -> 0 | V7: stavitelná patka 1m | X7: 0 | Y7: 4.7 | Z7: =Y9*X7 -> 0
B8: → | C8: Výška nejvyššího bodu terénu [m] | D8: 0 | E8: [m] | H8: vpravo | I8: =$D$12 -> 21.5 | J8: =$J$4 -> 11.76 | K8: =$D$12 -> 21.5 | L8: =$D$5 -> 0 | V8: rám 2m | X8: =IF(X9>0,SUM(J46-I46,L46-K46,N46-M46,P46-O46,R46-Q46,T46-S46,V46-U46,X46-W46,Z46-Y46,AB46-AA46)+MIN(J46-I46,L46-K46,N46-M46,P46-O46,R46-Q46,T46-S46,V46-U46,X46-W46,Z46-Y46,AB46-AA46)+MAX(J46-I46,L46-K46,N46-M46,P46-O46,R46-Q46,T46-S46,V46-U46,X46-W46,Z46-Y46,AB46-AA46)-MIN(J46-I46,L46-K46,N46-M46,P46-O46,R46-Q46,T46-S46,V46-U46,X46-W46,Z46-Y46,AB46-AA46)-X9,SUM(J46-I46,L46-K46,N46-M46,P46-O46,R46-Q46,T46-S46,V46-U46,X46-W46,Z46-Y46,AB46-AA46)+MIN(J46-I46,L46-K46,N46-M46,P46-O46,R46-Q46,T46-S46,V46-U46,X46-W46,Z46-Y46,AB46-AA46)+MAX(J46-I46,L46-K46,N46-M46,P46-O46,R46-Q46,T46-S46,V46-U46,X46-W46,Z46-Y46,AB46-AA46)-MIN(J46-I46,L46-K46,N46-M46,P46-O46,R46-Q46,T46-S46,V46-U46,X46-W46,Z46-Y46,AB46-AA46)) -> 45 | Y8: 16.5 | Z8: =Y8*X8 -> 742.5
B9: → | C9: Místo nejvyššího bodu (zleva) [m] | D9: 0 | E9: [m] | V9: rám 1m | X9: 0 | Y9: 11.3 | Z9: 0
I10: Tvar střechy | K10: Tvar terénu | M10: úhel alfa | V10: podlaha 3m | X10: =((IF(I44=3,J46-I46,0)+IF(K44=3,L46-K46,0)+IF(M44=3,N46-M46,0)+IF(O44=3,P46-O46,0)+IF(Q44=3,R46-Q46,0)+IF(S44=3,T46-S46,0)+IF(U44=3,V46-U46,0)+IF(W44=3,X46-W46,0)+IF(Y44=3,Z46-Y46,0)+IF(AA44=3,AB46-AA46,0))-X12)*2 -> 70 | Y10: 22 | Z10: 1540
C11: Střecha: | I11: osa x | J11: osa y | K11: osa x | L11: osa y | M11: tg A | N11: =($D$14-$J$4)/($D$17) ->  | V11: podlaha 2m | X11: =(IF(I44=2,J46-I46,0)+IF(K44=2,L46-K46,0)+IF(M44=2,N46-M46,0)+IF(O44=2,P46-O46,0)+IF(Q44=2,R46-Q46,0)+IF(S44=2,T46-S46,0)+IF(U44=2,V46-U46,0)+IF(W44=2,X46-W46,0)+IF(Y44=2,Z46-Y46,0)+IF(AA44=2,AB46-AA46,0))*2 -> 0 | Y11: 14.5 | Z11: 0
C12: Délka strany [m] | D12: =Půdorys!$C$7 -> 21.5 | E12: [m] | H12: vlevo | I12: 0 | J12: =$D$15+$D$4 -> 11.76 | K12: 0 | L12: =$D$4 -> 0 | M12: A | N12: =DEGREES(ATAN(N11)) ->  | V12: průlezová podlaha 3m | X12: =MAX(J46:AB46) -> 5 | Y12: 28 | Z12: 140
B13: → | C13: Tvar střechy: | D13: sedlová | H13: max | I13: =$D$9 -> 0 | J13: =IF($I$17<I13,-$N$3*I13+$J$4+$N$11*$D$12,IF(I13<$I$14,$N$11*I13+$J$4,J14)) ->  | K13: =$D$9 -> 0 | L13: =$D$8 -> 0 | M13: tg A | N13: =TAN(RADIANS($N$12)) ->  | V13: zábradlí 3m | X13: =IF(I44=3,2*(J46-I46)+1,0)+IF(K44=3,2*(L46-K46)+1,0)+IF(M44=3,2*(N46-M46)+1,0)+IF(O44=3,2*(P46-O46)+1,0)+IF(Q44=3,2*(R46-Q46)+1,0)+IF(S44=3,2*(T46-S46)+1,0)+IF(U44=3,2*(V46-U46)+1,0)+IF(W44=3,2*(X46-W46)+1,0)+IF(Y44=3,2*(Z46-Y46)+1,0)+IF(AA44=3,2*(AB46-AA46)+1,0) -> 88 | Y13: 5.5 | Z13: 484
B14: → | C14: =IF('stěna A'!$D$13=Data_podpora!$B$9,"Výška stěny [m]","Výška uprostřed stěny [m]") -> Výška uprostřed stěny [m] | D14: =507.76-496 -> 11.76 | E14: [m] | H14: min | I14: =$D$7 -> 0 | J14: =IF($I$13>=I14,$N$11*I14+$J$4,IF(I14<=$I$16,J12,-$N$11*I14+$J$12+$N$11*$D$12)) ->  | K14: =$D$7 -> 0 | L14: =$D$6 -> 0 | M14: sklon | N14: =$N$13 ->  | V14: zábradlí 2m | X14: =IF(I44=2,2*(J46-I46)+1,0)+IF(K44=2,2*(L46-K46)+1,0)+IF(M44=2,2*(N46-M46)+1,0)+IF(O44=2,2*(P46-O46)+1,0)+IF(Q44=2,2*(R46-Q46)+1,0)+IF(S44=2,2*(T46-S46)+1,0)+IF(U44=2,2*(V46-U46)+1,0)+IF(W44=2,2*(X46-W46)+1,0)+IF(Y44=2,2*(Z46-Y46)+1,0)+IF(AA44=2,2*(AB46-AA46)+1,0) -> 0 | Y14: 3.5 | Z14: 0
B15: =IF($D$13=Data_podpora!B9,"","→") -> → | C15: =IF($D$13=Data_podpora!$B$9,"","Výška od terénu k okapu (levý) [m]") -> Výška od terénu k okapu (levý) [m] | D15: =507.76-496 -> 11.76 | E15: =IF($D$13=Data_podpora!$B$9,"","[m]") -> [m] | H15: polov1 | I15: =$D$17 -> 0 | J15: =$D$14 -> 11.76 | K15: =$D$17 -> 0 | L15: =$D$18 -> 0 | V15: diagonální úchyt | X15: =X16/MAX(I46:AB46) -> 2 | Y15: 0.5 | Z15: 1
C16: =IF(D13=Data_podpora!B10,"Upřesňující parametry pro polovalbovou střechu:","") ->  | H16: top | I16: =$D$12/2 -> 10.75 | J16: =$D$14 -> 11.76 | K16: =$D$12/2 -> 10.75 | L16: =0 -> 0 | V16: diagonála 3m | X16: =MAX(J46-I46,L46-K46,N46-M46,P46-O46,R46-Q46,T46-S46,V46-U46,X46-W46,Z46-Y46,AB46-AA46)*ROUNDUP((IF(I44=3,I44,0)+IF(K44=3,K44,0)+IF(M44=3,M44,0)+IF(O44=3,O44,0)+IF(Q44=3,Q44,0)+IF(S44=3,S44,0)+IF(U44=3,U44,0)+IF(W44=3,W44,0)+IF(Y44=3,Y44,0)+IF(AA44=3,AA44,0))/20,0) -> 10 | Y16: 11 | Z16: 110
B17: =IF($D$13=Data_podpora!$B$10,'stěna A'!$B$15,"") ->  | C17: =IF($D$13=Data_podpora!$B$10,"Vzdálenost polovalby zleva [m]","") ->  | E17: =IF($D$13=Data_podpora!$B$10,"[m]","") ->  | H17: polov2 | I17: =$D$12-$D$17 -> 21.5 | J17: =$D$14 -> 11.76 | K17: =$D$12-$D$17 -> 21.5 | L17: =$D$19 -> 0 | V17: diagonála 2m | X17: =IF(X16=0,MAX(J46-I46,L46-K46,N46-M46,P46-O46,R46-Q46,T46-S46,V46-U46,X46-W46,Z46-Y46,AB46-AA46)*ROUNDUP((IF(I44=2,I44,0)+IF(K44=2,K44,0)+IF(M44=2,M44,0)+IF(O44=2,O44,0)+IF(Q44=2,Q44,0)+IF(S44=2,S44,0)+IF(U44=2,U44,0)+IF(W44=2,W44,0)+IF(Y44=2,Y44,0)+IF(AA44=2,AA44,0))/12,0),0) -> 0 | Y17: 8 | Z17: 0
B18: =IF($D$13=Data_podpora!$B$10,'stěna A'!$B$15,"") ->  | C18: =IF($D$13=Data_podpora!$B$10,"Výška terénu v místě levé polovalby [m]","") ->  | E18: =IF($D$13=Data_podpora!$B$10,"[m]","") ->  | H18: vpravo | I18: =$D$12 -> 21.5 | J18: =$J$4 -> 11.76 | K18: =$D$12 -> 21.5 | L18: =$D$5 -> 0 | V18: kotva 0,5 m | X18: =IF(X19=0,ROUNDUP(X8*0.45,0),ROUNDUP(X8*0.45,0)-X19) -> 21 | Y18: 2 | Z18: 42
B19: =IF($D$13=Data_podpora!$B$10,'stěna A'!$B$15,"") ->  | C19: =IF($D$13=Data_podpora!$B$10,"Výška terénu v místě pravé polovalby [m]","") ->  | E19: =IF($D$13=Data_podpora!$B$10,"[m]","") ->  | V19: kotva dlouhá 1 m | X19: 0 | Y19: 3.8 | Z19: 0
B20: =IF($D$21=Data_podpora!$B$30,"→","") ->  | C20: =IF(D18=Data_podpora!B30,"Výška od terénu (zleva) [m]","") ->  | H20: Patra lešení | V20: eLko / sloupek | X20: =IF(X22=0,COUNT(J46,L46,N46,P46,R46,T46,V46,X46,Z46,AB46)+1,(COUNT(J46,L46,N46,P46,R46,T46,V46,X46,Z46,AB46)+1)-X22) -> 9 | Y20: 5 | Z20: 45
B21: =IF($D$21=Data_podpora!$B$30,"→","") ->  | C21: =IF(D18=Data_podpora!B30,"Šířka [m]","") ->  | V21: eLko 2 m | Y21: 11.5 | Z21: 0
H22: -0,5 | I22: =I26-1 -> -0.2 | J22: =J26-1 -> -0.2 | K22: -0.2 | L22: -0.2 | M22: -0.2 | V22: Háčko | X22: =2*(MAX(I46:AB46)-MIN(J46,L46,N46,P46,R46,T46,V46,X46,Z46,AB46)) -> 0 | Y22: 9.7 | Z22: 0
H23: -3 | I23: =I24-2 -> -5.2 | J23: -5.9 | K23: -5.9 | L23: -5.9 | M23: -5.9 | V23: boční zábradlí | X23: =IF(X22=0,(MAX(J46-I46,L46-K46,N46-M46,P46-O46,R46-Q46,T46-S46,V46-U46,X46-W46,Z46-Y46,AB46-AA46)+1)*2,(MAX(J46-I46,L46-K46,N46-M46,P46-O46,R46-Q46,T46-S46,V46-U46,X46-W46,Z46-Y46,AB46-AA46)+1)*2-X22) -> 12 | Y23: 3 | Z23: 36
B24: =IF($D$21=Data_podpora!B30,"→","") ->  | E24: =IF(D23=Data_podpora!B30,"[m]","") ->  | H24: -2 | I24: -3.2 | J24: -3.9 | K24: -3.9 | L24: -3.9 | M24: -3.9 | V24: okopové prkno 3m | X24: =IF(I44=3,J46-I46,0)+IF(K44=3,L46-K46,0)+IF(M44=3,N46-M46,0)+IF(O44=3,P46-O46,0)+IF(Q44=3,R46-Q46,0)+IF(S44=3,T46-S46,0)+IF(U44=3,V46-U46,0)+IF(W44=3,X46-W46,0)+IF(Y44=3,Z46-Y46,0)+IF(AA44=3,AB46-AA46,0) -> 40 | Y24: 6.5 | Z24: 260
H25: -1 | I25: =I26-2 -> -1.2 | J25: =$D$85-2 -> -1.9 | K25: =$D$85-2 -> -1.9 | L25: =$D$85-2 -> -1.9 | M25: =$D$85-2 -> -1.9 | V25: okopové prkno 2m | X25: =IF(I44=2,J46-I46,0)+IF(K44=2,L46-K46,0)+IF(M44=2,N46-M46,0)+IF(O44=2,P46-O46,0)+IF(Q44=2,R46-Q46,0)+IF(S44=2,T46-S46,0)+IF(U44=2,V46-U46,0)+IF(W44=2,X46-W46,0)+IF(Y44=2,Z46-Y46,0)+IF(AA44=2,AB46-AA46,0) -> 0 | Y25: 4.5 | Z25: 0
H26: 0 | I26: =$K$41 -> 0.8 | J26: =$K$41 -> 0.8 | K26: =$K$41 -> 0.8 | L26: =$K$41 -> 0.8 | M26: =$K$41 -> 0.8 | V26: konzola | Y26: 10 | Z26: 0
H27: 1 | I27: =I26+$D$86 -> 2.8 | J27: =J26+$D$86 -> 2.8 | K27: =K26+$D$86 -> 2.8 | L27: =L26+$D$86 -> 2.8 | M27: =M26+$D$86 -> 2.8 | V27: pevna spojka | X27: =J46*2 -> 10 | Y27: 1.15 | Z27: 11.5
H28: 2 | I28: 4.8 | J28: 4.8 | K28: 4.8 | L28: 4.8 | M28: 4.8 | V28: otočná spojka | X28: =J46 -> 5 | Y28: 1.35 | Z28: 6.75
H29: 3 | I29: 6.8 | J29: 6.8 | K29: 6.8 | L29: 6.8 | M29: 6.8 | V29: závlačná spojka | X29: =J46*2 -> 10 | Y29: 0.8 | Z29: 8
H30: 4 | I30: 8.8 | J30: 8.8 | K30: 8.8 | L30: 8.8 | M30: 8.8 | V30: CELKOVÁ HMOTNOST [kg] | Z30: =SUM(Z6:Z29) -> 3511.35
H31: 5 | I31: 10.8 | J31: 10.8 | K31: 10.8 | L31: 10.8 | M31: 10.8
H32: 6 | I32: 12.8 | J32: 12.8 | K32: 12.8 | L32: 12.8 | M32: 12.8
H33: 7 | I33: 14.8 | J33: 14.8 | K33: 14.8 | L33: 14.8 | M33: 14.8
H34: 8 | I34: 16.8 | J34: 16.8 | K34: 16.8 | L34: 16.8 | M34: 16.8
H35: 9 | I35: 18.8 | J35: 18.8 | K35: 18.8 | L35: 18.8 | M35: 18.8
H36: 10 | I36: 20.8 | J36: 20.8 | K36: 20.8 | L36: 20.8 | M36: 20.8
H37: 11 | I37: 22.8 | J37: 22.8 | K37: 22.8 | L37: 22.8 | M37: 22.8
H38: 12 | I38: 24.8 | J38: 24.8 | K38: 24.8 | L38: 24.8 | M38: 24.8
H39: 13 | I39: 26.8 | J39: 26.8 | K39: 26.8 | L39: 26.8 | M39: 26.8
H41: LEŠENÍ | I41: výška založení [m] | K41: =D8+0.8 -> 0.8 | L41: [m] | M41: nepsat nuly v kolonce "patro",pokud není sestava lešení využita | S41: Poznámka: | T41: =IF(Půdorys!I7=0,"",Půdorys!I7) -> 
I42: ZALOŽENÍ | J42: VÝŠKA P.P. | K42: ZALOŽENÍ | L42: VÝŠKA P.P. | M42: ZALOŽENÍ | N42: VÝŠKA P.P. | O42: ZALOŽENÍ | P42: VÝŠKA P.P. | Q42: ZALOŽENÍ | R42: VÝŠKA P.P. | S42: ZALOŽENÍ | T42: VÝŠKA P.P. | U42: ZALOŽENÍ | V42: VÝŠKA P.P. | W42: ZALOŽENÍ | X42: VÝŠKA P.P. | Y42: ZALOŽENÍ | Z42: VÝŠKA P.P. | AA42: ZALOŽENÍ | AB42: VÝŠKA P.P.
H43: SESTAVA | I43: 1 | K43: 2 | M43: 3 | O43: 4 | Q43: 5 | S43: 6 | U43: 7 | W43: 8 | Y43: 9 | AA43: 10
H44: DÉLKA SESTAVY | I44: 3 | K44: 3 | M44: 3 | O44: 3 | Q44: 3 | S44: 3 | U44: 3 | W44: 3 | Y44: 0 | AA44: 0
H45: "potvrdit"
H46: PATRO | I46: 0 | J46: 5 | K46: 0 | L46: 5 | M46: 0 | N46: 5 | O46: 0 | P46: 5 | Q46: 0 | R46: 5 | S46: 0 | T46: 5 | U46: 0 | V46: 5 | W46: 0 | X46: 5
H47: POSUN
H48: plocha [m2] | I48: =(J46-I46)*$D$86*I44 -> 30 | K48: =L46*$D$86*K44 -> 30 | M48: =N46*$D$86*M44 -> 30 | O48: =P46*$D$86*O44 -> 30 | Q48: =R46*$D$86*Q44 -> 30 | S48: =T46*$D$86*S44 -> 30 | U48: =V46*$D$86*U44 -> 30 | W48: =X46*$D$86*W44 -> 30 | Y48: =Z46*$D$86*Y44 -> 0 | AA48: =AB46*$D$86*AA44 -> 0
H49: výška | I49: =IF(I46=-0.5,M22,INDEX($M$23:$M$39,I46+4)) -> 0.8 | J49: =INDEX($M$23:$M$39,J46+4) -> 10.8 | K49: =IF(K46=-0.5,M22,INDEX($M$23:$M$39,K46+4)) -> 0.8 | L49: =INDEX($M$23:$M$39,L46+4) -> 10.8 | M49: =IF(M46=-0.5,M22,INDEX($M$23:$M$39,M46+4)) -> 0.8 | N49: =INDEX($M$23:$M$39,N46+4) -> 10.8 | O49: =IF(O46=-0.5,M22,INDEX($M$23:$M$39,O46+4)) -> 0.8 | P49: =INDEX($M$23:$M$39,P46+4) -> 10.8 | Q49: =IF(Q46=-0.5,M22,INDEX($M$23:$M$39,Q46+4)) -> 0.8 | R49: =INDEX($M$23:$M$39,R46+4) -> 10.8 | S49: =IF(S46=-0.5,M22,INDEX($M$23:$M$39,S46+4)) -> 0.8 | T49: =INDEX($M$23:$M$39,T46+4) -> 10.8 | U49: =IF(U46=-0.5,M22,INDEX($M$23:$M$39,U46+4)) -> 0.8 | V49: =INDEX($M$23:$M$39,V46+4) -> 10.8 | W49: =IF(W46=-0.5,M22,INDEX($M$23:$M$39,W46+4)) -> 0.8 | X49: =INDEX($M$23:$M$39,X46+4) -> 10.8 | Y49: =IF(Y46=-0.5,M22,INDEX($M$23:$M$39,Y46+4)) -> 0.8 | Z49: =INDEX($M$23:$M$39,Z46+4) -> 0.8 | AA49: =IF(AA46=-0.5,M22,INDEX($M$23:$M$39,AA46+4)) -> 0.8 | AB49: =INDEX($M$23:$M$39,AB46+4) -> 0.8
H55: -1
H56: 0 | I56: =$I$49 -> 0.8 | J56: =$J$49 -> 10.8
H57: 1 | I57: =$I$49 -> 0.8 | J57: =$J$49 -> 10.8
H58: 2 | I58: =$I$49 -> 0.8 | J58: =$J$49 -> 10.8
H59: 3 | I59: =$I$49 -> 0.8 | J59: =$J$49 -> 10.8 | K59: =$K$49 -> 0.8 | L59: =$L$49 -> 10.8
H60: 4 | K60: =$K$49 -> 0.8 | L60: =$L$49 -> 10.8
H61: 5 | K61: =$K$49 -> 0.8 | L61: =$L$49 -> 10.8
H62: 6 | K62: =$K$49 -> 0.8 | L62: =$L$49 -> 10.8 | M62: =$M$49 -> 0.8 | N62: =$N$49 -> 10.8
H63: 7 | M63: =$M$49 -> 0.8 | N63: =$N$49 -> 10.8
H64: 8 | M64: =$M$49 -> 0.8 | N64: =$N$49 -> 10.8
H65: 9 | M65: =$M$49 -> 0.8 | N65: =$N$49 -> 10.8 | O65: =$O$49 -> 0.8 | P65: =$P$49 -> 10.8
H66: 10 | O66: =$O$49 -> 0.8 | P66: =$P$49 -> 10.8
H67: 11 | O67: =$O$49 -> 0.8 | P67: =$P$49 -> 10.8
H68: 12 | O68: =$O$49 -> 0.8 | P68: =$P$49 -> 10.8 | Q68: =$Q$49 -> 0.8 | R68: =$R$49 -> 10.8
C69: Pomocný výpočet počtu sestav lešení: | H69: 13 | Q69: =$Q$49 -> 0.8 | R69: =$R$49 -> 10.8
C70: Délka: | H70: 14 | Q70: =$Q$49 -> 0.8 | R70: =$R$49 -> 10.8
C71: přesah za roh objektu: | D71: Ne | H71: 15 | Q71: =$Q$49 -> 0.8 | R71: =$R$49 -> 10.8 | S71: =$S$49 -> 0.8 | T71: =$T$49 -> 10.8
C72: Požadovaná minimální délka lešení [m] | D72: =IF(D71=Data_podpora!B17,'stěna C'!D12+2,IF('stěna C'!D71=Data_podpora!B14,'stěna C'!D12+0.5,IF(D71=Data_podpora!B13,'stěna C'!D12,'stěna C'!D12+1))) -> 21.5 | E72: [m] | H72: 16 | S72: =$S$49 -> 0.8 | T72: =$T$49 -> 10.8
C73: Počet sestav lešení (3m) [-] | D73: =ROUNDDOWN(D72/E73,0) -> 7 | E73: 3 | F73: =D73*E73 -> 21 | G73: [m] | H73: 17 | S73: =$S$49 -> 0.8 | T73: =$T$49 -> 10.8
C74: Počet sestav lešení (2m) [-] | D74: =ROUNDDOWN(MOD(D72,E73)/E74,0) -> 0 | E74: 2 | F74: =D74*E74 -> 0 | G74: [m] | H74: 18 | S74: =$S$49 -> 0.8 | T74: =$T$49 -> 10.8 | U74: =$U$49 -> 0.8 | V74: =$V$49 -> 10.8
C75: Počet sestav lešení (0,75m) [-] | D75: =ROUNDUP(D72-(D73*E73+D74*E74),0) -> 1 | E75: 0,75 | F75: =D75*E75 -> 0.75 | G75: [m] | H75: 19 | U75: =$U$49 -> 0.8 | V75: =$V$49 -> 10.8
C76: Reálná délka lešení [m] | D76: =D73*E73+D74*E74+D75*E75 -> 21.75 | E76: [m] | H76: 20 | U76: =$U$49 -> 0.8 | V76: =$V$49 -> 10.8
H77: 21 | U77: =$U$49 -> 0.8 | V77: =$V$49 -> 10.8 | W77: =$W$49 -> 0.8 | X77: =$X$49 -> 10.8
C78: Výška: | H78: 22 | W78: =$W$49 -> 0.8 | X78: =X77 -> 10.8
C79: Lešení pro: | D79: Fasádu | H79: 23 | W79: =$W$49 -> 0.8 | X79: =X78 -> 10.8
C80: Výška zábradlí posledního patra [m] | D80: 1 | E80: [m] | H80: 24 | W80: =$W$49 -> 0.8 | X80: =X79 -> 10.8 | Y80: =$Y$49 -> 0.8 | Z80: =$Z$49 -> 0.8
C81: Požadovaná výška [m] | D81: =IF(D79=Data_podpora!B22,'stěna C'!D14+D80,'stěna C'!D14) -> 11.76 | E81: [m] | H81: 25 | Y81: =$Y$49 -> 0.8 | Z81: =Z80 -> 0.8
A82: Založení | C82: Výška nejnižžšího bodu terénu [m] | D82: =MIN(D4,D5,D6,D8) -> 0 | E82: [m] | H82: 26 | Y82: =$Y$49 -> 0.8 | Z82: =Z81 -> 0.8
C83: Výška nejvyššího bodu terénu [m] | D83: =D8 -> 0 | E83: [m] | H83: 27 | Y83: =$Y$49 -> 0.8 | Z83: =Z82 -> 0.8 | AA83: =$AA$49 -> 0.8 | AB83: =$AB$49 -> 0.8
C84: Rozdíl max a min [m] | D84: =D83-D82 -> 0 | E84: [m] | F84: =IF(D84<0.4,"(Patky 0,4m)",IF(D84<=1,"(Patky 1m)",IF(2>=D84>1,"(Rám 1m)",IF(5>D84>2,"(Rám 2m)","")))) -> (Patky 0,4m) | H84: 28 | AA84: =$AA$49 -> 0.8 | AB84: =AB83 -> 0.8
B85: # | C85: Výška založení [m] | D85: =D8+0.1 -> 0.1 | E85: [m] | H85: 29 | AA85: =$AA$49 -> 0.8 | AB85: =AB84 -> 0.8
C86: Modulová výška patra lešení [m] | D86: 2 | E86: [m] | H86: 30 | AA86: =$AA$49 -> 0.8 | AB86: =AB85 -> 0.8
C87: Počet pater lešení [-]; výška [m]) | D87: =IF(D81-D85<11,ROUNDDOWN((D81-D85)/2.15,0),ROUNDDOWN((D81-D85)/2.1,0)) -> 5 | E87: pater | F87: =INDEX(M27:M39,D87) -> 10.8 | G87: [m] | H87: 31
C88: Reálná výška lešení [m] | D88: =D87*D86+D85+D80 -> 11.1 | E88: [m]
A90: Uskočení pater | B90: → | C90: Hranice posouzení uskočení | D90: 4 | F90: =INDEX(M27:M39,D90) -> 8.8 | G90: [m]
C91: Zbývající výška do hřebene | D91: =$D$14-F90 -> 2.96 | E91: [m]
C92: Počet uskočených pater | D92: =IF(D91<11,ROUNDDOWN((D91)/2.6,0),ROUNDDOWN((D91)/2.6,0)) -> 1 | E92: =IF(D92=1,"patro",IF(D92<=4,"patra","pater")) -> patro
C93: Rozdíl výšky okapu a nejbližšího patra | D93: =$J$4-(INDEX(M27:M39,D90)) -> 2.96 | E93: [m]
C94: Rozdíl výšek na 3 m sestavu | D94: =$N$5*$E$73 -> 0 | E94: [m]
B95: =IF($D$92>=1,1,"") -> 1 | C95: První sestava | D95: =D93+D94 -> 2.96 | E95: [m] | F95: =IF(D$95<=2,"posoudit další",IF(D$95<=3.2,"ponechat","pokračuje patrem")) -> ponechat
B96: =IF(1<=$D$92,2,"X") -> 2 | C96: Druhá sestava | D96: =IF(F95="ponechat",$D$93+$D$94*B96,$D$93+$D$94*B96-2) -> 2.96 | E96: [m] | F96: =IF(D96<2,"posoudit další",IF(D96<=3.2,"ponechat",IF(D96>3.2,"pokračuje patrem",""))) -> ponechat
B97: =IF(2<=$D$92,3,"X") -> X | C97: Třetí sestava | D97: =IF(F96="ponechat",$D$93+$D$94*B97,$D$93+$D$94*B97-2) ->  | E97: [m] | F97: =IF(D97<2,"posoudit další",IF(D97<=3.2,"ponechat",IF(D97>3.2,"pokračuje patrem",""))) -> 
B98: =IF(3<=$D$92,4,"X") -> X | C98: Čtvrtá sestava | D98: =IF(F97="ponechat",$D$93+$D$94*B98,$D$93+$D$94*B98-2) ->  | E98: [m] | F98: =IF(D98<2,"posoudit další",IF(D98<=3.2,"ponechat",IF(D98>3.2,"pokračuje patrem",""))) -> 
C103: NAKLÁDACÍ LIST
C105: stavitelná patka 0,5m | D105: počet kusů
C106: stavitelná patka 1m | D106: =IF(D107>=0,($D$73+$D$74+$D$75)*2+2-D107,($D$73+$D$74+$D$75)*2+2) -> 16
C107: rám 2m | D107: 2
C108: rám 1m | D108: =(($D$73+$D$74+$D$75)+1)*$D$87 -> 45
C109: podlaha 3m | D109: =IF(D85>=1,($D$73+$D$74+$D$75)+1,0) -> 0
C110: podlaha 2m | D110: =(D73*D87-$D112)*2 -> 60
C111: průlezová podlaha 3m | D111: =D74*D87 -> 0
C112: zábradlí 3m | D112: =D87 -> 5
C113: zábradlí 2m | D113: =(1+$D$87*2)*D73 -> 77
C114: diagonální úchyt | D114: =(1+$D$87*2)*D74 -> 0
C115: diagonála 3m
C116: diagonála 2m | D116: =$D$87*(ROUNDUP((D73+D74+D75)/4,0)) -> 10
C117: kotva 0,5 m | D117: =IF(D116=0,$D$87*ROUNDUP(D74/4,0),0) -> 0
C118: kotva dlouhá 1 m | D118: =(($D$87-1)*SUM(D73:D75))/2 -> 16
C119: eLko / sloupek
C120: eLko 2 m | D120: =SUM(D73:D75)+1 -> 9
C121: Háčko
C122: boční zábradlí
C123: okopové prkno 3m | D123: =D87*2 -> 10
C124: okopové prkno 2m | D124: =D73*D87 -> 35
C125: konzola | D125: =D74*D87 -> 0
C126: pevna spojka
C127: otočná spojka
C128: závlačná spojka

Sheet stěna D
C1: Stěna D | D1: Výkres: | H1: Data grafu:
C2: Nastavení parametrů výpočtu: | I2: Tvar střechy | K2: Tvar terénu | M2: úhel alfa | V2: NAKLÁDACÍ LIST: | X2: =$C$1 -> Stěna D | Y2: =IF(AF6=0,"(BUDE NAKLÁDÁNO POUZE AUTO)","") ->  | AD2: VYTÍŽENOST ODVOZNÍHO PROSTŘEDKU:
C3: Terén: absolutní výška (±0,00 = svislice od hřebene střechy na terén) | I3: osa x | J3: osa y | K3: osa x | L3: osa y | M3: tg A | N3: =($D$14-$J$4)/($D$12/2) -> 0.3951219512 | V3: obestavběná plocha lešení [m2] | Y3: =IF(K41>=1,SUM(I48,K48,M48,O48,Q48,S48,U48,W48,Y48,AA48)+SUM(I44,K44,M44,O44,Q44,S44,U44,W44,Y44,AA44)*2+SUM(I44,K44,M44,O44,Q44,S44,U44,W44,Y44,AA44),SUM(I48,K48,M48,O48,Q48,S48,U48,W48,Y48,AA48)+SUM(I44,K44,M44,O44,Q44,S44,U44,W44,Y44,AA44)*2) -> 240 | Z3: [m2] | AD3: [kg] | AE3: 1. cesta | AH3: 2.cesta
B4: → | C4: Výška terénu v levém rohu [m] | D4: 0 | E4: [m] | H4: vlevo | I4: 0 | J4: =IF($D$13=Data_podpora!$B$9,$D$14,$D$15+$D$4) -> 11.76 | K4: 0 | L4: =$D$4 -> 0 | M4: A | N4: =DEGREES(ATAN(N3)) -> 21.56006391 | V4: Komponenta | X4: počet kusů [ks] | Y4: jednotková hmotnost [kg/ks] | Z4: hmotnost [kg] | AE4: KAPACITA | AF4: VYUŽITO | AG4: Zbývá | AH4: KAPACITA | AI4: VYUŽITO | AJ4: ZBÝVÁ
B5: → | C5: Výška terénu v pravém rohu [m] | D5: 2.5 | E5: [m] | H5: top | I5: =$D$12/2 -> 8.2 | J5: =$D$14 -> 15 | K5: =$D$12/2 -> 8.2 | L5: =0 -> 0 | M5: tg A | N5: =TAN(RADIANS($N$4)) -> 0.3951219512 | AD5: AUTO | AE5: 2500 | AF5: =IF(Z30<=AE5,SUM(Z6:Z29),SUM(Z6:Z9,Z26:Z29,Z15:Z23,Z13/2,Z14/2)) -> 1133.25 | AG5: =IF((AE5-AF5)<=0,0,AE5-AF5) -> 1366.75 | AH5: 2500 | AI5: =IF(AE5-AF5<=0,-(AE5-AF5),0) -> 0 | AJ5: =AH5-AI5 -> 2500
B6: → | C6: Výška nejnižšího bodu terénu [m] | D6: 0 | E6: [m] | H6: min | I6: =$D$7 -> 11 | J6: =IF($D$12/2>I6,$N$3*I6+$J$4,-$N$3*I6+$J$4+$N$3*$D$12) -> 13.89365854 | K6: =$D$7 -> 11 | L6: =$D$6 -> 0 | M6: sklon | N6: =$N$5 -> 0.3951219512 | V6: stavitelná patka 0,5m | X6: =IF(X7>0,(COUNT(I46:AB46)+2)-X7,(COUNT(I46:AB46)+2)) -> 14 | Y6: 3.1 | Z6: =Y7*X6 -> 65.8 | AD6: ZÁVĚS | AE6: 3500 | AF6: =IF(Z30<=AE5,0,SUM(Z10:Z12,Z24:Z25,Z13/2,Z14/2)) -> 1824.5 | AG6: =IF((AE6-AF6)<=0,0,AE6-AF6) -> 1675.5 | AH6: 3500 | AI6: =IF(AE6-AF6<=0,-(AE6-AF6),0) -> 0 | AJ6: =AH6-AI6 -> 3500
B7: → | C7: Místo nejnižšího bodu (zleva) [m] | D7: 11 | E7: [m] | H7: max | I7: =$D$9 -> 16.4 | J7: =IF($D$12/2<I7,-$N$3*I7+$J$4+$N$3*$D$12,$N$3*I7+$J$4) -> 11.76 | K7: =$D$9 -> 16.4 | L7: =$D$8 -> 2.5 | V7: stavitelná patka 1m | X7: 0 | Y7: 4.7 | Z7: =Y9*X7 -> 0
B8: → | C8: Výška nejvyššího bodu terénu [m] | D8: 2.5 | E8: [m] | H8: vpravo | I8: =$D$12 -> 16.4 | J8: =$J$4 -> 11.76 | K8: =$D$12 -> 16.4 | L8: =$D$5 -> 2.5 | V8: rám 2m | X8: =IF(X9>0,SUM(J46-I46,L46-K46,N46-M46,P46-O46,R46-Q46,T46-S46,V46-U46,X46-W46,Z46-Y46,AB46-AA46)+MIN(J46-I46,L46-K46,N46-M46,P46-O46,R46-Q46,T46-S46,V46-U46,X46-W46,Z46-Y46,AB46-AA46)+MAX(J46-I46,L46-K46,N46-M46,P46-O46,R46-Q46,T46-S46,V46-U46,X46-W46,Z46-Y46,AB46-AA46)-MIN(J46-I46,L46-K46,N46-M46,P46-O46,R46-Q46,T46-S46,V46-U46,X46-W46,Z46-Y46,AB46-AA46)-X9,SUM(J46-I46,L46-K46,N46-M46,P46-O46,R46-Q46,T46-S46,V46-U46,X46-W46,Z46-Y46,AB46-AA46)+MIN(J46-I46,L46-K46,N46-M46,P46-O46,R46-Q46,T46-S46,V46-U46,X46-W46,Z46-Y46,AB46-AA46)+MAX(J46-I46,L46-K46,N46-M46,P46-O46,R46-Q46,T46-S46,V46-U46,X46-W46,Z46-Y46,AB46-AA46)-MIN(J46-I46,L46-K46,N46-M46,P46-O46,R46-Q46,T46-S46,V46-U46,X46-W46,Z46-Y46,AB46-AA46)) -> 39 | Y8: 16.5 | Z8: =Y8*X8 -> 643.5
B9: → | C9: Místo nejvyššího bodu (zleva) [m] | D9: =D12 -> 16.4 | E9: [m] | V9: rám 1m | X9: 1 | Y9: 11.3 | Z9: 11.3
I10: Tvar střechy | K10: Tvar terénu | M10: úhel alfa | V10: podlaha 3m | X10: =((IF(I44=3,J46-I46,0)+IF(K44=3,L46-K46,0)+IF(M44=3,N46-M46,0)+IF(O44=3,P46-O46,0)+IF(Q44=3,R46-Q46,0)+IF(S44=3,T46-S46,0)+IF(U44=3,V46-U46,0)+IF(W44=3,X46-W46,0)+IF(Y44=3,Z46-Y46,0)+IF(AA44=3,AB46-AA46,0))-X12)*2 -> 56 | Y10: 22 | Z10: 1232
C11: Střecha: | I11: osa x | J11: osa y | K11: osa x | L11: osa y | M11: tg A | N11: =($D$14-$J$4)/($D$17) ->  | V11: podlaha 2m | X11: =(IF(I44=2,J46-I46,0)+IF(K44=2,L46-K46,0)+IF(M44=2,N46-M46,0)+IF(O44=2,P46-O46,0)+IF(Q44=2,R46-Q46,0)+IF(S44=2,T46-S46,0)+IF(U44=2,V46-U46,0)+IF(W44=2,X46-W46,0)+IF(Y44=2,Z46-Y46,0)+IF(AA44=2,AB46-AA46,0))*2 -> 0 | Y11: 14.5 | Z11: 0
C12: Délka strany [m] | D12: =Půdorys!C8 -> 16.4 | E12: [m] | H12: vlevo | I12: 0 | J12: =$D$15+$D$4 -> 11.76 | K12: 0 | L12: =$D$4 -> 0 | M12: A | N12: =DEGREES(ATAN(N11)) ->  | V12: průlezová podlaha 3m | X12: =MAX(J46:AB46) -> 6 | Y12: 28 | Z12: 168
B13: → | C13: Tvar střechy: | D13: sedlová | H13: polov1 | I13: =$D$17 -> 0 | J13: =$D$14 -> 15 | K13: =$D$17 -> 0 | L13: =$D$18 -> 0 | M13: tg A | N13: =TAN(RADIANS($N$12)) ->  | V13: zábradlí 3m | X13: =IF(I44=3,2*(J46-I46)+1,0)+IF(K44=3,2*(L46-K46)+1,0)+IF(M44=3,2*(N46-M46)+1,0)+IF(O44=3,2*(P46-O46)+1,0)+IF(Q44=3,2*(R46-Q46)+1,0)+IF(S44=3,2*(T46-S46)+1,0)+IF(U44=3,2*(V46-U46)+1,0)+IF(W44=3,2*(X46-W46)+1,0)+IF(Y44=3,2*(Z46-Y46)+1,0)+IF(AA44=3,2*(AB46-AA46)+1,0) -> 74 | Y13: 5.5 | Z13: 407
B14: → | C14: =IF('stěna D'!$D$13=Data_podpora!$B$9,"Výška stěny [m]","Výška uprostřed stěny [m]") -> Výška uprostřed stěny [m] | D14: 15 | E14: [m] | H14: top | I14: =$D$12/2 -> 8.2 | J14: =$D$14 -> 15 | K14: =$D$12/2 -> 8.2 | L14: =0 -> 0 | M14: sklon | N14: =$N$13 ->  | V14: zábradlí 2m | X14: =IF(I44=2,2*(J46-I46)+1,0)+IF(K44=2,2*(L46-K46)+1,0)+IF(M44=2,2*(N46-M46)+1,0)+IF(O44=2,2*(P46-O46)+1,0)+IF(Q44=2,2*(R46-Q46)+1,0)+IF(S44=2,2*(T46-S46)+1,0)+IF(U44=2,2*(V46-U46)+1,0)+IF(W44=2,2*(X46-W46)+1,0)+IF(Y44=2,2*(Z46-Y46)+1,0)+IF(AA44=2,2*(AB46-AA46)+1,0) -> 0 | Y14: 3.5 | Z14: 0
B15: =IF($D$13=Data_podpora!B9,"","→") -> → | C15: =IF($D$13=Data_podpora!$B$9,"","Výška od terénu k okapu (levý) [m]") -> Výška od terénu k okapu (levý) [m] | D15: 11.76 | E15: =IF($D$13=Data_podpora!$B$9,"","[m]") -> [m] | H15: min | I15: =$D$7 -> 11 | J15: =IF($I$13>=I15,$N$11*I15+$J$4,IF(I15<=$I$16,J13,-$N$11*I15+$J$12+$N$11*$D$12)) -> 15 | K15: =$D$7 -> 11 | L15: =$D$6 -> 0 | V15: diagonální úchyt | X15: =X16/MAX(I46:AB46) -> 1 | Y15: 0.5 | Z15: 0.5
C16: =IF(D13=Data_podpora!B10,"Upřesňující parametry pro polovalbovou střechu:","") ->  | H16: polov2 | I16: =$D$12-$D$17 -> 16.4 | J16: =$D$14 -> 15 | K16: =$D$12-$D$17 -> 16.4 | L16: =$D$19 -> 0 | V16: diagonála 3m | X16: =MAX(J46-I46,L46-K46,N46-M46,P46-O46,R46-Q46,T46-S46,V46-U46,X46-W46,Z46-Y46,AB46-AA46)*ROUNDUP((IF(I44=3,I44,0)+IF(K44=3,K44,0)+IF(M44=3,M44,0)+IF(O44=3,O44,0)+IF(Q44=3,Q44,0)+IF(S44=3,S44,0)+IF(U44=3,U44,0)+IF(W44=3,W44,0)+IF(Y44=3,Y44,0)+IF(AA44=3,AA44,0))/20,0) -> 6 | Y16: 11 | Z16: 66
B17: =IF($D$13=Data_podpora!$B$10,'stěna D'!$B$15,"") ->  | C17: =IF($D$13=Data_podpora!$B$10,"Místo polovalby [m]","") ->  | E17: =IF($D$13=Data_podpora!$B$10,"[m]","") ->  | H17: max | I17: =$D$9 -> 16.4 | J17: =IF($I$17<I17,-$N$3*I17+$J$4+$N$11*$D$12,IF(I17<$I$14,$N$11*I17+$J$4,J18)) -> 11.76 | K17: =$D$9 -> 16.4 | L17: =$D$8 -> 2.5 | V17: diagonála 2m | X17: =IF(X16=0,MAX(J46-I46,L46-K46,N46-M46,P46-O46,R46-Q46,T46-S46,V46-U46,X46-W46,Z46-Y46,AB46-AA46)*ROUNDUP((IF(I44=2,I44,0)+IF(K44=2,K44,0)+IF(M44=2,M44,0)+IF(O44=2,O44,0)+IF(Q44=2,Q44,0)+IF(S44=2,S44,0)+IF(U44=2,U44,0)+IF(W44=2,W44,0)+IF(Y44=2,Y44,0)+IF(AA44=2,AA44,0))/12,0),0) -> 0 | Y17: 8 | Z17: 0
B18: =IF($D$13=Data_podpora!$B$10,'stěna D'!$B$15,"") ->  | C18: =IF($D$13=Data_podpora!$B$10,"Výška terénu v místě levé polovalby [m]","") ->  | E18: =IF($D$13=Data_podpora!$B$10,"[m]","") ->  | H18: vpravo | I18: =$D$12 -> 16.4 | J18: =$J$4 -> 11.76 | K18: =$D$12 -> 16.4 | L18: =$D$5 -> 2.5 | V18: kotva 0,5 m | X18: =IF(X19=0,ROUNDUP(X8*0.45,0),ROUNDUP(X8*0.45,0)-X19) -> 18 | Y18: 2 | Z18: 36
B19: =IF($D$13=Data_podpora!$B$10,'stěna D'!$B$15,"") ->  | C19: =IF($D$13=Data_podpora!$B$10,"Výška terénu v místě pravé polovalby [m]","") ->  | E19: =IF($D$13=Data_podpora!$B$10,"[m]","") ->  | V19: kotva dlouhá 1 m | X19: 0 | Y19: 3.8 | Z19: 0
H20: Patra lešení | V20: eLko / sloupek | X20: =IF(X22=0,COUNT(J46,L46,N46,P46,R46,T46,V46,X46,Z46,AB46)+1,(COUNT(J46,L46,N46,P46,R46,T46,V46,X46,Z46,AB46)+1)-X22) -> 5 | Y20: 5 | Z20: 25
V21: eLko 2 m | Y21: 11.5 | Z21: 0
B22: =IF($D$21=Data_podpora!B30,"→","") ->  | C22: =IF(D21=Data_podpora!B30,"Vzdálenost od levého rohu [m]","") ->  | E22: =IF(D21=Data_podpora!B30,"[m]","") ->  | H22: -0,5 | I22: =I26-1 -> -0.6 | J22: =J26-1 -> -0.6 | K22: =K26-1 -> -0.6 | L22: =L26-1 -> -0.6 | M22: =M26-1 -> -0.6 | V22: Háčko | X22: =2*(MAX(I46:AB46)-MIN(J46,L46,N46,P46,R46,T46,V46,X46,Z46,AB46)) -> 2 | Y22: 9.7 | Z22: 19.4
B23: =IF($D$21=Data_podpora!$B$30,"→","") ->  | C23: =IF(D21=Data_podpora!B30,"Výška od terénu (zleva) [m]","") ->  | E23: =IF(D21=Data_podpora!B30,"[m]","") ->  | H23: -3 | I23: =I24-2 -> -5.6 | J23: -5.6 | K23: -5.6 | L23: -5.6 | M23: -5.6 | V23: boční zábradlí | X23: =IF(X22=0,(MAX(J46-I46,L46-K46,N46-M46,P46-O46,R46-Q46,T46-S46,V46-U46,X46-W46,Z46-Y46,AB46-AA46)+1)*2,(MAX(J46-I46,L46-K46,N46-M46,P46-O46,R46-Q46,T46-S46,V46-U46,X46-W46,Z46-Y46,AB46-AA46)+1)*2-X22) -> 12 | Y23: 3 | Z23: 36
B24: =IF($D$21=Data_podpora!$B$30,"→","") ->  | C24: =IF(D21=Data_podpora!B30,"Šířka [m]","") ->  | E24: =IF(D21=Data_podpora!B30,"[m]","") ->  | H24: -2 | I24: -3.6 | J24: -3.6 | K24: -3.6 | L24: -3.6 | M24: -3.6 | V24: okopové prkno 3m | X24: =IF(I44=3,J46-I46,0)+IF(K44=3,L46-K46,0)+IF(M44=3,N46-M46,0)+IF(O44=3,P46-O46,0)+IF(Q44=3,R46-Q46,0)+IF(S44=3,T46-S46,0)+IF(U44=3,V46-U46,0)+IF(W44=3,X46-W46,0)+IF(Y44=3,Z46-Y46,0)+IF(AA44=3,AB46-AA46,0) -> 34 | Y24: 6.5 | Z24: 221
H25: -1 | I25: =I26-2 -> -1.6 | J25: =$K$41-2 -> -1.6 | K25: =$K$41-2 -> -1.6 | L25: =$K$41-2 -> -1.6 | M25: =$K$41-2 -> -1.6 | V25: okopové prkno 2m | X25: =IF(I44=2,J46-I46,0)+IF(K44=2,L46-K46,0)+IF(M44=2,N46-M46,0)+IF(O44=2,P46-O46,0)+IF(Q44=2,R46-Q46,0)+IF(S44=2,T46-S46,0)+IF(U44=2,V46-U46,0)+IF(W44=2,X46-W46,0)+IF(Y44=2,Z46-Y46,0)+IF(AA44=2,AB46-AA46,0) -> 0 | Y25: 4.5 | Z25: 0
H26: 0 | I26: =$K$41 -> 0.4 | J26: =$K$41 -> 0.4 | K26: =$K$41 -> 0.4 | L26: =$K$41 -> 0.4 | M26: =$K$41 -> 0.4 | V26: konzola | Y26: 10 | Z26: 0
H27: 1 | I27: =I26+$D$86 -> 2.4 | J27: =J26+$D$86 -> 2.4 | K27: =K26+$D$86 -> 2.4 | L27: =L26+$D$86 -> 2.4 | M27: =M26+$D$86 -> 2.4 | V27: pevna spojka | X27: =J46*2 -> 10 | Y27: 1.15 | Z27: 11.5
H28: 2 | I28: 4.4 | J28: 4.4 | K28: 4.4 | L28: 4.4 | M28: 4.4 | V28: otočná spojka | X28: =J46 -> 5 | Y28: 1.35 | Z28: 6.75
H29: 3 | I29: 6.4 | J29: 6.4 | K29: 6.4 | L29: 6.4 | M29: 6.4 | V29: závlačná spojka | X29: =J46*2 -> 10 | Y29: 0.8 | Z29: 8
H30: 4 | I30: 8.4 | J30: 8.4 | K30: 8.4 | L30: 8.4 | M30: 8.4 | V30: CELKOVÁ HMOTNOST [kg] | Z30: =SUM(Z6:Z29) -> 2957.75
H31: 5 | I31: 10.4 | J31: 10.4 | K31: 10.4 | L31: 10.4 | M31: 10.4
H32: 6 | I32: 12.4 | J32: 12.4 | K32: 12.4 | L32: 12.4 | M32: 12.4
H33: 7 | I33: 14.4 | J33: 14.4 | K33: 14.4 | L33: 14.4 | M33: 14.4
H34: 8 | I34: 16.4 | J34: 16.4 | K34: 16.4 | L34: 16.4 | M34: 16.4
H35: 9 | I35: 18.4 | J35: 18.4 | K35: 18.4 | L35: 18.4 | M35: 18.4
H36: 10 | I36: 20.4 | J36: 20.4 | K36: 20.4 | L36: 20.4 | M36: 20.4
H37: 11 | I37: 22.4 | J37: 22.4 | K37: 22.4 | L37: 22.4 | M37: 22.4
H38: 12 | I38: 24.4 | J38: 24.4 | K38: 24.4 | L38: 24.4 | M38: 24.4
H39: 13 | I39: 26.4 | J39: 26.4 | K39: 26.4 | L39: 26.4 | M39: 26.4
H41: LEŠENÍ | I41: výška založení [m] | K41: 0.4 | L41: [m] | M41: nepsat nuly v kolonce "patro",pokud není sestava lešení využita | S41: Poznámka: | T41: =IF(Půdorys!I8=0,"",Půdorys!I8) -> 
I42: ZALOŽENÍ | J42: VÝŠKA P.P. | K42: ZALOŽENÍ | L42: VÝŠKA P.P. | M42: ZALOŽENÍ | N42: VÝŠKA P.P. | O42: ZALOŽENÍ | P42: VÝŠKA P.P. | Q42: ZALOŽENÍ | R42: VÝŠKA P.P. | S42: ZALOŽENÍ | T42: VÝŠKA P.P. | U42: ZALOŽENÍ | V42: VÝŠKA P.P. | W42: ZALOŽENÍ | X42: VÝŠKA P.P. | Y42: ZALOŽENÍ | Z42: VÝŠKA P.P. | AA42: ZALOŽENÍ | AB42: VÝŠKA P.P.
H43: SESTAVA | I43: 1 | K43: 2 | M43: 3 | O43: 4 | Q43: 5 | S43: 6 | U43: 7 | W43: 8 | Y43: 9 | AA43: 10
H44: DÉLKA SESTAVY | I44: 3 | K44: 3 | M44: 3 | O44: 3 | Q44: 3 | S44: 3 | U44: 0 | W44: 0 | Y44: 0 | AA44: 0
H45: "potvrdit"
H46: PATRO | I46: 0 | J46: 5 | K46: 0 | L46: 6 | M46: 0 | N46: 6 | O46: 0 | P46: 6 | Q46: 0 | R46: 6 | S46: 0 | T46: 5
H47: POSUN
H48: plocha [m2] | I48: =(J46-I46)*$D$86*I44 -> 30 | K48: =L46*$D$86*K44 -> 36 | M48: =N46*$D$86*M44 -> 36 | O48: =P46*$D$86*O44 -> 36 | Q48: =R46*$D$86*Q44 -> 36 | S48: =T46*$D$86*S44 -> 30 | U48: =V46*$D$86*U44 -> 0 | W48: =X46*$D$86*W44 -> 0 | Y48: =Z46*$D$86*Y44 -> 0 | AA48: =AB46*$D$86*AA44 -> 0
H49: výška | I49: =IF(I46=-0.5,M22,INDEX($M$23:$M$39,I46+4)) -> 0.4 | J49: =INDEX($M$23:$M$39,J46+4) -> 10.4 | K49: =IF(K46=-0.5,M22,INDEX($M$23:$M$39,K46+4)) -> 0.4 | L49: =INDEX($M$23:$M$39,L46+4) -> 12.4 | M49: =IF(M46=-0.5,M22,INDEX($M$23:$M$39,M46+4)) -> 0.4 | N49: =INDEX($M$23:$M$39,N46+4) -> 12.4 | O49: =IF(O46=-0.5,M22,INDEX($M$23:$M$39,O46+4)) -> 0.4 | P49: =INDEX($M$23:$M$39,P46+4) -> 12.4 | Q49: =IF(Q46=-0.5,M22,INDEX($M$23:$M$39,Q46+4)) -> 0.4 | R49: =INDEX($M$23:$M$39,R46+4) -> 12.4 | S49: =IF(S46=-0.5,M22,INDEX($M$23:$M$39,S46+4)) -> 0.4 | T49: =INDEX($M$23:$M$39,T46+4) -> 10.4 | U49: =IF(U46=-0.5,M22,INDEX($M$23:$M$39,U46+4)) -> 0.4 | V49: =INDEX($M$23:$M$39,V46+4) -> 0.4 | W49: =IF(W46=-0.5,M22,INDEX($M$23:$M$39,W46+4)) -> 0.4 | X49: =INDEX($M$23:$M$39,X46+4) -> 0.4 | Y49: =IF(Y46=-0.5,M22,INDEX($M$23:$M$39,Y46+4)) -> 0.4 | Z49: =INDEX($M$23:$M$39,Z46+4) -> 0.4 | AA49: =IF(AA46=-0.5,M22,INDEX($M$23:$M$39,AA46+4)) -> 0.4 | AB49: =INDEX($M$23:$M$39,AB46+4) -> 0.4
H55: -1
H56: 0 | I56: =$I$49 -> 0.4 | J56: =$J$49 -> 10.4
H57: 1 | I57: =$I$49 -> 0.4 | J57: =$J$49 -> 10.4
H58: 2 | I58: =$I$49 -> 0.4 | J58: =$J$49 -> 10.4
H59: 3 | I59: =$I$49 -> 0.4 | J59: =$J$49 -> 10.4 | K59: =$K$49 -> 0.4 | L59: =$L$49 -> 12.4
H60: 4 | K60: =$K$49 -> 0.4 | L60: =$L$49 -> 12.4
H61: 5 | K61: =$K$49 -> 0.4 | L61: =$L$49 -> 12.4
H62: 6 | K62: =$K$49 -> 0.4 | L62: =$L$49 -> 12.4 | M62: =$M$49 -> 0.4 | N62: =$N$49 -> 12.4
H63: 7 | M63: =$M$49 -> 0.4 | N63: =$N$49 -> 12.4
H64: 8 | M64: =$M$49 -> 0.4 | N64: =$N$49 -> 12.4 | O64: =$O$49 -> 0.4 | P64: =$P$49 -> 12.4
H65: 9 | M65: =$M$49 -> 0.4 | N65: =$N$49 -> 12.4 | O65: =$O$49 -> 0.4 | P65: =$P$49 -> 12.4
H66: 10 | O66: =$O$49 -> 0.4 | P66: =$P$49 -> 12.4
H67: 11 | O67: =$O$49 -> 0.4 | P67: =$P$49 -> 12.4 | Q67: =$Q$49 -> 0.4 | R67: =$R$49 -> 12.4
H68: 12 | Q68: =$Q$49 -> 0.4 | R68: =$R$49 -> 12.4
C69: Pomocný výpočet počtu sestav lešení: | H69: 13 | Q69: =$Q$49 -> 0.4 | R69: =$R$49 -> 12.4
C70: Délka: | H70: 14 | Q70: =$Q$49 -> 0.4 | R70: =$R$49 -> 12.4 | S70: =$S$49 -> 0.4 | T70: =$T$49 -> 10.4
C71: přesah za roh objektu: | D71: Ne | H71: 15 | S71: =$S$49 -> 0.4 | T71: =$T$49 -> 10.4
C72: Požadovaná minimální délka lešení [m] | D72: =IF(D71=Data_podpora!B17,'stěna D'!D12+2,IF('stěna D'!D71=Data_podpora!B14,'stěna D'!D12+0.5,IF(D71=Data_podpora!B13,'stěna D'!D12,'stěna D'!D12+1))) -> 16.4 | E72: [m] | H72: 16 | S72: =$S$49 -> 0.4 | T72: =$T$49 -> 10.4
C73: Počet sestav lešení (3m) [-] | D73: =ROUNDDOWN(D72/E73,0) -> 5 | E73: 3 | F73: =D73*E73 -> 15 | G73: [m] | H73: 17 | S73: =$S$49 -> 0.4 | T73: =$T$49 -> 10.4 | U73: =$U$49 -> 0.4 | V73: =$V$49 -> 0.4
C74: Počet sestav lešení (2m) [-] | D74: =ROUNDDOWN(MOD(D72,E73)/E74,0) -> 0 | E74: 2 | F74: =D74*E74 -> 0 | G74: [m] | H74: 18 | U74: =$U$49 -> 0.4 | V74: =$V$49 -> 0.4
C75: Počet sestav lešení (0,75m) [-] | D75: =ROUNDUP(D72-(D73*E73+D74*E74),0) -> 2 | E75: 0,75 | F75: =D75*E75 -> 1.5 | G75: [m] | H75: 19 | U75: =$U$49 -> 0.4 | V75: =$V$49 -> 0.4
C76: Reálná délka lešení [m] | D76: =D73*E73+D74*E74+D75*E75 -> 16.5 | E76: [m] | H76: 20 | U76: =$U$49 -> 0.4 | V76: =$V$49 -> 0.4
H77: 21 | W77: =$W$49 -> 0.4 | X77: =$X$49 -> 0.4
C78: Výška: | H78: 22 | W78: =$W$49 -> 0.4 | X78: =X77 -> 0.4
C79: Lešení pro: | D79: Fasádu | H79: 23 | W79: =$W$49 -> 0.4 | X79: =X78 -> 0.4
C80: Výška zábradlí posledního patra [m] | D80: 1 | E80: [m] | H80: 24 | W80: =$W$49 -> 0.4 | X80: =X79 -> 0.4 | Y80: =$Y$49 -> 0.4 | Z80: =$Z$49 -> 0.4
C81: Požadovaná výška [m] | D81: =IF(D79=Data_podpora!B22,'stěna D'!D14+D80,'stěna D'!D14) -> 15 | E81: [m] | H81: 25 | Y81: =$Y$49 -> 0.4 | Z81: =Z80 -> 0.4
A82: Založení | C82: Výška nejnižžšího bodu terénu [m] | D82: =MIN(D4,D5,D6,D8) -> 0 | E82: [m] | H82: 26 | Y82: =$Y$49 -> 0.4 | Z82: =Z81 -> 0.4
C83: Výška nejvyššího bodu terénu [m] | D83: =D8 -> 2.5 | E83: [m] | H83: 27 | Y83: =$Y$49 -> 0.4 | Z83: =Z82 -> 0.4 | AA83: =$AA$49 -> 0.4 | AB83: =$AB$49 -> 0.4
C84: Rozdíl max a min [m] | D84: =D83-D82 -> 2.5 | E84: [m] | F84: =IF(D84<0.4,"(Patky 0,4m)",IF(D84<=1,"(Patky 1m)",IF(2>=D84>1,"(Rám 1m)",IF(5>D84>2,"(Rám 2m)","")))) -> (Rám 1m) | H84: 28 | AA84: =$AA$49 -> 0.4 | AB84: =AB83 -> 0.4
B85: # | C85: Výška založení [m] | D85: =D8+0.1 -> 2.6 | E85: [m] | H85: 29 | AA85: =$AA$49 -> 0.4 | AB85: =AB84 -> 0.4
C86: Modulová výška patra lešení [m] | D86: 2 | E86: [m] | H86: 30 | AA86: =$AA$49 -> 0.4 | AB86: =AB85 -> 0.4
C87: Počet pater lešení [-]; výška [m]) | D87: =IF(D81-D85<11,ROUNDDOWN((D81-D85)/2.15,0),ROUNDDOWN((D81-D85)/2.1,0)) -> 5 | E87: pater | F87: =INDEX(M27:M39,D87) -> 10.4 | G87: [m] | H87: 31
C88: Reálná výška lešení [m] | D88: =D87*D86+D85+D80 -> 13.6 | E88: [m]
A90: Uskočení pater | B90: → | C90: Hranice posouzení uskočení | D90: 4 | F90: =INDEX(M27:M39,D90) -> 8.4 | G90: [m]
C91: Zbývající výška do hřebene | D91: =$D$14-F90 -> 6.6 | E91: [m]
C92: Počet uskočených pater | D92: =IF(D91<11,ROUNDDOWN((D91)/2.6,0),ROUNDDOWN((D91)/2.6,0)) -> 2 | E92: =IF(D92=1,"patro",IF(D92<=4,"patra","pater")) -> patra
C93: Rozdíl výšky okapu a nejbližšího patra | D93: =$J$4-(INDEX(M27:M39,D90)) -> 3.36 | E93: [m]
C94: Rozdíl výšek na 3 m sestavu | D94: =$N$5*$E$73 -> 1.185365854 | E94: [m]
B95: =IF($D$92>=1,1,"") -> 1 | C95: První sestava | D95: =D93+D94 -> 4.545365854 | E95: [m] | F95: =IF(D$95<=2,"posoudit další",IF(D$95<=3.2,"ponechat","pokračuje patrem")) -> pokračuje patrem
B96: =IF(1<=$D$92,2,"X") -> 2 | C96: Druhá sestava | D96: =IF(F95="ponechat",$D$93+$D$94*B96,$D$93+$D$94*B96-2) -> 3.730731707 | E96: [m] | F96: =IF(D96<2,"posoudit další",IF(D96<=3.2,"ponechat",IF(D96>3.2,"pokračuje patrem",""))) -> pokračuje patrem
B97: =IF(2<=$D$92,3,"X") -> 3 | C97: Třetí sestava | D97: =IF(F96="ponechat",$D$93+$D$94*B97,$D$93+$D$94*B97-2) -> 4.916097561 | E97: [m] | F97: =IF(D97<2,"posoudit další",IF(D97<=3.2,"ponechat",IF(D97>3.2,"pokračuje patrem",""))) -> pokračuje patrem
B98: =IF(3<=$D$92,4,"X") -> X | C98: Čtvrtá sestava | D98: =IF(F97="ponechat",$D$93+$D$94*B98,$D$93+$D$94*B98-2) ->  | E98: [m] | F98: =IF(D98<2,"posoudit další",IF(D98<=3.2,"ponechat",IF(D98>3.2,"pokračuje patrem",""))) -> 
C103: NAKLÁDACÍ LIST
C105: stavitelná patka 0,5m | D105: počet kusů
C106: stavitelná patka 1m | D106: =IF(D107>=0,($D$73+$D$74+$D$75)*2+2-D107,($D$73+$D$74+$D$75)*2+2) -> 14
C107: rám 2m | D107: 2
C108: rám 1m | D108: =(($D$73+$D$74+$D$75)+1)*$D$87 -> 40
C109: podlaha 3m | D109: =IF(D85>=1,($D$73+$D$74+$D$75)+1,0) -> 8
C110: podlaha 2m | D110: =(D73*D87-$D112)*2 -> 40
C111: průlezová podlaha 3m | D111: =D74*D87 -> 0
C112: zábradlí 3m | D112: =D87 -> 5
C113: zábradlí 2m | D113: =(1+$D$87*2)*D73 -> 55
C114: diagonální úchyt | D114: =(1+$D$87*2)*D74 -> 0
C115: diagonála 3m
C116: diagonála 2m | D116: =$D$87*(ROUNDUP((D73+D74+D75)/4,0)) -> 10
C117: kotva 0,5 m | D117: =IF(D116=0,$D$87*ROUNDUP(D74/4,0),0) -> 0
C118: kotva dlouhá 1 m | D118: =(($D$87-1)*SUM(D73:D75))/2 -> 14
C119: eLko / sloupek
C120: eLko 2 m | D120: =SUM(D73:D75)+1 -> 8
C121: Háčko
C122: boční zábradlí
C123: okopové prkno 3m | D123: =D87*2 -> 10
C124: okopové prkno 2m | D124: =D73*D87 -> 25
C125: konzola | D125: =D74*D87 -> 0
C126: pevna spojka
C127: otočná spojka
C128: závlačná spojka

Sheet stěna E
C1: Stěna E | D1: Výkres: | H1: Data grafu:
C2: Nastavení parametrů výpočtu: | I2: Tvar střechy | K2: Tvar terénu | M2: úhel alfa | V2: NAKLÁDACÍ LIST: | X2: =$C$1 -> Stěna E | Y2: =IF(AD6=0,"(BUDE NAKLÁDÁNO POUZE AUTO)","") ->  | AB2: VYTÍŽENOST ODVOZNÍHO PROSTŘEDKU:
C3: Terén: absolutní výška (±0,00 = svislice od hřebene střechy na terén) | I3: osa x | J3: osa y | K3: osa x | L3: osa y | M3: tg A | N3: =($D$14-$J$4)/($D$12/2) -> 0 | V3: obestavběná plocha lešení [m2] | Y3: =IF(K41>=1,SUM(I48,K48,M48,O48,Q48,S48,U48,W48,Y48,AA48)+SUM(I44,K44,M44,O44,Q44,S44,U44,W44,Y44,AA44)*2+SUM(I44,K44,M44,O44,Q44,S44,U44,W44,Y44,AA44),SUM(I48,K48,M48,O48,Q48,S48,U48,W48,Y48,AA48)+SUM(I44,K44,M44,O44,Q44,S44,U44,W44,Y44,AA44)*2) -> 252 | Z3: [m2] | AB3: [kg] | AC3: 1. cesta | AF3: 2.cesta
B4: → | C4: Výška terénu v levém rohu [m] | D4: 0 | E4: [m] | H4: vlevo | I4: 0 | J4: =IF($D$13=Data_podpora!$B$9,$D$14,$D$15+$D$4) -> 11.76 | K4: 0 | L4: =$D$4 -> 0 | M4: A | N4: =DEGREES(ATAN(N3)) -> 0 | V4: Komponenta | X4: počet kusů [ks] | Y4: jednotková hmotnost [kg/ks] | Z4: hmotnost [kg] | AC4: KAPACITA | AD4: VYUŽITO | AE4: Zbývá | AF4: KAPACITA | AG4: VYUŽITO | AH4: ZBÝVÁ
B5: → | C5: Výška terénu v pravém rohu [m] | D5: 0 | E5: [m] | H5: max | I5: =$D$9 -> 0 | J5: =IF($D$12/2<I5,-$N$3*I5+$J$4+$N$3*$D$12,$N$3*I5+$J$4) -> 11.76 | K5: =$D$9 -> 0 | L5: =$D$8 -> 0 | M5: tg A | N5: =TAN(RADIANS($N$4)) -> 0 | AB5: AUTO | AC5: 2500 | AD5: =IF(Z30<=AC5,SUM(Z6:Z29),SUM(Z6:Z9,Z26:Z29,Z15:Z23,Z13/2,Z14/2)) -> 1196.2 | AE5: =IF((AC5-AD5)<=0,0,AC5-AD5) -> 1303.8 | AF5: 2500 | AG5: =IF(AC5-AD5<=0,-(AC5-AD5),0) -> 0 | AH5: =AF5-AG5 -> 2500
B6: → | C6: Výška nejnižšího bodu terénu [m] | D6: 0 | E6: [m] | H6: min | I6: =$D$7 -> 0 | J6: =IF($D$12/2>I6,$N$3*I6+$J$4,-$N$3*I6+$J$4+$N$3*$D$12) -> 11.76 | K6: =$D$7 -> 0 | L6: =$D$6 -> 0 | M6: sklon | N6: =$N$5 -> 0 | V6: stavitelná patka 0,5m | X6: =IF(X7>0,(COUNT(I46:AB46)+2)-X7,(COUNT(I46:AB46)+2)) -> 16 | Y6: 3.1 | Z6: =Y7*X6 -> 75.2 | AB6: ZÁVĚS | AC6: 3500 | AD6: =IF(Z30<=AC5,0,SUM(Z10:Z12,Z24:Z25,Z13/2,Z14/2)) -> 1899.25 | AE6: =IF((AC6-AD6)<=0,0,AC6-AD6) -> 1600.75 | AF6: 3500 | AG6: =IF(AC6-AD6<=0,-(AC6-AD6),0) -> 0 | AH6: =AF6-AG6 -> 3500
B7: → | C7: Místo nejnižšího bodu (zleva) [m] | D7: 0 | E7: [m] | H7: top | I7: =$D$12/2 -> 10.5 | J7: =$D$14 -> 11.76 | K7: =$D$12/2 -> 10.5 | L7: =0 -> 0 | V7: stavitelná patka 1m | X7: 0 | Y7: 4.7 | Z7: =Y9*X7 -> 0
B8: → | C8: Výška nejvyššího bodu terénu [m] | D8: 0 | E8: [m] | H8: vpravo | I8: =$D$12 -> 21 | J8: =$J$4 -> 11.76 | K8: =$D$12 -> 21 | L8: =$D$5 -> 0 | V8: rám 2m | X8: =IF(X9>0,SUM(J46-I46,L46-K46,N46-M46,P46-O46,R46-Q46,T46-S46,V46-U46,X46-W46,Z46-Y46,AB46-AA46)+MIN(J46-I46,L46-K46,N46-M46,P46-O46,R46-Q46,T46-S46,V46-U46,X46-W46,Z46-Y46,AB46-AA46)+MAX(J46-I46,L46-K46,N46-M46,P46-O46,R46-Q46,T46-S46,V46-U46,X46-W46,Z46-Y46,AB46-AA46)-MIN(J46-I46,L46-K46,N46-M46,P46-O46,R46-Q46,T46-S46,V46-U46,X46-W46,Z46-Y46,AB46-AA46)-X9,SUM(J46-I46,L46-K46,N46-M46,P46-O46,R46-Q46,T46-S46,V46-U46,X46-W46,Z46-Y46,AB46-AA46)+MIN(J46-I46,L46-K46,N46-M46,P46-O46,R46-Q46,T46-S46,V46-U46,X46-W46,Z46-Y46,AB46-AA46)+MAX(J46-I46,L46-K46,N46-M46,P46-O46,R46-Q46,T46-S46,V46-U46,X46-W46,Z46-Y46,AB46-AA46)-MIN(J46-I46,L46-K46,N46-M46,P46-O46,R46-Q46,T46-S46,V46-U46,X46-W46,Z46-Y46,AB46-AA46)) -> 40 | Y8: 16.5 | Z8: =Y8*X8 -> 660
B9: → | C9: Místo nejvyššího bodu (zleva) [m] | D9: 0 | E9: [m] | V9: rám 1m | X9: 0 | Y9: 11.3 | Z9: 0
I10: Tvar střechy | K10: Tvar terénu | M10: úhel alfa | V10: podlaha 3m | X10: =((IF(I44=3,J46-I46,0)+IF(K44=3,L46-K46,0)+IF(M44=3,N46-M46,0)+IF(O44=3,P46-O46,0)+IF(Q44=3,R46-Q46,0)+IF(S44=3,T46-S46,0)+IF(U44=3,V46-U46,0)+IF(W44=3,X46-W46,0)+IF(Y44=3,Z46-Y46,0)+IF(AA44=3,AB46-AA46,0))-X12)*2 -> 60 | Y10: 22 | Z10: 1320
C11: Střecha: | I11: osa x | J11: osa y | K11: osa x | L11: osa y | M11: tg A | N11: =($D$14-$J$4)/($D$17) ->  | V11: podlaha 2m | X11: =(IF(I44=2,J46-I46,0)+IF(K44=2,L46-K46,0)+IF(M44=2,N46-M46,0)+IF(O44=2,P46-O46,0)+IF(Q44=2,R46-Q46,0)+IF(S44=2,T46-S46,0)+IF(U44=2,V46-U46,0)+IF(W44=2,X46-W46,0)+IF(Y44=2,Z46-Y46,0)+IF(AA44=2,AB46-AA46,0))*2 -> 0 | Y11: 14.5 | Z11: 0
C12: Délka strany [m] | D12: =Půdorys!C9 -> 21 | E12: [m] | H12: vlevo | I12: 0 | J12: =$D$15+$D$4 -> 11.76 | K12: 0 | L12: =$D$4 -> 0 | M12: A | N12: =DEGREES(ATAN(N11)) ->  | V12: průlezová podlaha 3m | X12: =MAX(J46:AB46) -> 5 | Y12: 28 | Z12: 140
B13: → | C13: Tvar střechy: | D13: sedlová | H13: max | I13: =$D$9 -> 0 | J13: =IF($I$17<I13,-$N$3*I13+$J$4+$N$11*$D$12,IF(I13<$I$14,$N$11*I13+$J$4,J14)) ->  | K13: =$D$9 -> 0 | L13: =$D$8 -> 0 | M13: tg A | N13: =TAN(RADIANS($N$12)) ->  | V13: zábradlí 3m | X13: =IF(I44=3,2*(J46-I46)+1,0)+IF(K44=3,2*(L46-K46)+1,0)+IF(M44=3,2*(N46-M46)+1,0)+IF(O44=3,2*(P46-O46)+1,0)+IF(Q44=3,2*(R46-Q46)+1,0)+IF(S44=3,2*(T46-S46)+1,0)+IF(U44=3,2*(V46-U46)+1,0)+IF(W44=3,2*(X46-W46)+1,0)+IF(Y44=3,2*(Z46-Y46)+1,0)+IF(AA44=3,2*(AB46-AA46)+1,0) -> 77 | Y13: 5.5 | Z13: 423.5
B14: → | C14: =IF('stěna E'!$D$13=Data_podpora!$B$9,"Výška stěny [m]","Výška uprostřed stěny [m]") -> Výška uprostřed stěny [m] | D14: =507.76-496 -> 11.76 | E14: [m] | H14: min | I14: =$D$7 -> 0 | J14: =IF($I$13>=I14,$N$11*I14+$J$4,IF(I14<=$I$16,J12,-$N$11*I14+$J$12+$N$11*$D$12)) ->  | K14: =$D$7 -> 0 | L14: =$D$6 -> 0 | M14: sklon | N14: =$N$13 ->  | V14: zábradlí 2m | X14: =IF(I44=2,2*(J46-I46)+1,0)+IF(K44=2,2*(L46-K46)+1,0)+IF(M44=2,2*(N46-M46)+1,0)+IF(O44=2,2*(P46-O46)+1,0)+IF(Q44=2,2*(R46-Q46)+1,0)+IF(S44=2,2*(T46-S46)+1,0)+IF(U44=2,2*(V46-U46)+1,0)+IF(W44=2,2*(X46-W46)+1,0)+IF(Y44=2,2*(Z46-Y46)+1,0)+IF(AA44=2,2*(AB46-AA46)+1,0) -> 0 | Y14: 3.5 | Z14: 0
B15: =IF($D$13=Data_podpora!B9,"","→") -> → | C15: =IF($D$13=Data_podpora!$B$9,"","Výška od terénu k okapu (levý) [m]") -> Výška od terénu k okapu (levý) [m] | D15: =507.76-496 -> 11.76 | E15: =IF($D$13=Data_podpora!$B$9,"","[m]") -> [m] | H15: polov1 | I15: =$D$17 -> 0 | J15: =$D$14 -> 11.76 | K15: =$D$17 -> 0 | L15: =$D$18 -> 0 | V15: diagonální úchyt | X15: =X16/MAX(I46:AB46) -> 2 | Y15: 0.5 | Z15: 1
C16: =IF(D13=Data_podpora!B10,"Upřesňující parametry pro polovalbovou střechu:","") ->  | H16: top | I16: =$D$12/2 -> 10.5 | J16: =$D$14 -> 11.76 | K16: =$D$12/2 -> 10.5 | L16: =0 -> 0 | V16: diagonála 3m | X16: =MAX(J46-I46,L46-K46,N46-M46,P46-O46,R46-Q46,T46-S46,V46-U46,X46-W46,Z46-Y46,AB46-AA46)*ROUNDUP((IF(I44=3,I44,0)+IF(K44=3,K44,0)+IF(M44=3,M44,0)+IF(O44=3,O44,0)+IF(Q44=3,Q44,0)+IF(S44=3,S44,0)+IF(U44=3,U44,0)+IF(W44=3,W44,0)+IF(Y44=3,Y44,0)+IF(AA44=3,AA44,0))/20,0) -> 10 | Y16: 11 | Z16: 110
B17: =IF($D$13=Data_podpora!$B$10,'stěna E'!$B$15,"") ->  | C17: =IF($D$13=Data_podpora!$B$10,"Místo polovalby [m]","") ->  | E17: =IF($D$13=Data_podpora!$B$10,"[m]","") ->  | H17: polov2 | I17: =$D$12-$D$17 -> 21 | J17: =$D$14 -> 11.76 | K17: =$D$12-$D$17 -> 21 | L17: =$D$19 -> 0 | V17: diagonála 2m | X17: =IF(X16=0,MAX(J46-I46,L46-K46,N46-M46,P46-O46,R46-Q46,T46-S46,V46-U46,X46-W46,Z46-Y46,AB46-AA46)*ROUNDUP((IF(I44=2,I44,0)+IF(K44=2,K44,0)+IF(M44=2,M44,0)+IF(O44=2,O44,0)+IF(Q44=2,Q44,0)+IF(S44=2,S44,0)+IF(U44=2,U44,0)+IF(W44=2,W44,0)+IF(Y44=2,Y44,0)+IF(AA44=2,AA44,0))/12,0),0) -> 0 | Y17: 8 | Z17: 0
B18: =IF($D$13=Data_podpora!$B$10,'stěna E'!$B$15,"") ->  | C18: =IF($D$13=Data_podpora!$B$10,"Výška terénu v místě levé polovalby [m]","") ->  | E18: =IF($D$13=Data_podpora!$B$10,"[m]","") ->  | H18: vpravo | I18: =$D$12 -> 21 | J18: =$J$4 -> 11.76 | K18: =$D$12 -> 21 | L18: =$D$5 -> 0 | V18: kotva 0,5 m | X18: =IF(X19=0,ROUNDUP(X8*0.45,0),ROUNDUP(X8*0.45,0)-X19) -> 18 | Y18: 2 | Z18: 36
B19: =IF($D$13=Data_podpora!$B$10,'stěna E'!$B$15,"") ->  | C19: =IF($D$13=Data_podpora!$B$10,"Výška terénu v místě pravé polovalby [m]","") ->  | E19: =IF($D$13=Data_podpora!$B$10,"[m]","") ->  | V19: kotva dlouhá 1 m | X19: 0 | Y19: 3.8 | Z19: 0
H20: Patra lešení | V20: eLko / sloupek | X20: =IF(X22=0,COUNT(J46,L46,N46,P46,R46,T46,V46,X46,Z46,AB46)+1,(COUNT(J46,L46,N46,P46,R46,T46,V46,X46,Z46,AB46)+1)-X22) -> 8 | Y20: 5 | Z20: 40
V21: eLko 2 m | Y21: 11.5 | Z21: 0
B22: =IF($D$21=Data_podpora!B30,"→","") ->  | E22: =IF(D21=Data_podpora!B30,"[m]","") ->  | H22: -0,5 | I22: =I26-1 -> -0.9 | J22: =J26-1 -> -0.9 | K22: =K26-1 -> -0.9 | L22: =L26-1 -> -0.9 | M22: =M26-1 -> -0.9 | V22: Háčko | X22: =2*(MAX(I46:AB46)-MIN(J46,L46,N46,P46,R46,T46,V46,X46,Z46,AB46)) -> 0 | Y22: 9.7 | Z22: 0
B23: =IF($D$21=Data_podpora!$B$30,"→","") ->  | C23: =IF(D21=Data_podpora!B30,"Výška od terénu (zleva) [m]","") ->  | E23: =IF(D21=Data_podpora!B30,"[m]","") ->  | H23: -3 | I23: =I24-2 -> -5.9 | J23: -5.9 | K23: -5.9 | L23: -5.9 | M23: -5.9 | V23: boční zábradlí | X23: =IF(X22=0,(MAX(J46-I46,L46-K46,N46-M46,P46-O46,R46-Q46,T46-S46,V46-U46,X46-W46,Z46-Y46,AB46-AA46)+1)*2,(MAX(J46-I46,L46-K46,N46-M46,P46-O46,R46-Q46,T46-S46,V46-U46,X46-W46,Z46-Y46,AB46-AA46)+1)*2-X22) -> 12 | Y23: 3 | Z23: 36
B24: =IF($D$21=Data_podpora!$B$30,"→","") ->  | C24: =IF(D21=Data_podpora!B30,"Šířka [m]","") ->  | E24: =IF(D21=Data_podpora!B30,"[m]","") ->  | H24: -2 | I24: -3.9 | J24: -3.9 | K24: -3.9 | L24: -3.9 | M24: -3.9 | V24: okopové prkno 3m | X24: =IF(I44=3,J46-I46,0)+IF(K44=3,L46-K46,0)+IF(M44=3,N46-M46,0)+IF(O44=3,P46-O46,0)+IF(Q44=3,R46-Q46,0)+IF(S44=3,T46-S46,0)+IF(U44=3,V46-U46,0)+IF(W44=3,X46-W46,0)+IF(Y44=3,Z46-Y46,0)+IF(AA44=3,AB46-AA46,0) -> 35 | Y24: 6.5 | Z24: 227.5
H25: -1 | I25: =I26-2 -> -1.9 | J25: =$D$85-2 -> -1.9 | K25: =$D$85-2 -> -1.9 | L25: =$D$85-2 -> -1.9 | M25: =$D$85-2 -> -1.9 | V25: okopové prkno 2m | X25: =IF(I44=2,J46-I46,0)+IF(K44=2,L46-K46,0)+IF(M44=2,N46-M46,0)+IF(O44=2,P46-O46,0)+IF(Q44=2,R46-Q46,0)+IF(S44=2,T46-S46,0)+IF(U44=2,V46-U46,0)+IF(W44=2,X46-W46,0)+IF(Y44=2,Z46-Y46,0)+IF(AA44=2,AB46-AA46,0) -> 0 | Y25: 4.5 | Z25: 0
H26: 0 | I26: =$K$41 -> 0.1 | J26: =$K$41 -> 0.1 | K26: =$K$41 -> 0.1 | L26: =$K$41 -> 0.1 | M26: =$K$41 -> 0.1 | V26: konzola | Y26: 10 | Z26: 0
H27: 1 | I27: =I26+$D$86 -> 2.1 | J27: =J26+$D$86 -> 2.1 | K27: =K26+$D$86 -> 2.1 | L27: =L26+$D$86 -> 2.1 | M27: =M26+$D$86 -> 2.1 | V27: pevna spojka | X27: =J46*2 -> 10 | Y27: 1.15 | Z27: 11.5
H28: 2 | I28: 4.1 | J28: 4.1 | K28: 4.1 | L28: 4.1 | M28: 4.1 | V28: otočná spojka | X28: =J46 -> 5 | Y28: 1.35 | Z28: 6.75
H29: 3 | I29: 6.1 | J29: 6.1 | K29: 6.1 | L29: 6.1 | M29: 6.1 | V29: závlačná spojka | X29: =J46*2 -> 10 | Y29: 0.8 | Z29: 8
H30: 4 | I30: 8.1 | J30: 8.1 | K30: 8.1 | L30: 8.1 | M30: 8.1 | Z30: =SUM(Z6:Z29) -> 3095.45
H31: 5 | I31: 10.1 | J31: 10.1 | K31: 10.1 | L31: 10.1 | M31: 10.1
H32: 6 | I32: 12.1 | J32: 12.1 | K32: 12.1 | L32: 12.1 | M32: 12.1
H33: 7 | I33: 14.1 | J33: 14.1 | K33: 14.1 | L33: 14.1 | M33: 14.1
H34: 8 | I34: 16.1 | J34: 16.1 | K34: 16.1 | L34: 16.1 | M34: 16.1
H35: 9 | I35: 18.1 | J35: 18.1 | K35: 18.1 | L35: 18.1 | M35: 18.1
H36: 10 | I36: 20.1 | J36: 20.1 | K36: 20.1 | L36: 20.1 | M36: 20.1
H37: 11 | I37: 22.1 | J37: 22.1 | K37: 22.1 | L37: 22.1 | M37: 22.1
H38: 12 | I38: 24.1 | J38: 24.1 | K38: 24.1 | L38: 24.1 | M38: 24.1
H39: 13 | I39: 26.1 | J39: 26.1 | K39: 26.1 | L39: 26.1 | M39: 26.1
H41: LEŠENÍ | I41: výška založení [m] | K41: =D8+0.1 -> 0.1 | L41: [m] | M41: nepsat nuly v kolonce "patro",pokud není sestava lešení využita | S41: Poznámka: | T41: =IF(Půdorys!I9=0,"",Půdorys!I9) -> 
I42: ZALOŽENÍ | J42: VÝŠKA P.P. | K42: ZALOŽENÍ | L42: VÝŠKA P.P. | M42: ZALOŽENÍ | N42: VÝŠKA P.P. | O42: ZALOŽENÍ | P42: VÝŠKA P.P. | Q42: ZALOŽENÍ | R42: VÝŠKA P.P. | S42: ZALOŽENÍ | T42: VÝŠKA P.P. | U42: ZALOŽENÍ | V42: VÝŠKA P.P. | W42: ZALOŽENÍ | X42: VÝŠKA P.P. | Y42: ZALOŽENÍ | Z42: VÝŠKA P.P. | AA42: ZALOŽENÍ | AB42: VÝŠKA P.P.
H43: SESTAVA | I43: 1 | K43: 2 | M43: 3 | O43: 4 | Q43: 5 | S43: 6 | U43: 7 | W43: 8 | Y43: 9 | AA43: 10
H44: DÉLKA SESTAVY | I44: 3 | K44: 3 | M44: 3 | O44: 3 | Q44: 3 | S44: 3 | U44: 3 | W44: 0 | Y44: 0 | AA44: 0
H45: "potvrdit"
H46: PATRO | I46: 0 | J46: 5 | K46: 0 | L46: 5 | M46: 0 | N46: 5 | O46: 0 | P46: 5 | Q46: 0 | R46: 5 | S46: 0 | T46: 5 | U46: 0 | V46: 5
H47: POSUN
H48: plocha [m2] | I48: =(J46-I46)*$D$86*I44 -> 30 | K48: =L46*$D$86*K44 -> 30 | M48: =N46*$D$86*M44 -> 30 | O48: =P46*$D$86*O44 -> 30 | Q48: =R46*$D$86*Q44 -> 30 | S48: =T46*$D$86*S44 -> 30 | U48: =V46*$D$86*U44 -> 30 | W48: =X46*$D$86*W44 -> 0 | Y48: =Z46*$D$86*Y44 -> 0 | AA48: =AB46*$D$86*AA44 -> 0
H49: výška | I49: =IF(I46=-0.5,M22,INDEX($M$23:$M$39,I46+4)) -> 0.1 | J49: =INDEX($M$23:$M$39,J46+4) -> 10.1 | K49: =IF(K46=-0.5,M22,INDEX($M$23:$M$39,K46+4)) -> 0.1 | L49: =INDEX($M$23:$M$39,L46+4) -> 10.1 | M49: =IF(M46=-0.5,M22,INDEX($M$23:$M$39,M46+4)) -> 0.1 | N49: =INDEX($M$23:$M$39,N46+4) -> 10.1 | O49: =IF(O46=-0.5,M22,INDEX($M$23:$M$39,O46+4)) -> 0.1 | P49: =INDEX($M$23:$M$39,P46+4) -> 10.1 | Q49: =IF(Q46=-0.5,M22,INDEX($M$23:$M$39,Q46+4)) -> 0.1 | R49: =INDEX($M$23:$M$39,R46+4) -> 10.1 | S49: =IF(S46=-0.5,M22,INDEX($M$23:$M$39,S46+4)) -> 0.1 | T49: =INDEX($M$23:$M$39,T46+4) -> 10.1 | U49: =IF(U46=-0.5,M22,INDEX($M$23:$M$39,U46+4)) -> 0.1 | V49: =INDEX($M$23:$M$39,V46+4) -> 10.1 | W49: =IF(W46=-0.5,M22,INDEX($M$23:$M$39,W46+4)) -> 0.1 | X49: =INDEX($M$23:$M$39,X46+4) -> 0.1 | Y49: =IF(Y46=-0.5,M22,INDEX($M$23:$M$39,Y46+4)) -> 0.1 | Z49: =INDEX($M$23:$M$39,Z46+4) -> 0.1 | AA49: =IF(AA46=-0.5,M22,INDEX($M$23:$M$39,AA46+4)) -> 0.1 | AB49: =INDEX($M$23:$M$39,AB46+4) -> 0.1
H55: -1
H56: 0 | I56: =$I$49 -> 0.1 | J56: =$J$49 -> 10.1
H57: 1 | I57: =$I$49 -> 0.1 | J57: =$J$49 -> 10.1
H58: 2 | I58: =$I$49 -> 0.1 | J58: =$J$49 -> 10.1
H59: 3 | I59: =$I$49 -> 0.1 | J59: =$J$49 -> 10.1 | K59: =$K$49 -> 0.1 | L59: =$L$49 -> 10.1
H60: 4 | K60: =$K$49 -> 0.1 | L60: =$L$49 -> 10.1
H61: 5 | K61: =$K$49 -> 0.1 | L61: =$L$49 -> 10.1
H62: 6 | K62: =$K$49 -> 0.1 | L62: =$L$49 -> 10.1 | M62: =$M$49 -> 0.1 | N62: =$N$49 -> 10.1
H63: 7 | M63: =$M$49 -> 0.1 | N63: =$N$49 -> 10.1
H64: 8 | M64: =$M$49 -> 0.1 | N64: =$N$49 -> 10.1
H65: 9 | M65: =$M$49 -> 0.1 | N65: =$N$49 -> 10.1 | O65: =$O$49 -> 0.1 | P65: =$P$49 -> 10.1
H66: 10 | O66: =$O$49 -> 0.1 | P66: =$P$49 -> 10.1
H67: 11 | O67: =$O$49 -> 0.1 | P67: =$P$49 -> 10.1
H68: 12 | O68: =$O$49 -> 0.1 | P68: =$P$49 -> 10.1 | Q68: =$Q$49 -> 0.1 | R68: =$R$49 -> 10.1
C69: Pomocný výpočet počtu sestav lešení: | H69: 13 | Q69: =$Q$49 -> 0.1 | R69: =$R$49 -> 10.1
C70: Délka: | H70: 14 | Q70: =$Q$49 -> 0.1 | R70: =$R$49 -> 10.1
C71: přesah za roh objektu: | D71: Ne | H71: 15 | Q71: =$Q$49 -> 0.1 | R71: =$R$49 -> 10.1 | S71: =$S$49 -> 0.1 | T71: =$T$49 -> 10.1
C72: Požadovaná minimální délka lešení [m] | D72: =IF(D71=Data_podpora!B17,'stěna E'!D12+2,IF('stěna E'!D71=Data_podpora!B14,'stěna E'!D12+0.5,IF(D71=Data_podpora!B13,'stěna E'!D12,'stěna E'!D12+1))) -> 21 | E72: [m] | H72: 16 | S72: =$S$49 -> 0.1 | T72: =$T$49 -> 10.1
C73: Počet sestav lešení (3m) [-] | D73: =ROUNDDOWN(D72/E73,0) -> 7 | E73: 3 | F73: =D73*E73 -> 21 | G73: [m] | H73: 17 | S73: =$S$49 -> 0.1 | T73: =$T$49 -> 10.1
C74: Počet sestav lešení (2m) [-] | D74: =ROUNDDOWN(MOD(D72,E73)/E74,0) -> 0 | E74: 2 | F74: =D74*E74 -> 0 | G74: [m] | H74: 18 | S74: =$S$49 -> 0.1 | T74: =$T$49 -> 10.1 | U74: =$U$49 -> 0.1 | V74: =$V$49 -> 10.1
C75: Počet sestav lešení (0,75m) [-] | D75: =ROUNDUP(D72-(D73*E73+D74*E74),0) -> 0 | E75: 0,75 | F75: =D75*E75 -> 0 | G75: [m] | H75: 19 | U75: =$U$49 -> 0.1 | V75: =$V$49 -> 10.1
C76: Reálná délka lešení [m] | D76: =D73*E73+D74*E74+D75*E75 -> 21 | E76: [m] | H76: 20 | U76: =$U$49 -> 0.1 | V76: =$V$49 -> 10.1
H77: 21 | U77: =$U$49 -> 0.1 | V77: =$V$49 -> 10.1 | W77: =$W$49 -> 0.1 | X77: =$X$49 -> 0.1
C78: Výška: | H78: 22 | W78: =$W$49 -> 0.1 | X78: =X77 -> 0.1
C79: Lešení pro: | D79: Fasádu | H79: 23 | W79: =$W$49 -> 0.1 | X79: =X78 -> 0.1
C80: Výška zábradlí posledního patra [m] | D80: 1 | E80: [m] | H80: 24 | W80: =$W$49 -> 0.1 | X80: =X79 -> 0.1 | Y80: =$Y$49 -> 0.1 | Z80: =$Z$49 -> 0.1
C81: Požadovaná výška [m] | D81: =IF(D79=Data_podpora!B22,'stěna E'!D14+D80,'stěna E'!D14) -> 11.76 | E81: [m] | H81: 25 | Y81: =$Y$49 -> 0.1 | Z81: =Z80 -> 0.1
A82: Založení | C82: Výška nejnižžšího bodu terénu [m] | D82: =MIN(D4,D5,D6,D8) -> 0 | E82: [m] | H82: 26 | Y82: =$Y$49 -> 0.1 | Z82: =Z81 -> 0.1
C83: Výška nejvyššího bodu terénu [m] | D83: =D8 -> 0 | E83: [m] | H83: 27 | Y83: =$Y$49 -> 0.1 | Z83: =Z82 -> 0.1 | AA83: =$AA$49 -> 0.1 | AB83: =$AB$49 -> 0.1
C84: Rozdíl max a min [m] | D84: =D83-D82 -> 0 | E84: [m] | F84: =IF(D84<0.4,"(Patky 0,4m)",IF(D84<=1,"(Patky 1m)",IF(2>=D84>1,"(Rám 1m)",IF(5>D84>2,"(Rám 2m)","")))) -> (Patky 0,4m) | H84: 28 | AA84: =$AA$49 -> 0.1 | AB84: =AB83 -> 0.1
B85: # | C85: Výška založení [m] | D85: =D8+0.1 -> 0.1 | E85: [m] | H85: 29 | AA85: =$AA$49 -> 0.1 | AB85: =AB84 -> 0.1
C86: Modulová výška patra lešení [m] | D86: 2 | E86: [m] | H86: 30 | AA86: =$AA$49 -> 0.1 | AB86: =AB85 -> 0.1
C87: Počet pater lešení [-]; výška [m]) | D87: =IF(D81-D85<11,ROUNDDOWN((D81-D85)/2.15,0),ROUNDDOWN((D81-D85)/2.1,0)) -> 5 | E87: pater | F87: =INDEX(M27:M39,D87) -> 10.1 | G87: [m] | H87: 31
C88: Reálná výška lešení [m] | D88: =D87*D86+D85+D80 -> 11.1 | E88: [m]
A90: Uskočení pater | B90: → | C90: Hranice posouzení uskočení | D90: 4 | F90: =INDEX(M27:M39,D90) -> 8.1 | G90: [m]
C91: Zbývající výška do hřebene | D91: =$D$14-F90 -> 3.66 | E91: [m]
C92: Počet uskočených pater | D92: =IF(D91<11,ROUNDDOWN((D91)/2.6,0),ROUNDDOWN((D91)/2.6,0)) -> 1 | E92: =IF(D92=1,"patro",IF(D92<=4,"patra","pater")) -> patro
C93: Rozdíl výšky okapu a nejbližšího patra | D93: =$J$4-(INDEX(M27:M39,D90)) -> 3.66 | E93: [m]
C94: Rozdíl výšek na 3 m sestavu | D94: =$N$5*$E$73 -> 0 | E94: [m]
B95: =IF($D$92>=1,1,"") -> 1 | C95: První sestava | D95: =D93+D94 -> 3.66 | E95: [m] | F95: =IF(D$95<=2,"posoudit další",IF(D$95<=3.2,"ponechat","pokračuje patrem")) -> pokračuje patrem
B96: =IF(1<=$D$92,2,"X") -> 2 | C96: Druhá sestava | D96: =IF(F95="ponechat",$D$93+$D$94*B96,$D$93+$D$94*B96-2) -> 1.66 | E96: [m] | F96: =IF(D96<2,"posoudit další",IF(D96<=3.2,"ponechat",IF(D96>3.2,"pokračuje patrem",""))) -> posoudit další
B97: =IF(2<=$D$92,3,"X") -> X | C97: Třetí sestava | D97: =IF(F96="ponechat",$D$93+$D$94*B97,$D$93+$D$94*B97-2) ->  | E97: [m] | F97: =IF(D97<2,"posoudit další",IF(D97<=3.2,"ponechat",IF(D97>3.2,"pokračuje patrem",""))) -> 
B98: =IF(3<=$D$92,4,"X") -> X | C98: Čtvrtá sestava | D98: =IF(F97="ponechat",$D$93+$D$94*B98,$D$93+$D$94*B98-2) ->  | E98: [m] | F98: =IF(D98<2,"posoudit další",IF(D98<=3.2,"ponechat",IF(D98>3.2,"pokračuje patrem",""))) -> 
C103: NAKLÁDACÍ LIST
C105: stavitelná patka 0,5m | D105: počet kusů
C106: stavitelná patka 1m | D106: =IF(D107>=0,($D$73+$D$74+$D$75)*2+2-D107,($D$73+$D$74+$D$75)*2+2) -> 14
C107: rám 2m | D107: 2
C108: rám 1m | D108: =(($D$73+$D$74+$D$75)+1)*$D$87 -> 40
C109: podlaha 3m | D109: =IF(D85>=1,($D$73+$D$74+$D$75)+1,0) -> 0
C110: podlaha 2m | D110: =(D73*D87-$D112)*2 -> 60
C111: průlezová podlaha 3m | D111: =D74*D87 -> 0
C112: zábradlí 3m | D112: =D87 -> 5
C113: zábradlí 2m | D113: =(1+$D$87*2)*D73 -> 77
C114: diagonální úchyt | D114: =(1+$D$87*2)*D74 -> 0
C115: diagonála 3m
C116: diagonála 2m | D116: =$D$87*(ROUNDUP((D73+D74+D75)/4,0)) -> 10
C117: kotva 0,5 m | D117: =IF(D116=0,$D$87*ROUNDUP(D74/4,0),0) -> 0
C118: kotva dlouhá 1 m | D118: =(($D$87-1)*SUM(D73:D75))/2 -> 14
C119: eLko / sloupek
C120: eLko 2 m | D120: =SUM(D73:D75)+1 -> 8
C121: Háčko
C122: boční zábradlí
C123: okopové prkno 3m | D123: =D87*2 -> 10
C124: okopové prkno 2m | D124: =D73*D87 -> 35
C125: konzola | D125: =D74*D87 -> 0
C126: pevna spojka
C127: otočná spojka
C128: závlačná spojka

Sheet stěna F
C1: Stěna F | D1: Výkres: | H1: Data grafu:
C2: Nastavení parametrů výpočtu: | I2: Tvar střechy | K2: Tvar terénu | M2: úhel alfa | V2: NAKLÁDACÍ LIST: | X2: =$C$1 -> Stěna F | Y2: =IF(AD6=0,"(BUDE NAKLÁDÁNO POUZE AUTO)","") -> (BUDE NAKLÁDÁNO POUZE AUTO) | AB2: VYTÍŽENOST ODVOZNÍHO PROSTŘEDKU:
C3: Terén: absolutní výška (±0,00 = svislice od hřebene střechy na terén) | I3: osa x | J3: osa y | K3: osa x | L3: osa y | M3: tg A | N3: =($D$14-$J$4)/($D$12/2) -> 0 | V3: obestavběná plocha lešení [m2] | Y3: =IF(K41>=1,SUM(I48,K48,M48,O48,Q48,S48,U48,W48,Y48,AA48)+SUM(I44,K44,M44,O44,Q44,S44,U44,W44,Y44,AA44)*2+SUM(I44,K44,M44,O44,Q44,S44,U44,W44,Y44,AA44),SUM(I48,K48,M48,O48,Q48,S48,U48,W48,Y48,AA48)+SUM(I44,K44,M44,O44,Q44,S44,U44,W44,Y44,AA44)*2) -> 36 | Z3: [m2] | AB3: [kg] | AC3: 1. cesta | AF3: 2.cesta
B4: → | C4: Výška terénu v levém rohu [m] | D4: 0 | E4: [m] | H4: vlevo | I4: 0 | J4: =IF($D$13=Data_podpora!$B$9,$D$14,$D$15+$D$4) -> 11.76 | K4: 0 | L4: =$D$4 -> 0 | M4: A | N4: =DEGREES(ATAN(N3)) -> 0 | V4: Komponenta | X4: počet kusů [ks] | Y4: jednotková hmotnost [kg/ks] | Z4: hmotnost [kg] | AC4: KAPACITA | AD4: VYUŽITO | AE4: Zbývá | AF4: KAPACITA | AG4: VYUŽITO | AH4: ZBÝVÁ
B5: → | C5: Výška terénu v pravém rohu [m] | D5: 0 | E5: [m] | H5: max | I5: =$D$9 -> 0 | J5: =IF($D$12/2<I5,-$N$3*I5+$J$4+$N$3*$D$12,$N$3*I5+$J$4) -> 11.76 | K5: =$D$9 -> 0 | L5: =$D$8 -> 0 | M5: tg A | N5: =TAN(RADIANS($N$4)) -> 0 | AB5: AUTO | AC5: 2500 | AD5: =IF(Z30<=AC5,SUM(Z6:Z29),SUM(Z6:Z9,Z26:Z29,Z15:Z23,Z13/2,Z14/2)) -> 554.55 | AE5: =IF((AC5-AD5)<=0,0,AC5-AD5) -> 1945.45 | AF5: 2500 | AG5: =IF(AC5-AD5<=0,-(AC5-AD5),0) -> 0 | AH5: =AF5-AG5 -> 2500
B6: → | C6: Výška nejnižšího bodu terénu [m] | D6: 0 | E6: [m] | H6: min | I6: =$D$7 -> 0 | J6: =IF($D$12/2>I6,$N$3*I6+$J$4,-$N$3*I6+$J$4+$N$3*$D$12) -> 11.76 | K6: =$D$7 -> 0 | L6: =$D$6 -> 0 | M6: sklon | N6: =$N$5 -> 0 | V6: stavitelná patka 0,5m | X6: =IF(X7>0,(COUNT(I46:AB46)+2)-X7,(COUNT(I46:AB46)+2)) -> 4 | Y6: 3.1 | Z6: =Y7*X6 -> 18.8 | AB6: ZÁVĚS | AC6: 3500 | AD6: =IF(Z30<=AC5,0,SUM(Z10:Z12,Z24:Z25,Z13/2,Z14/2)) -> 0 | AE6: =IF((AC6-AD6)<=0,0,AC6-AD6) -> 3500 | AF6: 3500 | AG6: =IF(AC6-AD6<=0,-(AC6-AD6),0) -> 0 | AH6: =AF6-AG6 -> 3500
B7: → | C7: Místo nejnižšího bodu (zleva) [m] | D7: 0 | E7: [m] | H7: top | I7: =$D$12/2 -> 1.125 | J7: =$D$14 -> 11.76 | K7: =$D$12/2 -> 1.125 | L7: =0 -> 0 | V7: stavitelná patka 1m | X7: 0 | Y7: 4.7 | Z7: =Y9*X7 -> 0
B8: → | C8: Výška nejvyššího bodu terénu [m] | D8: 0 | E8: [m] | H8: vpravo | I8: =$D$12 -> 2.25 | J8: =$J$4 -> 11.76 | K8: =$D$12 -> 2.25 | L8: =$D$5 -> 0 | V8: rám 2m | X8: =IF(X9>0,SUM(J46-I46,L46-K46,N46-M46,P46-O46,R46-Q46,T46-S46,V46-U46,X46-W46,Z46-Y46,AB46-AA46)+MIN(J46-I46,L46-K46,N46-M46,P46-O46,R46-Q46,T46-S46,V46-U46,X46-W46,Z46-Y46,AB46-AA46)+MAX(J46-I46,L46-K46,N46-M46,P46-O46,R46-Q46,T46-S46,V46-U46,X46-W46,Z46-Y46,AB46-AA46)-MIN(J46-I46,L46-K46,N46-M46,P46-O46,R46-Q46,T46-S46,V46-U46,X46-W46,Z46-Y46,AB46-AA46)-X9,SUM(J46-I46,L46-K46,N46-M46,P46-O46,R46-Q46,T46-S46,V46-U46,X46-W46,Z46-Y46,AB46-AA46)+MIN(J46-I46,L46-K46,N46-M46,P46-O46,R46-Q46,T46-S46,V46-U46,X46-W46,Z46-Y46,AB46-AA46)+MAX(J46-I46,L46-K46,N46-M46,P46-O46,R46-Q46,T46-S46,V46-U46,X46-W46,Z46-Y46,AB46-AA46)-MIN(J46-I46,L46-K46,N46-M46,P46-O46,R46-Q46,T46-S46,V46-U46,X46-W46,Z46-Y46,AB46-AA46)) -> 10 | Y8: 16.5 | Z8: =Y8*X8 -> 165
B9: → | C9: Místo nejvyššího bodu (zleva) [m] | D9: 0 | E9: [m] | V9: rám 1m | X9: 0 | Y9: 11.3 | Z9: 0
I10: Tvar střechy | K10: Tvar terénu | M10: úhel alfa | V10: podlaha 3m | X10: =((IF(I44=3,J46-I46,0)+IF(K44=3,L46-K46,0)+IF(M44=3,N46-M46,0)+IF(O44=3,P46-O46,0)+IF(Q44=3,R46-Q46,0)+IF(S44=3,T46-S46,0)+IF(U44=3,V46-U46,0)+IF(W44=3,X46-W46,0)+IF(Y44=3,Z46-Y46,0)+IF(AA44=3,AB46-AA46,0))-X12)*2 -> 0 | Y10: 22 | Z10: 0
C11: Střecha: | I11: osa x | J11: osa y | K11: osa x | L11: osa y | M11: tg A | N11: =($D$14-$J$4)/($D$17) ->  | V11: podlaha 2m | X11: =(IF(I44=2,J46-I46,0)+IF(K44=2,L46-K46,0)+IF(M44=2,N46-M46,0)+IF(O44=2,P46-O46,0)+IF(Q44=2,R46-Q46,0)+IF(S44=2,T46-S46,0)+IF(U44=2,V46-U46,0)+IF(W44=2,X46-W46,0)+IF(Y44=2,Z46-Y46,0)+IF(AA44=2,AB46-AA46,0))*2 -> 0 | Y11: 14.5 | Z11: 0
C12: Délka strany [m] | D12: =Půdorys!C10 -> 2.25 | E12: [m] | H12: vlevo | I12: 0 | J12: =$D$15+$D$4 -> 11.76 | K12: 0 | L12: =$D$4 -> 0 | M12: A | N12: =DEGREES(ATAN(N11)) ->  | V12: průlezová podlaha 3m | X12: =MAX(J46:AB46) -> 5 | Y12: 28 | Z12: 140
B13: → | C13: Tvar střechy: | D13: sedlová | H13: max | I13: =$D$9 -> 0 | J13: =IF($I$17<I13,-$N$3*I13+$J$4+$N$11*$D$12,IF(I13<$I$14,$N$11*I13+$J$4,J14)) ->  | K13: =$D$9 -> 0 | L13: =$D$8 -> 0 | M13: tg A | N13: =TAN(RADIANS($N$12)) ->  | V13: zábradlí 3m | X13: =IF(I44=3,2*(J46-I46)+1,0)+IF(K44=3,2*(L46-K46)+1,0)+IF(M44=3,2*(N46-M46)+1,0)+IF(O44=3,2*(P46-O46)+1,0)+IF(Q44=3,2*(R46-Q46)+1,0)+IF(S44=3,2*(T46-S46)+1,0)+IF(U44=3,2*(V46-U46)+1,0)+IF(W44=3,2*(X46-W46)+1,0)+IF(Y44=3,2*(Z46-Y46)+1,0)+IF(AA44=3,2*(AB46-AA46)+1,0) -> 11 | Y13: 5.5 | Z13: 60.5
B14: → | C14: =IF('stěna F'!$D$13=Data_podpora!$B$9,"Výška stěny [m]","Výška uprostřed stěny [m]") -> Výška uprostřed stěny [m] | D14: =507.76-496 -> 11.76 | E14: [m] | H14: min | I14: =$D$7 -> 0 | J14: =IF($I$13>=I14,$N$11*I14+$J$4,IF(I14<=$I$16,J12,-$N$11*I14+$J$12+$N$11*$D$12)) ->  | K14: =$D$7 -> 0 | L14: =$D$6 -> 0 | M14: sklon | N14: =$N$13 ->  | V14: zábradlí 2m | X14: =IF(I44=2,2*(J46-I46)+1,0)+IF(K44=2,2*(L46-K46)+1,0)+IF(M44=2,2*(N46-M46)+1,0)+IF(O44=2,2*(P46-O46)+1,0)+IF(Q44=2,2*(R46-Q46)+1,0)+IF(S44=2,2*(T46-S46)+1,0)+IF(U44=2,2*(V46-U46)+1,0)+IF(W44=2,2*(X46-W46)+1,0)+IF(Y44=2,2*(Z46-Y46)+1,0)+IF(AA44=2,2*(AB46-AA46)+1,0) -> 0 | Y14: 3.5 | Z14: 0
B15: =IF($D$13=Data_podpora!B9,"","→") -> → | C15: =IF($D$13=Data_podpora!$B$9,"","Výška od terénu k okapu (levý) [m]") -> Výška od terénu k okapu (levý) [m] | D15: =507.76-496 -> 11.76 | E15: =IF($D$13=Data_podpora!$B$9,"","[m]") -> [m] | H15: polov1 | I15: =$D$17 -> 0 | J15: =$D$14 -> 11.76 | K15: =$D$17 -> 0 | L15: =$D$18 -> 0 | V15: diagonální úchyt | X15: =X16/MAX(I46:AB46) -> 1 | Y15: 0.5 | Z15: 0.5
C16: =IF(D13=Data_podpora!B10,"Upřesňující parametry pro polovalbovou střechu:","") ->  | H16: top | I16: =$D$12/2 -> 1.125 | J16: =$D$14 -> 11.76 | K16: =$D$12/2 -> 1.125 | L16: =0 -> 0 | V16: diagonála 3m | X16: =MAX(J46-I46,L46-K46,N46-M46,P46-O46,R46-Q46,T46-S46,V46-U46,X46-W46,Z46-Y46,AB46-AA46)*ROUNDUP((IF(I44=3,I44,0)+IF(K44=3,K44,0)+IF(M44=3,M44,0)+IF(O44=3,O44,0)+IF(Q44=3,Q44,0)+IF(S44=3,S44,0)+IF(U44=3,U44,0)+IF(W44=3,W44,0)+IF(Y44=3,Y44,0)+IF(AA44=3,AA44,0))/20,0) -> 5 | Y16: 11 | Z16: 55
B17: =IF($D$13=Data_podpora!$B$10,'stěna F'!$B$15,"") ->  | C17: =IF($D$13=Data_podpora!$B$10,"Místo polovalby [m]","") ->  | E17: =IF($D$13=Data_podpora!$B$10,"[m]","") ->  | H17: polov2 | I17: =$D$12-$D$17 -> 2.25 | J17: =$D$14 -> 11.76 | K17: =$D$12-$D$17 -> 2.25 | L17: =$D$19 -> 0 | V17: diagonála 2m | X17: =IF(X16=0,MAX(J46-I46,L46-K46,N46-M46,P46-O46,R46-Q46,T46-S46,V46-U46,X46-W46,Z46-Y46,AB46-AA46)*ROUNDUP((IF(I44=2,I44,0)+IF(K44=2,K44,0)+IF(M44=2,M44,0)+IF(O44=2,O44,0)+IF(Q44=2,Q44,0)+IF(S44=2,S44,0)+IF(U44=2,U44,0)+IF(W44=2,W44,0)+IF(Y44=2,Y44,0)+IF(AA44=2,AA44,0))/12,0),0) -> 0 | Y17: 8 | Z17: 0
B18: =IF($D$13=Data_podpora!$B$10,'stěna F'!$B$15,"") ->  | C18: =IF($D$13=Data_podpora!$B$10,"Výška terénu v místě levé polovalby [m]","") ->  | E18: =IF($D$13=Data_podpora!$B$10,"[m]","") ->  | H18: vpravo | I18: =$D$12 -> 2.25 | J18: =$J$4 -> 11.76 | K18: =$D$12 -> 2.25 | L18: =$D$5 -> 0 | V18: kotva 0,5 m | X18: =IF(X19=0,ROUNDUP(X8*0.45,0),ROUNDUP(X8*0.45,0)-X19) -> 5 | Y18: 2 | Z18: 10
B19: =IF($D$13=Data_podpora!$B$10,'stěna F'!$B$15,"") ->  | C19: =IF($D$13=Data_podpora!$B$10,"Výška terénu v místě pravé polovalby [m]","") ->  | E19: =IF($D$13=Data_podpora!$B$10,"[m]","") ->  | V19: kotva dlouhá 1 m | X19: 0 | Y19: 3.8 | Z19: 0
H20: Patra lešení | V20: eLko / sloupek | X20: =IF(X22=0,COUNT(J46,L46,N46,P46,R46,T46,V46,X46,Z46,AB46)+1,(COUNT(J46,L46,N46,P46,R46,T46,V46,X46,Z46,AB46)+1)-X22) -> 2 | Y20: 5 | Z20: 10
V21: eLko 2 m | Y21: 11.5 | Z21: 0
B22: =IF($D$21=Data_podpora!B30,"→","") ->  | C22: =IF(D21=Data_podpora!B30,"Vzdálenost od levého rohu [m]","") ->  | E22: =IF(D21=Data_podpora!B30,"[m]","") ->  | H22: -0,5 | I22: =I26-1 -> -0.9 | J22: =J26-1 -> -0.9 | K22: =K26-1 -> -0.9 | L22: =L26-1 -> -0.9 | M22: =M26-1 -> -0.9 | V22: Háčko | X22: =2*(MAX(I46:AB46)-MIN(J46,L46,N46,P46,R46,T46,V46,X46,Z46,AB46)) -> 0 | Y22: 9.7 | Z22: 0
B23: =IF($D$21=Data_podpora!$B$30,"→","") ->  | C23: =IF(D21=Data_podpora!B30,"Výška od terénu (zleva) [m]","") ->  | E23: =IF(D21=Data_podpora!B30,"[m]","") ->  | H23: -3 | I23: =I24-2 -> -5.9 | J23: -5.9 | K23: -5.9 | L23: -5.9 | M23: -5.9 | V23: boční zábradlí | X23: =IF(X22=0,(MAX(J46-I46,L46-K46,N46-M46,P46-O46,R46-Q46,T46-S46,V46-U46,X46-W46,Z46-Y46,AB46-AA46)+1)*2,(MAX(J46-I46,L46-K46,N46-M46,P46-O46,R46-Q46,T46-S46,V46-U46,X46-W46,Z46-Y46,AB46-AA46)+1)*2-X22) -> 12 | Y23: 3 | Z23: 36
B24: =IF($D$21=Data_podpora!$B$30,"→","") ->  | C24: =IF(D21=Data_podpora!B30,"Šířka [m]","") ->  | E24: =IF(D21=Data_podpora!B30,"[m]","") ->  | H24: -2 | I24: -3.9 | J24: -3.9 | K24: -3.9 | L24: -3.9 | M24: -3.9 | V24: okopové prkno 3m | X24: =IF(I44=3,J46-I46,0)+IF(K44=3,L46-K46,0)+IF(M44=3,N46-M46,0)+IF(O44=3,P46-O46,0)+IF(Q44=3,R46-Q46,0)+IF(S44=3,T46-S46,0)+IF(U44=3,V46-U46,0)+IF(W44=3,X46-W46,0)+IF(Y44=3,Z46-Y46,0)+IF(AA44=3,AB46-AA46,0) -> 5 | Y24: 6.5 | Z24: 32.5
H25: -1 | I25: =I26-2 -> -1.9 | J25: =$D$85-2 -> -1.9 | K25: =$D$85-2 -> -1.9 | L25: =$D$85-2 -> -1.9 | M25: =$D$85-2 -> -1.9 | V25: okopové prkno 2m | X25: =IF(I44=2,J46-I46,0)+IF(K44=2,L46-K46,0)+IF(M44=2,N46-M46,0)+IF(O44=2,P46-O46,0)+IF(Q44=2,R46-Q46,0)+IF(S44=2,T46-S46,0)+IF(U44=2,V46-U46,0)+IF(W44=2,X46-W46,0)+IF(Y44=2,Z46-Y46,0)+IF(AA44=2,AB46-AA46,0) -> 0 | Y25: 4.5 | Z25: 0
H26: 0 | I26: =$K$41 -> 0.1 | J26: =$K$41 -> 0.1 | K26: =$K$41 -> 0.1 | L26: =$K$41 -> 0.1 | M26: =$K$41 -> 0.1 | V26: konzola | Y26: 10 | Z26: 0
H27: 1 | I27: =I26+$D$86 -> 2.1 | J27: =J26+$D$86 -> 2.1 | K27: =K26+$D$86 -> 2.1 | L27: =L26+$D$86 -> 2.1 | M27: =M26+$D$86 -> 2.1 | V27: pevna spojka | X27: =J46*2 -> 10 | Y27: 1.15 | Z27: 11.5
H28: 2 | I28: 4.1 | J28: 4.1 | K28: 4.1 | L28: 4.1 | M28: 4.1 | V28: otočná spojka | X28: =J46 -> 5 | Y28: 1.35 | Z28: 6.75
H29: 3 | I29: 6.1 | J29: 6.1 | K29: 6.1 | L29: 6.1 | M29: 6.1 | V29: závlačná spojka | X29: =J46*2 -> 10 | Y29: 0.8 | Z29: 8
H30: 4 | I30: 8.1 | J30: 8.1 | K30: 8.1 | L30: 8.1 | M30: 8.1 | V30: CELKOVÁ HMOTNOST [kg] | Z30: =SUM(Z6:Z29) -> 554.55
H31: 5 | I31: 10.1 | J31: 10.1 | K31: 10.1 | L31: 10.1 | M31: 10.1
H32: 6 | I32: 12.1 | J32: 12.1 | K32: 12.1 | L32: 12.1 | M32: 12.1
H33: 7 | I33: 14.1 | J33: 14.1 | K33: 14.1 | L33: 14.1 | M33: 14.1
H34: 8 | I34: 16.1 | J34: 16.1 | K34: 16.1 | L34: 16.1 | M34: 16.1
H35: 9 | I35: 18.1 | J35: 18.1 | K35: 18.1 | L35: 18.1 | M35: 18.1
H36: 10 | I36: 20.1 | J36: 20.1 | K36: 20.1 | L36: 20.1 | M36: 20.1
H37: 11 | I37: 22.1 | J37: 22.1 | K37: 22.1 | L37: 22.1 | M37: 22.1
H38: 12 | I38: 24.1 | J38: 24.1 | K38: 24.1 | L38: 24.1 | M38: 24.1
H39: 13 | I39: 26.1 | J39: 26.1 | K39: 26.1 | L39: 26.1 | M39: 26.1
H41: LEŠENÍ | I41: výška založení [m] | K41: =D8+0.1 -> 0.1 | L41: [m] | M41: nepsat nuly v kolonce "patro",pokud není sestava lešení využita | S41: Poznámka: | T41: =IF(Půdorys!I10=0,"",Půdorys!I10) -> 
I42: ZALOŽENÍ | J42: VÝŠKA P.P. | K42: ZALOŽENÍ | L42: VÝŠKA P.P. | M42: ZALOŽENÍ | N42: VÝŠKA P.P. | O42: ZALOŽENÍ | P42: VÝŠKA P.P. | Q42: ZALOŽENÍ | R42: VÝŠKA P.P. | S42: ZALOŽENÍ | T42: VÝŠKA P.P. | U42: ZALOŽENÍ | V42: VÝŠKA P.P. | W42: ZALOŽENÍ | X42: VÝŠKA P.P. | Y42: ZALOŽENÍ | Z42: VÝŠKA P.P. | AA42: ZALOŽENÍ | AB42: VÝŠKA P.P.
H43: SESTAVA | I43: 1 | K43: 2 | M43: 3 | O43: 4 | Q43: 5 | S43: 6 | U43: 7 | W43: 8 | Y43: 9 | AA43: 10
H44: DÉLKA SESTAVY | I44: 3 | K44: 0 | M44: 0 | O44: 0 | Q44: 0 | S44: 0 | U44: 0 | W44: 0 | Y44: 0 | AA44: 0
H45: "potvrdit"
H46: PATRO | I46: 0 | J46: 5
H47: POSUN
H48: plocha [m2] | I48: =(J46-I46)*$D$86*I44 -> 30 | K48: =L46*$D$86*K44 -> 0 | M48: =N46*$D$86*M44 -> 0 | O48: =P46*$D$86*O44 -> 0 | Q48: =R46*$D$86*Q44 -> 0 | S48: =T46*$D$86*S44 -> 0 | U48: =V46*$D$86*U44 -> 0 | W48: =X46*$D$86*W44 -> 0 | Y48: =Z46*$D$86*Y44 -> 0 | AA48: =AB46*$D$86*AA44 -> 0
H49: výška | I49: =IF(I46=-0.5,M22,INDEX($M$23:$M$39,I46+4)) -> 0.1 | J49: =INDEX($M$23:$M$39,J46+4) -> 10.1 | K49: =IF(K46=-0.5,M22,INDEX($M$23:$M$39,K46+4)) -> 0.1 | L49: =INDEX($M$23:$M$39,L46+4) -> 0.1 | M49: =IF(M46=-0.5,M22,INDEX($M$23:$M$39,M46+4)) -> 0.1 | N49: =INDEX($M$23:$M$39,N46+4) -> 0.1 | O49: =IF(O46=-0.5,M22,INDEX($M$23:$M$39,O46+4)) -> 0.1 | P49: =INDEX($M$23:$M$39,P46+4) -> 0.1 | Q49: =IF(Q46=-0.5,M22,INDEX($M$23:$M$39,Q46+4)) -> 0.1 | R49: =INDEX($M$23:$M$39,R46+4) -> 0.1 | S49: =IF(S46=-0.5,M22,INDEX($M$23:$M$39,S46+4)) -> 0.1 | T49: =INDEX($M$23:$M$39,T46+4) -> 0.1 | U49: =IF(U46=-0.5,M22,INDEX($M$23:$M$39,U46+4)) -> 0.1 | V49: =INDEX($M$23:$M$39,V46+4) -> 0.1 | W49: =IF(W46=-0.5,M22,INDEX($M$23:$M$39,W46+4)) -> 0.1 | X49: =INDEX($M$23:$M$39,X46+4) -> 0.1 | Y49: =IF(Y46=-0.5,M22,INDEX($M$23:$M$39,Y46+4)) -> 0.1 | Z49: =INDEX($M$23:$M$39,Z46+4) -> 0.1 | AA49: =IF(AA46=-0.5,M22,INDEX($M$23:$M$39,AA46+4)) -> 0.1 | AB49: =INDEX($M$23:$M$39,AB46+4) -> 0.1
H55: -1
H56: 0 | I56: =$I$49 -> 0.1 | J56: =$J$49 -> 10.1
H57: 1 | I57: =$I$49 -> 0.1 | J57: =$J$49 -> 10.1
H58: 2 | I58: =$I$49 -> 0.1 | J58: =$J$49 -> 10.1 | K58: =$K$49 -> 0.1 | L58: =$L$49 -> 0.1
H59: 3 | I59: =$I$49 -> 0.1 | J59: =$J$49 -> 10.1 | K59: =$K$49 -> 0.1 | L59: =$L$49 -> 0.1
H60: 4 | K60: =$K$49 -> 0.1 | L60: =$L$49 -> 0.1
H61: 5 | K61: =$K$49 -> 0.1 | L61: =$L$49 -> 0.1 | M61: =$M$49 -> 0.1 | N61: =$N$49 -> 0.1
H62: 6 | M62: =$M$49 -> 0.1 | N62: =$N$49 -> 0.1
H63: 7 | M63: =$M$49 -> 0.1 | N63: =$N$49 -> 0.1
H64: 8 | M64: =$M$49 -> 0.1 | N64: =$N$49 -> 0.1 | O64: =$O$49 -> 0.1 | P64: =$P$49 -> 0.1
H65: 9 | O65: =$O$49 -> 0.1 | P65: =$P$49 -> 0.1
H66: 10 | O66: =$O$49 -> 0.1 | P66: =$P$49 -> 0.1
H67: 11 | O67: =$O$49 -> 0.1 | P67: =$P$49 -> 0.1 | Q67: =$Q$49 -> 0.1 | R67: =$R$49 -> 0.1
H68: 12 | Q68: =$Q$49 -> 0.1 | R68: =$R$49 -> 0.1
C69: Pomocný výpočet počtu sestav lešení: | H69: 13 | Q69: =$Q$49 -> 0.1 | R69: =$R$49 -> 0.1
C70: Délka: | H70: 14 | Q70: =$Q$49 -> 0.1 | R70: =$R$49 -> 0.1 | S70: =$S$49 -> 0.1 | T70: =$T$49 -> 0.1
C71: přesah za roh objektu: | D71: Ne | H71: 15 | S71: =$S$49 -> 0.1 | T71: =$T$49 -> 0.1
C72: Požadovaná minimální délka lešení [m] | D72: =IF(D71=Data_podpora!B17,'stěna F'!D12+2,IF('stěna F'!D71=Data_podpora!B14,'stěna F'!D12+0.5,IF(D71=Data_podpora!B13,'stěna F'!D12,'stěna F'!D12+1))) -> 2.25 | E72: [m] | H72: 16 | S72: =$S$49 -> 0.1 | T72: =$T$49 -> 0.1
C73: Počet sestav lešení (3m) [-] | D73: =ROUNDDOWN(D72/E73,0) -> 0 | E73: 3 | F73: =D73*E73 -> 0 | G73: [m] | H73: 17 | S73: =$S$49 -> 0.1 | T73: =$T$49 -> 0.1 | U73: =$U$49 -> 0.1 | V73: =$V$49 -> 0.1
C74: Počet sestav lešení (2m) [-] | D74: =ROUNDDOWN(MOD(D72,E73)/E74,0) -> 1 | E74: 2 | F74: =D74*E74 -> 2 | G74: [m] | H74: 18 | U74: =$U$49 -> 0.1 | V74: =$V$49 -> 0.1
C75: Počet sestav lešení (0,75m) [-] | D75: =ROUNDUP(D72-(D73*E73+D74*E74),0) -> 1 | E75: 0,75 | F75: =D75*E75 -> 0.75 | G75: [m] | H75: 19 | U75: =$U$49 -> 0.1 | V75: =$V$49 -> 0.1
C76: Reálná délka lešení [m] | D76: =D73*E73+D74*E74+D75*E75 -> 2.75 | E76: [m] | H76: 20 | U76: =$U$49 -> 0.1 | V76: =$V$49 -> 0.1
H77: 21 | W77: =$W$49 -> 0.1 | X77: =$X$49 -> 0.1
C78: Výška: | H78: 22 | W78: =$W$49 -> 0.1 | X78: =X77 -> 0.1
C79: Lešení pro: | D79: Fasádu | H79: 23 | W79: =$W$49 -> 0.1 | X79: =X78 -> 0.1
C80: Výška zábradlí posledního patra [m] | D80: 1 | E80: [m] | H80: 24 | W80: =$W$49 -> 0.1 | X80: =X79 -> 0.1 | Y80: =$Y$49 -> 0.1 | Z80: =$Z$49 -> 0.1
C81: Požadovaná výška [m] | D81: =IF(D79=Data_podpora!B22,'stěna F'!D14+D80,'stěna F'!D14) -> 11.76 | E81: [m] | H81: 25 | Y81: =$Y$49 -> 0.1 | Z81: =Z80 -> 0.1
A82: Založení | C82: Výška nejnižžšího bodu terénu [m] | D82: =MIN(D4,D5,D6,D8) -> 0 | E82: [m] | H82: 26 | Y82: =$Y$49 -> 0.1 | Z82: =Z81 -> 0.1
C83: Výška nejvyššího bodu terénu [m] | D83: =D8 -> 0 | E83: [m] | H83: 27 | Y83: =$Y$49 -> 0.1 | Z83: =Z82 -> 0.1 | AA83: =$AA$49 -> 0.1 | AB83: =$AB$49 -> 0.1
C84: Rozdíl max a min [m] | D84: =D83-D82 -> 0 | E84: [m] | F84: =IF(D84<0.4,"(Patky 0,4m)",IF(D84<=1,"(Patky 1m)",IF(2>=D84>1,"(Rám 1m)",IF(5>D84>2,"(Rám 2m)","")))) -> (Patky 0,4m) | H84: 28 | AA84: =$AA$49 -> 0.1 | AB84: =AB83 -> 0.1
B85: # | C85: Výška založení [m] | D85: =D8+0.1 -> 0.1 | E85: [m] | H85: 29 | AA85: =$AA$49 -> 0.1 | AB85: =AB84 -> 0.1
C86: Modulová výška patra lešení [m] | D86: 2 | E86: [m] | H86: 30 | AA86: =$AA$49 -> 0.1 | AB86: =AB85 -> 0.1
C87: Počet pater lešení [-]; výška [m]) | D87: =IF(D81-D85<11,ROUNDDOWN((D81-D85)/2.15,0),ROUNDDOWN((D81-D85)/2.1,0)) -> 5 | E87: pater | F87: =INDEX(M27:M39,D87) -> 10.1 | G87: [m] | H87: 31
C88: Reálná výška lešení [m] | D88: =D87*D86+D85+D80 -> 11.1 | E88: [m]
A90: Uskočení pater | B90: → | C90: Hranice posouzení uskočení | D90: 4 | F90: =INDEX(M27:M39,D90) -> 8.1 | G90: [m]
C91: Zbývající výška do hřebene | D91: =$D$14-F90 -> 3.66 | E91: [m]
C92: Počet uskočených pater | D92: =IF(D91<11,ROUNDDOWN((D91)/2.6,0),ROUNDDOWN((D91)/2.6,0)) -> 1 | E92: =IF(D92=1,"patro",IF(D92<=4,"patra","pater")) -> patro
C93: Rozdíl výšky okapu a nejbližšího patra | D93: =$J$4-(INDEX(M27:M39,D90)) -> 3.66 | E93: [m]
C94: Rozdíl výšek na 3 m sestavu | D94: =$N$5*$E$73 -> 0 | E94: [m]
B95: =IF($D$92>=1,1,"") -> 1 | C95: První sestava | D95: =D93+D94 -> 3.66 | E95: [m] | F95: =IF(D$95<=2,"posoudit další",IF(D$95<=3.2,"ponechat","pokračuje patrem")) -> pokračuje patrem
B96: =IF(1<=$D$92,2,"X") -> 2 | C96: Druhá sestava | D96: =IF(F95="ponechat",$D$93+$D$94*B96,$D$93+$D$94*B96-2) -> 1.66 | E96: [m] | F96: =IF(D96<2,"posoudit další",IF(D96<=3.2,"ponechat",IF(D96>3.2,"pokračuje patrem",""))) -> posoudit další
B97: =IF(2<=$D$92,3,"X") -> X | C97: Třetí sestava | D97: =IF(F96="ponechat",$D$93+$D$94*B97,$D$93+$D$94*B97-2) ->  | E97: [m] | F97: =IF(D97<2,"posoudit další",IF(D97<=3.2,"ponechat",IF(D97>3.2,"pokračuje patrem",""))) -> 
B98: =IF(3<=$D$92,4,"X") -> X | C98: Čtvrtá sestava | D98: =IF(F97="ponechat",$D$93+$D$94*B98,$D$93+$D$94*B98-2) ->  | E98: [m] | F98: =IF(D98<2,"posoudit další",IF(D98<=3.2,"ponechat",IF(D98>3.2,"pokračuje patrem",""))) -> 
C103: NAKLÁDACÍ LIST
C105: stavitelná patka 0,5m | D105: počet kusů
C106: stavitelná patka 1m | D106: =IF(D107>=0,($D$73+$D$74+$D$75)*2+2-D107,($D$73+$D$74+$D$75)*2+2) -> 4
C107: rám 2m | D107: 2
C108: rám 1m | D108: =(($D$73+$D$74+$D$75)+1)*$D$87 -> 15
C109: podlaha 3m | D109: =IF(D85>=1,($D$73+$D$74+$D$75)+1,0) -> 0
C110: podlaha 2m | D110: =(D73*D87-$D112)*2 -> -10
C111: průlezová podlaha 3m | D111: =D74*D87 -> 5
C112: zábradlí 3m | D112: =D87 -> 5
C113: zábradlí 2m | D113: =(1+$D$87*2)*D73 -> 0
C114: diagonální úchyt | D114: =(1+$D$87*2)*D74 -> 11
C115: diagonála 3m
C116: diagonála 2m | D116: =$D$87*(ROUNDUP((D73+D74+D75)/4,0)) -> 5
C117: kotva 0,5 m | D117: =IF(D116=0,$D$87*ROUNDUP(D74/4,0),0) -> 0
C118: kotva dlouhá 1 m | D118: =(($D$87-1)*SUM(D73:D75))/2 -> 4
C119: eLko / sloupek
C120: eLko 2 m | D120: =SUM(D73:D75)+1 -> 3
C121: Háčko
C122: boční zábradlí
C123: okopové prkno 3m | D123: =D87*2 -> 10
C124: okopové prkno 2m | D124: =D73*D87 -> 0
C125: konzola | D125: =D74*D87 -> 5
C126: pevna spojka
C127: otočná spojka
C128: závlačná spojka

Sheet stěna G
C1: Stěna G | D1: Výkres: | H1: Data grafu:
C2: Nastavení parametrů výpočtu: | I2: Tvar střechy | K2: Tvar terénu | M2: úhel alfa | V2: NAKLÁDACÍ LIST: | X2: =$C$1 -> Stěna G | Y2: =IF(AD6=0,"(BUDE NAKLÁDÁNO POUZE AUTO)","") ->  | AB2: VYTÍŽENOST ODVOZNÍHO PROSTŘEDKU:
C3: Terén: absolutní výška (±0,00 = svislice od hřebene střechy na terén) | I3: osa x | J3: osa y | K3: osa x | L3: osa y | M3: tg A | N3: =($D$14-$J$4)/($D$12/2) -> -2.131628207e-15 | V3: obestavběná plocha lešení [m2] | Y3: =IF(K41>=1,SUM(I48,K48,M48,O48,Q48,S48,U48,W48,Y48,AA48)+SUM(I44,K44,M44,O44,Q44,S44,U44,W44,Y44,AA44)*2+SUM(I44,K44,M44,O44,Q44,S44,U44,W44,Y44,AA44),SUM(I48,K48,M48,O48,Q48,S48,U48,W48,Y48,AA48)+SUM(I44,K44,M44,O44,Q44,S44,U44,W44,Y44,AA44)*2) -> 273 | Z3: [m2] | AB3: [kg] | AC3: 1. cesta | AF3: 2.cesta
B4: → | C4: Výška terénu v levém rohu [m] | D4: =498.8-497.5 -> 1.3 | E4: [m] | H4: vlevo | I4: 0 | J4: =IF($D$13=Data_podpora!$B$9,$D$14,$D$15+$D$4) -> 11.76 | K4: 0 | L4: =$D$4 -> 1.3 | M4: A | N4: =DEGREES(ATAN(N3)) -> -1.221332998e-13 | V4: Komponenta | X4: počet kusů [ks] | Y4: jednotková hmotnost [kg/ks] | Z4: hmotnost [kg] | AC4: KAPACITA | AD4: VYUŽITO | AE4: Zbývá | AF4: KAPACITA | AG4: VYUŽITO | AH4: ZBÝVÁ
B5: → | C5: Výška terénu v pravém rohu [m] | D5: 0 | E5: [m] | H5: max | I5: =$D$9 -> 0 | J5: =IF($D$12/2<I5,-$N$3*I5+$J$4+$N$3*$D$12,$N$3*I5+$J$4) -> 11.76 | K5: =$D$9 -> 0 | L5: =$D$8 -> 1.3 | M5: tg A | N5: =TAN(RADIANS($N$4)) -> -2.131628207e-15 | AB5: AUTO | AC5: 2500 | AD5: =IF(Z30<=AC5,SUM(Z6:Z29),SUM(Z6:Z9,Z26:Z29,Z15:Z23,Z13/2,Z14/2)) -> 1196.2 | AE5: =IF((AC5-AD5)<=0,0,AC5-AD5) -> 1303.8 | AF5: 2500 | AG5: =IF(AC5-AD5<=0,-(AC5-AD5),0) -> 0 | AH5: =AF5-AG5 -> 2500
B6: → | C6: Výška nejnižšího bodu terénu [m] | D6: 0 | E6: [m] | H6: min | I6: =$D$7 -> 5.5 | J6: =IF($D$12/2>I6,$N$3*I6+$J$4,-$N$3*I6+$J$4+$N$3*$D$12) -> 11.76 | K6: =$D$7 -> 5.5 | L6: =$D$6 -> 0 | M6: sklon | N6: =$N$5 -> -2.131628207e-15 | V6: stavitelná patka 0,5m | X6: =IF(X7>0,(COUNT(I46:AB46)+2)-X7,(COUNT(I46:AB46)+2)) -> 16 | Y6: 3.1 | Z6: =Y7*X6 -> 75.2 | AB6: ZÁVĚS | AC6: 3500 | AD6: =IF(Z30<=AC5,0,SUM(Z10:Z12,Z24:Z25,Z13/2,Z14/2)) -> 1899.25 | AE6: =IF((AC6-AD6)<=0,0,AC6-AD6) -> 1600.75 | AF6: 3500 | AG6: =IF(AC6-AD6<=0,-(AC6-AD6),0) -> 0 | AH6: =AF6-AG6 -> 3500
B7: → | C7: Místo nejnižšího bodu (zleva) [m] | D7: 5.5 | E7: [m] | H7: top | I7: =$D$12/2 -> 10 | J7: =$D$14 -> 11.76 | K7: =$D$12/2 -> 10 | L7: =0 -> 0 | V7: stavitelná patka 1m | X7: 0 | Y7: 4.7 | Z7: =Y9*X7 -> 0
B8: → | C8: Výška nejvyššího bodu terénu [m] | D8: 1.3 | E8: [m] | H8: vpravo | I8: =$D$12 -> 20 | J8: =$J$4 -> 11.76 | K8: =$D$12 -> 20 | L8: =$D$5 -> 0 | V8: rám 2m | X8: =IF(X9>0,SUM(J46-I46,L46-K46,N46-M46,P46-O46,R46-Q46,T46-S46,V46-U46,X46-W46,Z46-Y46,AB46-AA46)+MIN(J46-I46,L46-K46,N46-M46,P46-O46,R46-Q46,T46-S46,V46-U46,X46-W46,Z46-Y46,AB46-AA46)+MAX(J46-I46,L46-K46,N46-M46,P46-O46,R46-Q46,T46-S46,V46-U46,X46-W46,Z46-Y46,AB46-AA46)-MIN(J46-I46,L46-K46,N46-M46,P46-O46,R46-Q46,T46-S46,V46-U46,X46-W46,Z46-Y46,AB46-AA46)-X9,SUM(J46-I46,L46-K46,N46-M46,P46-O46,R46-Q46,T46-S46,V46-U46,X46-W46,Z46-Y46,AB46-AA46)+MIN(J46-I46,L46-K46,N46-M46,P46-O46,R46-Q46,T46-S46,V46-U46,X46-W46,Z46-Y46,AB46-AA46)+MAX(J46-I46,L46-K46,N46-M46,P46-O46,R46-Q46,T46-S46,V46-U46,X46-W46,Z46-Y46,AB46-AA46)-MIN(J46-I46,L46-K46,N46-M46,P46-O46,R46-Q46,T46-S46,V46-U46,X46-W46,Z46-Y46,AB46-AA46)) -> 40 | Y8: 16.5 | Z8: =Y8*X8 -> 660
B9: → | C9: Místo nejvyššího bodu (zleva) [m] | D9: 0 | E9: [m] | V9: rám 1m | X9: 0 | Y9: 11.3 | Z9: 0
I10: Tvar střechy | K10: Tvar terénu | M10: úhel alfa | V10: podlaha 3m | X10: =((IF(I44=3,J46-I46,0)+IF(K44=3,L46-K46,0)+IF(M44=3,N46-M46,0)+IF(O44=3,P46-O46,0)+IF(Q44=3,R46-Q46,0)+IF(S44=3,T46-S46,0)+IF(U44=3,V46-U46,0)+IF(W44=3,X46-W46,0)+IF(Y44=3,Z46-Y46,0)+IF(AA44=3,AB46-AA46,0))-X12)*2 -> 60 | Y10: 22 | Z10: 1320
C11: Střecha: | I11: osa x | J11: osa y | K11: osa x | L11: osa y | M11: tg A | N11: =($D$14-$J$4)/($D$17) ->  | V11: podlaha 2m | X11: =(IF(I44=2,J46-I46,0)+IF(K44=2,L46-K46,0)+IF(M44=2,N46-M46,0)+IF(O44=2,P46-O46,0)+IF(Q44=2,R46-Q46,0)+IF(S44=2,T46-S46,0)+IF(U44=2,V46-U46,0)+IF(W44=2,X46-W46,0)+IF(Y44=2,Z46-Y46,0)+IF(AA44=2,AB46-AA46,0))*2 -> 0 | Y11: 14.5 | Z11: 0
C12: Délka strany [m] | D12: =Půdorys!$C$5 -> 20 | E12: [m] | H12: vlevo | I12: 0 | J12: =$D$15+$D$4 -> 11.76 | K12: 0 | L12: =$D$4 -> 1.3 | M12: A | N12: =DEGREES(ATAN(N11)) ->  | V12: průlezová podlaha 3m | X12: =MAX(J46:AB46) -> 5 | Y12: 28 | Z12: 140
B13: → | C13: Tvar střechy: | D13: sedlová | H13: max | I13: =$D$9 -> 0 | J13: =IF($I$17<I13,-$N$3*I13+$J$4+$N$11*$D$12,IF(I13<$I$14,$N$11*I13+$J$4,J14)) -> 11.76 | K13: =$D$9 -> 0 | L13: =$D$8 -> 1.3 | M13: tg A | N13: =TAN(RADIANS($N$12)) ->  | V13: zábradlí 3m | X13: =IF(I44=3,2*(J46-I46)+1,0)+IF(K44=3,2*(L46-K46)+1,0)+IF(M44=3,2*(N46-M46)+1,0)+IF(O44=3,2*(P46-O46)+1,0)+IF(Q44=3,2*(R46-Q46)+1,0)+IF(S44=3,2*(T46-S46)+1,0)+IF(U44=3,2*(V46-U46)+1,0)+IF(W44=3,2*(X46-W46)+1,0)+IF(Y44=3,2*(Z46-Y46)+1,0)+IF(AA44=3,2*(AB46-AA46)+1,0) -> 77 | Y13: 5.5 | Z13: 423.5
B14: → | C14: =IF('stěna G'!$D$13=Data_podpora!$B$9,"Výška stěny [m]","Výška uprostřed stěny [m]") -> Výška uprostřed stěny [m] | D14: =507.76-496 -> 11.76 | E14: [m] | H14: polov1 | I14: =$D$17 -> 0 | J14: =$D$14 -> 11.76 | K14: =$D$17 -> 0 | L14: =$D$18 -> 0 | M14: sklon | N14: =$N$13 ->  | V14: zábradlí 2m | X14: =IF(I44=2,2*(J46-I46)+1,0)+IF(K44=2,2*(L46-K46)+1,0)+IF(M44=2,2*(N46-M46)+1,0)+IF(O44=2,2*(P46-O46)+1,0)+IF(Q44=2,2*(R46-Q46)+1,0)+IF(S44=2,2*(T46-S46)+1,0)+IF(U44=2,2*(V46-U46)+1,0)+IF(W44=2,2*(X46-W46)+1,0)+IF(Y44=2,2*(Z46-Y46)+1,0)+IF(AA44=2,2*(AB46-AA46)+1,0) -> 0 | Y14: 3.5 | Z14: 0
B15: =IF($D$13=Data_podpora!B9,"","→") -> → | C15: =IF($D$13=Data_podpora!$B$9,"","Výška od terénu k okapu (levý) [m]") -> Výška od terénu k okapu (levý) [m] | D15: 10.46 | E15: =IF($D$13=Data_podpora!$B$9,"","[m]") -> [m] | H15: min | I15: =$D$7 -> 5.5 | J15: =IF($I$13>=I15,$N$11*I15+$J$4,IF(I15<=$I$16,J13,-$N$11*I15+$J$12+$N$11*$D$12)) -> 11.76 | K15: =$D$7 -> 5.5 | L15: =$D$6 -> 0 | V15: diagonální úchyt | X15: =X16/MAX(I46:AB46) -> 2 | Y15: 0.5 | Z15: 1
C16: =IF(D13=Data_podpora!B10,"Upřesňující parametry pro polovalbovou střechu:","") ->  | H16: top | I16: =$D$12/2 -> 10 | J16: =$D$14 -> 11.76 | K16: =$D$12/2 -> 10 | L16: =0 -> 0 | V16: diagonála 3m | X16: =MAX(J46-I46,L46-K46,N46-M46,P46-O46,R46-Q46,T46-S46,V46-U46,X46-W46,Z46-Y46,AB46-AA46)*ROUNDUP((IF(I44=3,I44,0)+IF(K44=3,K44,0)+IF(M44=3,M44,0)+IF(O44=3,O44,0)+IF(Q44=3,Q44,0)+IF(S44=3,S44,0)+IF(U44=3,U44,0)+IF(W44=3,W44,0)+IF(Y44=3,Y44,0)+IF(AA44=3,AA44,0))/20,0) -> 10 | Y16: 11 | Z16: 110
B17: =IF($D$13=Data_podpora!$B$10,'stěna G'!$B$15,"") ->  | C17: =IF($D$13=Data_podpora!$B$10,"Místo polovalby [m]","") ->  | E17: =IF($D$13=Data_podpora!$B$10,"[m]","") ->  | H17: polov2 | I17: =$D$12-$D$17 -> 20 | J17: =$D$14 -> 11.76 | K17: =$D$12-$D$17 -> 20 | L17: =$D$19 -> 0 | V17: diagonála 2m | X17: =IF(X16=0,MAX(J46-I46,L46-K46,N46-M46,P46-O46,R46-Q46,T46-S46,V46-U46,X46-W46,Z46-Y46,AB46-AA46)*ROUNDUP((IF(I44=2,I44,0)+IF(K44=2,K44,0)+IF(M44=2,M44,0)+IF(O44=2,O44,0)+IF(Q44=2,Q44,0)+IF(S44=2,S44,0)+IF(U44=2,U44,0)+IF(W44=2,W44,0)+IF(Y44=2,Y44,0)+IF(AA44=2,AA44,0))/12,0),0) -> 0 | Y17: 8 | Z17: 0
B18: =IF($D$13=Data_podpora!$B$10,'stěna G'!$B$15,"") ->  | C18: =IF($D$13=Data_podpora!$B$10,"Výška terénu v místě levé polovalby [m]","") ->  | E18: =IF($D$13=Data_podpora!$B$10,"[m]","") ->  | H18: vpravo | I18: =$D$12 -> 20 | J18: =$J$4 -> 11.76 | K18: =$D$12 -> 20 | L18: =$D$5 -> 0 | V18: kotva 0,5 m | X18: =IF(X19=0,ROUNDUP(X8*0.45,0),ROUNDUP(X8*0.45,0)-X19) -> 18 | Y18: 2 | Z18: 36
B19: =IF($D$13=Data_podpora!$B$10,'stěna G'!$B$15,"") ->  | C19: =IF($D$13=Data_podpora!$B$10,"Výška terénu v místě pravé polovalby [m]","") ->  | E19: =IF($D$13=Data_podpora!$B$10,"[m]","") ->  | V19: kotva dlouhá 1 m | X19: 0 | Y19: 3.8 | Z19: 0
H20: Patra lešení | V20: eLko / sloupek | X20: =IF(X22=0,COUNT(J46,L46,N46,P46,R46,T46,V46,X46,Z46,AB46)+1,(COUNT(J46,L46,N46,P46,R46,T46,V46,X46,Z46,AB46)+1)-X22) -> 8 | Y20: 5 | Z20: 40
V21: eLko 2 m | Y21: 11.5 | Z21: 0
B22: =IF($D$21=Data_podpora!B30,"→","") ->  | C22: =IF(D21=Data_podpora!B30,"Vzdálenost od levého rohu [m]","") ->  | E22: =IF(D21=Data_podpora!B30,"[m]","") ->  | H22: -0,5 | I22: =I26-1 -> 0.4 | J22: =J26-1 -> 0.4 | K22: =K26-1 -> 0.4 | L22: =L26-1 -> 0.4 | M22: =M26-1 -> 0.4 | V22: Háčko | X22: =2*(MAX(I46:AB46)-MIN(J46,L46,N46,P46,R46,T46,V46,X46,Z46,AB46)) -> 0 | Y22: 9.7 | Z22: 0
B23: =IF($D$21=Data_podpora!$B$30,"→","") ->  | C23: =IF(D21=Data_podpora!B30,"Výška od terénu (zleva) [m]","") ->  | E23: =IF(D21=Data_podpora!B30,"[m]","") ->  | H23: -3 | I23: =I24-2 -> -4.6 | J23: -4.6 | K23: -4.6 | L23: -4.6 | M23: -4.6 | V23: boční zábradlí | X23: =IF(X22=0,(MAX(J46-I46,L46-K46,N46-M46,P46-O46,R46-Q46,T46-S46,V46-U46,X46-W46,Z46-Y46,AB46-AA46)+1)*2,(MAX(J46-I46,L46-K46,N46-M46,P46-O46,R46-Q46,T46-S46,V46-U46,X46-W46,Z46-Y46,AB46-AA46)+1)*2-X22) -> 12 | Y23: 3 | Z23: 36
B24: =IF($D$21=Data_podpora!$B$30,"→","") ->  | C24: =IF(D21=Data_podpora!B30,"Šířka [m]","") ->  | E24: =IF(D21=Data_podpora!B30,"[m]","") ->  | H24: -2 | I24: -2.6 | J24: -2.6 | K24: -2.6 | L24: -2.6 | M24: -2.6 | V24: okopové prkno 3m | X24: =IF(I44=3,J46-I46,0)+IF(K44=3,L46-K46,0)+IF(M44=3,N46-M46,0)+IF(O44=3,P46-O46,0)+IF(Q44=3,R46-Q46,0)+IF(S44=3,T46-S46,0)+IF(U44=3,V46-U46,0)+IF(W44=3,X46-W46,0)+IF(Y44=3,Z46-Y46,0)+IF(AA44=3,AB46-AA46,0) -> 35 | Y24: 6.5 | Z24: 227.5
H25: -1 | I25: =I26-2 -> -0.6 | J25: =$D$85-2 -> -0.6 | K25: =$D$85-2 -> -0.6 | L25: =$D$85-2 -> -0.6 | M25: =$D$85-2 -> -0.6 | V25: okopové prkno 2m | X25: =IF(I44=2,J46-I46,0)+IF(K44=2,L46-K46,0)+IF(M44=2,N46-M46,0)+IF(O44=2,P46-O46,0)+IF(Q44=2,R46-Q46,0)+IF(S44=2,T46-S46,0)+IF(U44=2,V46-U46,0)+IF(W44=2,X46-W46,0)+IF(Y44=2,Z46-Y46,0)+IF(AA44=2,AB46-AA46,0) -> 0 | Y25: 4.5 | Z25: 0
H26: 0 | I26: =$K$41 -> 1.4 | J26: =$K$41 -> 1.4 | K26: =$K$41 -> 1.4 | L26: =$K$41 -> 1.4 | M26: =$K$41 -> 1.4 | V26: konzola | Y26: 10 | Z26: 0
H27: 1 | I27: =I26+$D$86 -> 3.4 | J27: =J26+$D$86 -> 3.4 | K27: =K26+$D$86 -> 3.4 | L27: =L26+$D$86 -> 3.4 | M27: =M26+$D$86 -> 3.4 | V27: pevna spojka | X27: =J46*2 -> 10 | Y27: 1.15 | Z27: 11.5
H28: 2 | I28: 5.4 | J28: 5.4 | K28: 5.4 | L28: 5.4 | M28: 5.4 | V28: otočná spojka | X28: =J46 -> 5 | Y28: 1.35 | Z28: 6.75
H29: 3 | I29: 7.4 | J29: 7.4 | K29: 7.4 | L29: 7.4 | M29: 7.4 | V29: závlačná spojka | X29: =J46*2 -> 10 | Y29: 0.8 | Z29: 8
H30: 4 | I30: 9.4 | J30: 9.4 | K30: 9.4 | L30: 9.4 | M30: 9.4 | V30: CELKOVÁ HMOTNOST [kg] | Z30: =SUM(Z6:Z29) -> 3095.45
H31: 5 | I31: 11.4 | J31: 11.4 | K31: 11.4 | L31: 11.4 | M31: 11.4
H32: 6 | I32: 13.4 | J32: 13.4 | K32: 13.4 | L32: 13.4 | M32: 13.4
H33: 7 | I33: 15.4 | J33: 15.4 | K33: 15.4 | L33: 15.4 | M33: 15.4
H34: 8 | I34: 17.4 | J34: 17.4 | K34: 17.4 | L34: 17.4 | M34: 17.4
H35: 9 | I35: 19.4 | J35: 19.4 | K35: 19.4 | L35: 19.4 | M35: 19.4
H36: 10 | I36: 21.4 | J36: 21.4 | K36: 21.4 | L36: 21.4 | M36: 21.4
H37: 11 | I37: 23.4 | J37: 23.4 | K37: 23.4 | L37: 23.4 | M37: 23.4
H38: 12 | I38: 25.4 | J38: 25.4 | K38: 25.4 | L38: 25.4 | M38: 25.4
H39: 13 | I39: 27.4 | J39: 27.4 | K39: 27.4 | L39: 27.4 | M39: 27.4
H41: LEŠENÍ | I41: výška založení [m] | K41: =D8+0.1 -> 1.4 | L41: [m] | M41: nepsat nuly v kolonce "patro",pokud není sestava lešení využita | S41: Poznámka: | T41: =IF(Půdorys!I11=0,"",Půdorys!I11) -> 
I42: ZALOŽENÍ | J42: VÝŠKA P.P. | K42: ZALOŽENÍ | L42: VÝŠKA P.P. | M42: ZALOŽENÍ | N42: VÝŠKA P.P. | O42: ZALOŽENÍ | P42: VÝŠKA P.P. | Q42: ZALOŽENÍ | R42: VÝŠKA P.P. | S42: ZALOŽENÍ | T42: VÝŠKA P.P. | U42: ZALOŽENÍ | V42: VÝŠKA P.P. | W42: ZALOŽENÍ | X42: VÝŠKA P.P. | Y42: ZALOŽENÍ | Z42: VÝŠKA P.P. | AA42: ZALOŽENÍ | AB42: VÝŠKA P.P.
H43: SESTAVA | I43: 1 | K43: 2 | M43: 3 | O43: 4 | Q43: 5 | S43: 6 | U43: 7 | W43: 8 | Y43: 9 | AA43: 10
H44: DÉLKA SESTAVY | I44: 3 | K44: 3 | M44: 3 | O44: 3 | Q44: 3 | S44: 3 | U44: 3 | W44: 0 | Y44: 0 | AA44: 0
H45: "potvrdit"
H46: PATRO | I46: 0 | J46: 5 | K46: 0 | L46: 5 | M46: 0 | N46: 5 | O46: 0 | P46: 5 | Q46: 0 | R46: 5 | S46: 0 | T46: 5 | U46: 0 | V46: 5
H47: POSUN
H48: plocha [m2] | I48: =(J46-I46)*$D$86*I44 -> 30 | K48: =L46*$D$86*K44 -> 30 | M48: =N46*$D$86*M44 -> 30 | O48: =P46*$D$86*O44 -> 30 | Q48: =R46*$D$86*Q44 -> 30 | S48: =T46*$D$86*S44 -> 30 | U48: =V46*$D$86*U44 -> 30 | W48: =X46*$D$86*W44 -> 0 | Y48: =Z46*$D$86*Y44 -> 0 | AA48: =AB46*$D$86*AA44 -> 0
H49: výška | I49: =IF(I46=-0.5,M22,INDEX($M$23:$M$39,I46+4)) -> 1.4 | J49: =INDEX($M$23:$M$39,J46+4) -> 11.4 | K49: =IF(K46=-0.5,M22,INDEX($M$23:$M$39,K46+4)) -> 1.4 | L49: =INDEX($M$23:$M$39,L46+4) -> 11.4 | M49: =IF(M46=-0.5,M22,INDEX($M$23:$M$39,M46+4)) -> 1.4 | N49: =INDEX($M$23:$M$39,N46+4) -> 11.4 | O49: =IF(O46=-0.5,M22,INDEX($M$23:$M$39,O46+4)) -> 1.4 | P49: =INDEX($M$23:$M$39,P46+4) -> 11.4 | Q49: =IF(Q46=-0.5,M22,INDEX($M$23:$M$39,Q46+4)) -> 1.4 | R49: =INDEX($M$23:$M$39,R46+4) -> 11.4 | S49: =IF(S46=-0.5,M22,INDEX($M$23:$M$39,S46+4)) -> 1.4 | T49: =INDEX($M$23:$M$39,T46+4) -> 11.4 | U49: =IF(U46=-0.5,M22,INDEX($M$23:$M$39,U46+4)) -> 1.4 | V49: =INDEX($M$23:$M$39,V46+4) -> 11.4 | W49: =IF(W46=-0.5,M22,INDEX($M$23:$M$39,W46+4)) -> 1.4 | X49: =INDEX($M$23:$M$39,X46+4) -> 1.4 | Y49: =IF(Y46=-0.5,M22,INDEX($M$23:$M$39,Y46+4)) -> 1.4 | Z49: =INDEX($M$23:$M$39,Z46+4) -> 1.4 | AA49: =IF(AA46=-0.5,M22,INDEX($M$23:$M$39,AA46+4)) -> 1.4 | AB49: =INDEX($M$23:$M$39,AB46+4) -> 1.4
H55: -1
H56: 0 | I56: =$I$49 -> 1.4 | J56: =$J$49 -> 11.4
H57: 1 | I57: =$I$49 -> 1.4 | J57: =$J$49 -> 11.4
H58: 2 | I58: =$I$49 -> 1.4 | J58: =$J$49 -> 11.4
H59: 3 | I59: =$I$49 -> 1.4 | J59: =$J$49 -> 11.4 | K59: =$K$49 -> 1.4 | L59: =$L$49 -> 11.4
H60: 4 | K60: =$K$49 -> 1.4 | L60: =$L$49 -> 11.4
H61: 5 | K61: =$K$49 -> 1.4 | L61: =$L$49 -> 11.4
H62: 6 | K62: =$K$49 -> 1.4 | L62: =$L$49 -> 11.4 | M62: =$M$49 -> 1.4 | N62: =$N$49 -> 11.4
H63: 7 | M63: =$M$49 -> 1.4 | N63: =$N$49 -> 11.4
H64: 8 | M64: =$M$49 -> 1.4 | N64: =$N$49 -> 11.4
H65: 9 | M65: =$M$49 -> 1.4 | N65: =$N$49 -> 11.4 | O65: =$O$49 -> 1.4 | P65: =$P$49 -> 11.4
H66: 10 | O66: =$O$49 -> 1.4 | P66: =$P$49 -> 11.4
H67: 11 | O67: =$O$49 -> 1.4 | P67: =$P$49 -> 11.4
H68: 12 | O68: =$O$49 -> 1.4 | P68: =$P$49 -> 11.4 | Q68: =$Q$49 -> 1.4 | R68: =$R$49 -> 11.4
C69: Pomocný výpočet počtu sestav lešení: | H69: 13 | Q69: =$Q$49 -> 1.4 | R69: =$R$49 -> 11.4
C70: Délka: | H70: 14 | Q70: =$Q$49 -> 1.4 | R70: =$R$49 -> 11.4
C71: přesah za roh objektu: | D71: Ne | H71: 15 | Q71: =$Q$49 -> 1.4 | R71: =$R$49 -> 11.4 | S71: =$S$49 -> 1.4 | T71: =$T$49 -> 11.4
C72: Požadovaná minimální délka lešení [m] | D72: =IF(D71=Data_podpora!B17,'stěna G'!D12+2,IF('stěna G'!D71=Data_podpora!B14,'stěna G'!D12+0.5,IF(D71=Data_podpora!B13,'stěna G'!D12,'stěna G'!D12+1))) -> 20 | E72: [m] | H72: 16 | S72: =$S$49 -> 1.4 | T72: =$T$49 -> 11.4
C73: Počet sestav lešení (3m) [-] | D73: =ROUNDDOWN(D72/E73,0) -> 6 | E73: 3 | F73: =D73*E73 -> 18 | G73: [m] | H73: 17 | S73: =$S$49 -> 1.4 | T73: =$T$49 -> 11.4
C74: Počet sestav lešení (2m) [-] | D74: =ROUNDDOWN(MOD(D72,E73)/E74,0) -> 1 | E74: 2 | F74: =D74*E74 -> 2 | G74: [m] | H74: 18 | S74: =$S$49 -> 1.4 | T74: =$T$49 -> 11.4 | U74: =$U$49 -> 1.4 | V74: =$V$49 -> 11.4
C75: Počet sestav lešení (0,75m) [-] | D75: =ROUNDUP(D72-(D73*E73+D74*E74),0) -> 0 | E75: 0,75 | F75: =D75*E75 -> 0 | G75: [m] | H75: 19 | U75: =$U$49 -> 1.4 | V75: =$V$49 -> 11.4
C76: Reálná délka lešení [m] | D76: =D73*E73+D74*E74+D75*E75 -> 20 | E76: [m] | H76: 20 | U76: =$U$49 -> 1.4 | V76: =$V$49 -> 11.4
H77: 21 | U77: =$U$49 -> 1.4 | V77: =$V$49 -> 11.4 | W77: =$W$49 -> 1.4 | X77: =$X$49 -> 1.4
C78: Výška: | H78: 22 | W78: =$W$49 -> 1.4 | X78: =X77 -> 1.4
C79: Lešení pro: | D79: Fasádu | H79: 23 | W79: =$W$49 -> 1.4 | X79: =X78 -> 1.4
C80: Výška zábradlí posledního patra [m] | D80: 1 | E80: [m] | H80: 24 | W80: =$W$49 -> 1.4 | X80: =X79 -> 1.4 | Y80: =$Y$49 -> 1.4 | Z80: =$Z$49 -> 1.4
C81: Požadovaná výška [m] | D81: =IF(D79=Data_podpora!B22,'stěna G'!D14+D80,'stěna G'!D14) -> 11.76 | E81: [m] | H81: 25 | Y81: =$Y$49 -> 1.4 | Z81: =Z80 -> 1.4
A82: Založení | C82: Výška nejnižžšího bodu terénu [m] | D82: =MIN(D4,D5,D6,D8) -> 0 | E82: [m] | H82: 26 | Y82: =$Y$49 -> 1.4 | Z82: =Z81 -> 1.4
C83: Výška nejvyššího bodu terénu [m] | D83: =D8 -> 1.3 | E83: [m] | H83: 27 | Y83: =$Y$49 -> 1.4 | Z83: =Z82 -> 1.4 | AA83: =$AA$49 -> 1.4 | AB83: =$AB$49 -> 1.4
C84: Rozdíl max a min [m] | D84: =D83-D82 -> 1.3 | E84: [m] | F84: =IF(D84<0.4,"(Patky 0,4m)",IF(D84<=1,"(Patky 1m)",IF(2>=D84>1,"(Rám 1m)",IF(5>D84>2,"(Rám 2m)","")))) -> (Rám 1m) | H84: 28 | AA84: =$AA$49 -> 1.4 | AB84: =AB83 -> 1.4
B85: # | C85: Výška založení [m] | D85: =D8+0.1 -> 1.4 | E85: [m] | H85: 29 | AA85: =$AA$49 -> 1.4 | AB85: =AB84 -> 1.4
C86: Modulová výška patra lešení [m] | D86: 2 | E86: [m] | H86: 30 | AA86: =$AA$49 -> 1.4 | AB86: =AB85 -> 1.4
C87: Počet pater lešení [-]; výška [m]) | D87: =IF(D81-D85<11,ROUNDDOWN((D81-D85)/2.15,0),ROUNDDOWN((D81-D85)/2.1,0)) -> 4 | E87: pater | F87: =INDEX(M27:M39,D87) -> 9.4 | G87: [m] | H87: 31
C88: Reálná výška lešení [m] | D88: =D87*D86+D85+D80 -> 10.4 | E88: [m]
A90: Uskočení pater | B90: → | C90: Hranice posouzení uskočení | D90: 4 | F90: =INDEX(M27:M39,D90) -> 9.4 | G90: [m]
C91: Zbývající výška do hřebene | D91: =$D$14-F90 -> 2.36 | E91: [m]
C92: Počet uskočených pater | D92: =IF(D91<11,ROUNDDOWN((D91)/2.6,0),ROUNDDOWN((D91)/2.6,0)) -> 0 | E92: =IF(D92=1,"patro",IF(D92<=4,"patra","pater")) -> patra
C93: Rozdíl výšky okapu a nejbližšího patra | D93: =$J$4-(INDEX(M27:M39,D90)) -> 2.36 | E93: [m]
C94: Rozdíl výšek na 3 m sestavu | D94: =$N$5*$E$73 -> -6.394884622e-15 | E94: [m]
B95: =IF($D$92>=1,1,"") ->  | C95: První sestava | D95: =D93+D94 -> 2.36 | E95: [m] | F95: =IF(D$95<=2,"posoudit další",IF(D$95<=3.2,"ponechat","pokračuje patrem")) -> ponechat
B96: =IF(1<=$D$92,2,"X") -> X | C96: Druhá sestava | D96: =IF(F95="ponechat",$D$93+$D$94*B96,$D$93+$D$94*B96-2) ->  | E96: [m] | F96: =IF(D96<2,"posoudit další",IF(D96<=3.2,"ponechat",IF(D96>3.2,"pokračuje patrem",""))) -> 
B97: =IF(2<=$D$92,3,"X") -> X | C97: Třetí sestava | D97: =IF(F96="ponechat",$D$93+$D$94*B97,$D$93+$D$94*B97-2) ->  | E97: [m] | F97: =IF(D97<2,"posoudit další",IF(D97<=3.2,"ponechat",IF(D97>3.2,"pokračuje patrem",""))) -> 
B98: =IF(3<=$D$92,4,"X") -> X | C98: Čtvrtá sestava | D98: =IF(F97="ponechat",$D$93+$D$94*B98,$D$93+$D$94*B98-2) ->  | E98: [m] | F98: =IF(D98<2,"posoudit další",IF(D98<=3.2,"ponechat",IF(D98>3.2,"pokračuje patrem",""))) -> 
C103: NAKLÁDACÍ LIST
C105: stavitelná patka 0,5m | D105: počet kusů
C106: stavitelná patka 1m | D106: =IF(D107>=0,($D$73+$D$74+$D$75)*2+2-D107,($D$73+$D$74+$D$75)*2+2) -> 14
C107: rám 2m | D107: 2
C108: rám 1m | D108: =(($D$73+$D$74+$D$75)+1)*$D$87 -> 32
C109: podlaha 3m | D109: =IF(D85>=1,($D$73+$D$74+$D$75)+1,0) -> 8
C110: podlaha 2m | D110: =(D73*D87-$D112)*2 -> 40
C111: průlezová podlaha 3m | D111: =D74*D87 -> 4
C112: zábradlí 3m | D112: =D87 -> 4
C113: zábradlí 2m | D113: =(1+$D$87*2)*D73 -> 54
C114: diagonální úchyt | D114: =(1+$D$87*2)*D74 -> 9
C115: diagonála 3m
C116: diagonála 2m | D116: =$D$87*(ROUNDUP((D73+D74+D75)/4,0)) -> 8
C117: kotva 0,5 m | D117: =IF(D116=0,$D$87*ROUNDUP(D74/4,0),0) -> 0
C118: kotva dlouhá 1 m | D118: =(($D$87-1)*SUM(D73:D75))/2 -> 10.5
C119: eLko / sloupek
C120: eLko 2 m | D120: =SUM(D73:D75)+1 -> 8
C121: Háčko
C122: boční zábradlí
C123: okopové prkno 3m | D123: =D87*2 -> 8
C124: okopové prkno 2m | D124: =D73*D87 -> 24
C125: konzola | D125: =D74*D87 -> 4
C126: pevna spojka
C127: otočná spojka
C128: závlačná spojka

Sheet stěna H
C1: Stěna H | D1: Výkres: | H1: Data grafu:
C2: Nastavení parametrů výpočtu: | I2: Tvar střechy | K2: Tvar terénu | M2: úhel alfa | V2: NAKLÁDACÍ LIST: | X2: =$C$1 -> Stěna H | Y2: =IF(AD6=0,"(BUDE NAKLÁDÁNO POUZE AUTO)","") -> (BUDE NAKLÁDÁNO POUZE AUTO) | AB2: VYTÍŽENOST ODVOZNÍHO PROSTŘEDKU:
C3: Terén: absolutní výška (±0,00 = svislice od hřebene střechy na terén) | I3: osa x | J3: osa y | K3: osa x | L3: osa y | M3: tg A | N3: =($D$14-$J$4)/($D$12/2) -> 0.2867924528 | V3: obestavběná plocha lešení [m2] | Y3: =IF(K41>=1,SUM(I48,K48,M48,O48,Q48,S48,U48,W48,Y48,AA48)+SUM(I44,K44,M44,O44,Q44,S44,U44,W44,Y44,AA44)*2+SUM(I44,K44,M44,O44,Q44,S44,U44,W44,Y44,AA44),SUM(I48,K48,M48,O48,Q48,S48,U48,W48,Y48,AA48)+SUM(I44,K44,M44,O44,Q44,S44,U44,W44,Y44,AA44)*2) -> 192 | Z3: [m2] | AB3: [kg] | AC3: 1. cesta | AF3: 2.cesta
B4: → | C4: Výška terénu v levém rohu [m] | D4: 0.75 | E4: [m] | H4: vlevo | I4: 0 | J4: =IF($D$13=Data_podpora!$B$9,$D$14,$D$15+$D$4) -> 11.75 | K4: 0 | L4: =$D$4 -> 0.75 | M4: A | N4: =DEGREES(ATAN(N3)) -> 16.00249183 | V4: Komponenta | X4: počet kusů [ks] | Y4: jednotková hmotnost [kg/ks] | Z4: hmotnost [kg] | AC4: KAPACITA | AD4: VYUŽITO | AE4: Zbývá | AF4: KAPACITA | AG4: VYUŽITO | AH4: ZBÝVÁ
B5: → | C5: Výška terénu v pravém rohu [m] | D5: -0.75 | E5: [m] | H5: max | I5: =$D$9 -> 0 | J5: =IF($D$12/2<I5,-$N$3*I5+$J$4+$N$3*$D$12,$N$3*I5+$J$4) -> 11.75 | K5: =$D$9 -> 0 | L5: =$D$8 -> 0.75 | M5: tg A | N5: =TAN(RADIANS($N$4)) -> 0.2867924528 | AB5: AUTO | AC5: 2500 | AD5: =IF(Z30<=AC5,SUM(Z6:Z29),SUM(Z6:Z9,Z26:Z29,Z15:Z23,Z13/2,Z14/2)) -> 2313.05 | AE5: =IF((AC5-AD5)<=0,0,AC5-AD5) -> 186.95 | AF5: 2500 | AG5: =IF(AC5-AD5<=0,-(AC5-AD5),0) -> 0 | AH5: =AF5-AG5 -> 2500
B6: → | C6: Výška nejnižšího bodu terénu [m] | D6: -0.75 | E6: [m] | H6: top | I6: =$D$12/2 -> 6.625 | J6: =$D$14 -> 13.65 | K6: =$D$12/2 -> 6.625 | L6: =0 -> 0 | M6: sklon | N6: =$N$5 -> 0.2867924528 | V6: stavitelná patka 0,5m | X6: =IF(X7>0,(COUNT(I46:AB46)+2)-X7,(COUNT(I46:AB46)+2)) -> 12 | Y6: 3.1 | Z6: =Y7*X6 -> 56.4 | AB6: ZÁVĚS | AC6: 3500 | AD6: =IF(Z30<=AC5,0,SUM(Z10:Z12,Z24:Z25,Z13/2,Z14/2)) -> 0 | AE6: =IF((AC6-AD6)<=0,0,AC6-AD6) -> 3500 | AF6: 3500 | AG6: =IF(AC6-AD6<=0,-(AC6-AD6),0) -> 0 | AH6: =AF6-AG6 -> 3500
B7: → | C7: Místo nejnižšího bodu (zleva) [m] | D7: =D12 -> 13.25 | E7: [m] | H7: vpravo | I7: =$D$12 -> 13.25 | J7: =$J$4 -> 11.75 | K7: =$D$12 -> 13.25 | L7: =$D$5 -> -0.75 | V7: stavitelná patka 1m | X7: 0 | Y7: 4.7 | Z7: =Y9*X7 -> 0
B8: → | C8: Výška nejvyššího bodu terénu [m] | D8: 0.75 | E8: [m] | H8: min | I8: =$D$7 -> 13.25 | J8: =IF($D$12/2>I8,$N$3*I8+$J$4,-$N$3*I8+$J$4+$N$3*$D$12) -> 11.75 | K8: =$D$7 -> 13.25 | L8: =$D$6 -> -0.75 | V8: rám 2m | X8: =IF(X9>0,SUM(J46-I46,L46-K46,N46-M46,P46-O46,R46-Q46,T46-S46,V46-U46,X46-W46,Z46-Y46,AB46-AA46)+MIN(J46-I46,L46-K46,N46-M46,P46-O46,R46-Q46,T46-S46,V46-U46,X46-W46,Z46-Y46,AB46-AA46)+MAX(J46-I46,L46-K46,N46-M46,P46-O46,R46-Q46,T46-S46,V46-U46,X46-W46,Z46-Y46,AB46-AA46)-MIN(J46-I46,L46-K46,N46-M46,P46-O46,R46-Q46,T46-S46,V46-U46,X46-W46,Z46-Y46,AB46-AA46)-X9,SUM(J46-I46,L46-K46,N46-M46,P46-O46,R46-Q46,T46-S46,V46-U46,X46-W46,Z46-Y46,AB46-AA46)+MIN(J46-I46,L46-K46,N46-M46,P46-O46,R46-Q46,T46-S46,V46-U46,X46-W46,Z46-Y46,AB46-AA46)+MAX(J46-I46,L46-K46,N46-M46,P46-O46,R46-Q46,T46-S46,V46-U46,X46-W46,Z46-Y46,AB46-AA46)-MIN(J46-I46,L46-K46,N46-M46,P46-O46,R46-Q46,T46-S46,V46-U46,X46-W46,Z46-Y46,AB46-AA46)) -> 32 | Y8: 16.5 | Z8: =Y8*X8 -> 528
B9: → | C9: Místo nejvyššího bodu (zleva) [m] | D9: 0 | E9: [m] | V9: rám 1m | X9: 0 | Y9: 11.3 | Z9: 0
I10: Tvar střechy | K10: Tvar terénu | M10: úhel alfa | V10: podlaha 3m | X10: =((IF(I44=3,J46-I46,0)+IF(K44=3,L46-K46,0)+IF(M44=3,N46-M46,0)+IF(O44=3,P46-O46,0)+IF(Q44=3,R46-Q46,0)+IF(S44=3,T46-S46,0)+IF(U44=3,V46-U46,0)+IF(W44=3,X46-W46,0)+IF(Y44=3,Z46-Y46,0)+IF(AA44=3,AB46-AA46,0))-X12)*2 -> 40 | Y10: 22 | Z10: 880
C11: Střecha: v případě úžlabí volit tvar střechy sedlový | I11: osa x | J11: osa y | K11: osa x | L11: osa y | M11: tg A | N11: =($D$14-$J$4)/($D$17) ->  | V11: podlaha 2m | X11: =(IF(I44=2,J46-I46,0)+IF(K44=2,L46-K46,0)+IF(M44=2,N46-M46,0)+IF(O44=2,P46-O46,0)+IF(Q44=2,R46-Q46,0)+IF(S44=2,T46-S46,0)+IF(U44=2,V46-U46,0)+IF(W44=2,X46-W46,0)+IF(Y44=2,Z46-Y46,0)+IF(AA44=2,AB46-AA46,0))*2 -> 0 | Y11: 14.5 | Z11: 0
C12: Délka strany [m] | D12: =Půdorys!C12 -> 13.25 | E12: [m] | H12: vlevo | I12: 0 | J12: =$D$15+$D$4 -> 11.75 | K12: 0 | L12: =$D$4 -> 0.75 | M12: A | N12: =DEGREES(ATAN(N11)) ->  | V12: průlezová podlaha 3m | X12: =MAX(J46:AB46) -> 6 | Y12: 28 | Z12: 168
B13: → | C13: Tvar střechy: | D13: sedlová | H13: max | I13: =$D$9 -> 0 | J13: =IF($I$17<I13,-$N$3*I13+$J$4+$N$11*$D$12,IF(I13<$I$14,$N$11*I13+$J$4,J14)) -> 13.65 | K13: =$D$9 -> 0 | L13: =$D$8 -> 0.75 | M13: tg A | N13: =TAN(RADIANS($N$12)) ->  | V13: zábradlí 3m | X13: =IF(I44=3,2*(J46-I46)+1,0)+IF(K44=3,2*(L46-K46)+1,0)+IF(M44=3,2*(N46-M46)+1,0)+IF(O44=3,2*(P46-O46)+1,0)+IF(Q44=3,2*(R46-Q46)+1,0)+IF(S44=3,2*(T46-S46)+1,0)+IF(U44=3,2*(V46-U46)+1,0)+IF(W44=3,2*(X46-W46)+1,0)+IF(Y44=3,2*(Z46-Y46)+1,0)+IF(AA44=3,2*(AB46-AA46)+1,0) -> 57 | Y13: 5.5 | Z13: 313.5
B14: → | C14: =IF('stěna H'!$D$13=Data_podpora!$B$9,"Výška stěny [m]","Výška uprostřed stěny [m]") -> Výška uprostřed stěny [m] | D14: =510.4-496-0.75 -> 13.65 | E14: [m] | H14: polov1 | I14: =$D$17 -> 0 | J14: =$D$14 -> 13.65 | K14: =$D$17 -> 0 | L14: =$D$18 -> 0 | M14: sklon | N14: =$N$13 ->  | V14: zábradlí 2m | X14: =IF(I44=2,2*(J46-I46)+1,0)+IF(K44=2,2*(L46-K46)+1,0)+IF(M44=2,2*(N46-M46)+1,0)+IF(O44=2,2*(P46-O46)+1,0)+IF(Q44=2,2*(R46-Q46)+1,0)+IF(S44=2,2*(T46-S46)+1,0)+IF(U44=2,2*(V46-U46)+1,0)+IF(W44=2,2*(X46-W46)+1,0)+IF(Y44=2,2*(Z46-Y46)+1,0)+IF(AA44=2,2*(AB46-AA46)+1,0) -> 0 | Y14: 3.5 | Z14: 0
B15: =IF($D$13=Data_podpora!B9,"","→") -> → | C15: =IF($D$13=Data_podpora!$B$9,"","Výška od terénu k okapu (levý) [m]") -> Výška od terénu k okapu (levý) [m] | D15: 11 | E15: =IF($D$13=Data_podpora!$B$9,"","[m]") -> [m] | H15: top | I15: =$D$12/2 -> 6.625 | J15: =$D$14 -> 13.65 | K15: =$D$12/2 -> 6.625 | L15: =0 -> 0 | V15: diagonální úchyt | X15: =X16/MAX(I46:AB46) -> 1 | Y15: 0.5 | Z15: 0.5
C16: =IF(D13=Data_podpora!B10,"Upřesňující parametry pro polovalbovou střechu:","") ->  | H16: polov2 | I16: =$D$12-$D$17 -> 13.25 | J16: =$D$14 -> 13.65 | K16: =$D$12-$D$17 -> 13.25 | L16: =$D$19 -> 0 | V16: diagonála 3m | X16: =MAX(J46-I46,L46-K46,N46-M46,P46-O46,R46-Q46,T46-S46,V46-U46,X46-W46,Z46-Y46,AB46-AA46)*ROUNDUP((IF(I44=3,I44,0)+IF(K44=3,K44,0)+IF(M44=3,M44,0)+IF(O44=3,O44,0)+IF(Q44=3,Q44,0)+IF(S44=3,S44,0)+IF(U44=3,U44,0)+IF(W44=3,W44,0)+IF(Y44=3,Y44,0)+IF(AA44=3,AA44,0))/20,0) -> 6 | Y16: 11 | Z16: 66
B17: =IF($D$13=Data_podpora!$B$10,'stěna H'!$B$15,"") ->  | C17: =IF($D$13=Data_podpora!$B$10,"Místo polovalby [m]","") ->  | E17: =IF($D$13=Data_podpora!$B$10,"[m]","") ->  | H17: min | I17: =$D$7 -> 13.25 | J17: =IF($I$13>=I17,$N$11*I17+$J$4,IF(I17<=$I$16,J15,-$N$11*I17+$J$12+$N$11*$D$12)) -> 13.65 | K17: =$D$7 -> 13.25 | L17: =$D$6 -> -0.75 | V17: diagonála 2m | X17: =IF(X16=0,MAX(J46-I46,L46-K46,N46-M46,P46-O46,R46-Q46,T46-S46,V46-U46,X46-W46,Z46-Y46,AB46-AA46)*ROUNDUP((IF(I44=2,I44,0)+IF(K44=2,K44,0)+IF(M44=2,M44,0)+IF(O44=2,O44,0)+IF(Q44=2,Q44,0)+IF(S44=2,S44,0)+IF(U44=2,U44,0)+IF(W44=2,W44,0)+IF(Y44=2,Y44,0)+IF(AA44=2,AA44,0))/12,0),0) -> 0 | Y17: 8 | Z17: 0
B18: =IF($D$13=Data_podpora!$B$10,'stěna H'!$B$15,"") ->  | C18: =IF($D$13=Data_podpora!$B$10,"Výška terénu v místě levé polovalby [m]","") ->  | E18: =IF($D$13=Data_podpora!$B$10,"[m]","") ->  | H18: vpravo | I18: =$D$12 -> 13.25 | J18: =$J$4 -> 11.75 | K18: =$D$12 -> 13.25 | L18: =$D$5 -> -0.75 | V18: kotva 0,5 m | X18: =IF(X19=0,ROUNDUP(X8*0.45,0),ROUNDUP(X8*0.45,0)-X19) -> 15 | Y18: 2 | Z18: 30
B19: =IF($D$13=Data_podpora!$B$10,'stěna H'!$B$15,"") ->  | C19: =IF($D$13=Data_podpora!$B$10,"Výška terénu v místě pravé polovalby [m]","") ->  | E19: =IF($D$13=Data_podpora!$B$10,"[m]","") ->  | V19: kotva dlouhá 1 m | X19: 0 | Y19: 3.8 | Z19: 0
H20: Patra lešení | V20: eLko / sloupek | X20: =IF(X22=0,COUNT(J46,L46,N46,P46,R46,T46,V46,X46,Z46,AB46)+1,(COUNT(J46,L46,N46,P46,R46,T46,V46,X46,Z46,AB46)+1)-X22) -> 4 | Y20: 5 | Z20: 20
V21: eLko 2 m | Y21: 11.5 | Z21: 0
B22: =IF($D$21=Data_podpora!B30,"→","") ->  | E22: =IF(D21=Data_podpora!B30,"[m]","") ->  | H22: -0,5 | I22: =I26-1 -> -0.8 | J22: =J26-1 -> -0.8 | K22: =K26-1 -> -0.8 | L22: =L26-1 -> -0.8 | M22: =M26-1 -> -0.8 | V22: Háčko | X22: =2*(MAX(I46:AB46)-MIN(J46,L46,N46,P46,R46,T46,V46,X46,Z46,AB46)) -> 2 | Y22: 9.7 | Z22: 19.4
B23: =IF($D$21=Data_podpora!$B$30,"→","") ->  | C23: =IF(D21=Data_podpora!B30,"Výška od terénu (zleva) [m]","") ->  | E23: =IF(D21=Data_podpora!B30,"[m]","") ->  | H23: -3 | I23: =I24-2 -> -5.8 | J23: -5.8 | K23: -5.8 | L23: -5.8 | M23: -5.8 | V23: boční zábradlí | X23: =IF(X22=0,(MAX(J46-I46,L46-K46,N46-M46,P46-O46,R46-Q46,T46-S46,V46-U46,X46-W46,Z46-Y46,AB46-AA46)+1)*2,(MAX(J46-I46,L46-K46,N46-M46,P46-O46,R46-Q46,T46-S46,V46-U46,X46-W46,Z46-Y46,AB46-AA46)+1)*2-X22) -> 12 | Y23: 3 | Z23: 36
B24: =IF($D$21=Data_podpora!$B$30,"→","") ->  | C24: =IF(D21=Data_podpora!B30,"Šířka [m]","") ->  | E24: =IF(D21=Data_podpora!B30,"[m]","") ->  | H24: -2 | I24: -3.8 | J24: -3.8 | K24: -3.8 | L24: -3.8 | M24: -3.8 | V24: okopové prkno 3m | X24: =IF(I44=3,J46-I46,0)+IF(K44=3,L46-K46,0)+IF(M44=3,N46-M46,0)+IF(O44=3,P46-O46,0)+IF(Q44=3,R46-Q46,0)+IF(S44=3,T46-S46,0)+IF(U44=3,V46-U46,0)+IF(W44=3,X46-W46,0)+IF(Y44=3,Z46-Y46,0)+IF(AA44=3,AB46-AA46,0) -> 26 | Y24: 6.5 | Z24: 169
H25: -1 | I25: =I26-2 -> -1.8 | J25: =$K$41-2 -> -1.8 | K25: =$K$41-2 -> -1.8 | L25: =$K$41-2 -> -1.8 | M25: =$K$41-2 -> -1.8 | V25: okopové prkno 2m | X25: =IF(I44=2,J46-I46,0)+IF(K44=2,L46-K46,0)+IF(M44=2,N46-M46,0)+IF(O44=2,P46-O46,0)+IF(Q44=2,R46-Q46,0)+IF(S44=2,T46-S46,0)+IF(U44=2,V46-U46,0)+IF(W44=2,X46-W46,0)+IF(Y44=2,Z46-Y46,0)+IF(AA44=2,AB46-AA46,0) -> 0 | Y25: 4.5 | Z25: 0
H26: 0 | I26: =$K$41 -> 0.2 | J26: =$K$41 -> 0.2 | K26: =$K$41 -> 0.2 | L26: =$K$41 -> 0.2 | M26: =$K$41 -> 0.2 | V26: konzola | X26: 0 | Y26: 10 | Z26: 0
H27: 1 | I27: =I26+$D$86 -> 2.2 | J27: =J26+$D$86 -> 2.2 | K27: =K26+$D$86 -> 2.2 | L27: =L26+$D$86 -> 2.2 | M27: =M26+$D$86 -> 2.2 | V27: pevna spojka | X27: =J46*2 -> 10 | Y27: 1.15 | Z27: 11.5
H28: 2 | I28: 4.2 | J28: 4.2 | K28: 4.2 | L28: 4.2 | M28: 4.2 | V28: otočná spojka | X28: =J46 -> 5 | Y28: 1.35 | Z28: 6.75
H29: 3 | I29: 6.2 | J29: 6.2 | K29: 6.2 | L29: 6.2 | M29: 6.2 | V29: závlačná spojka | X29: =J46*2 -> 10 | Y29: 0.8 | Z29: 8
H30: 4 | I30: 8.2 | J30: 8.2 | K30: 8.2 | L30: 8.2 | M30: 8.2 | V30: CELKOVÁ HMOTNOST [kg] | Z30: =SUM(Z6:Z29) -> 2313.05
H31: 5 | I31: 10.2 | J31: 10.2 | K31: 10.2 | L31: 10.2 | M31: 10.2
H32: 6 | I32: 12.2 | J32: 12.2 | K32: 12.2 | L32: 12.2 | M32: 12.2
H33: 7 | I33: 14.2 | J33: 14.2 | K33: 14.2 | L33: 14.2 | M33: 14.2
H34: 8 | I34: 16.2 | J34: 16.2 | K34: 16.2 | L34: 16.2 | M34: 16.2
H35: 9 | I35: 18.2 | J35: 18.2 | K35: 18.2 | L35: 18.2 | M35: 18.2
H36: 10 | I36: 20.2 | J36: 20.2 | K36: 20.2 | L36: 20.2 | M36: 20.2
H37: 11 | I37: 22.2 | J37: 22.2 | K37: 22.2 | L37: 22.2 | M37: 22.2
H38: 12 | I38: 24.2 | J38: 24.2 | K38: 24.2 | L38: 24.2 | M38: 24.2
H39: 13 | I39: 26.2 | J39: 26.2 | K39: 26.2 | L39: 26.2 | M39: 26.2
H41: LEŠENÍ | I41: výška založení [m] | K41: 0.2 | L41: [m] | M41: nepsat nuly v kolonce "patro",pokud není sestava lešení využita | S41: Poznámka: | T41: =IF(Půdorys!I12=0,"",Půdorys!I12) -> 
I42: ZALOŽENÍ | J42: VÝŠKA P.P. | K42: ZALOŽENÍ | L42: VÝŠKA P.P. | M42: ZALOŽENÍ | N42: VÝŠKA P.P. | O42: ZALOŽENÍ | P42: VÝŠKA P.P. | Q42: ZALOŽENÍ | R42: VÝŠKA P.P. | S42: ZALOŽENÍ | T42: VÝŠKA P.P. | U42: ZALOŽENÍ | V42: VÝŠKA P.P. | W42: ZALOŽENÍ | X42: VÝŠKA P.P. | Y42: ZALOŽENÍ | Z42: VÝŠKA P.P. | AA42: ZALOŽENÍ | AB42: VÝŠKA P.P.
H43: SESTAVA | I43: 1 | K43: 2 | M43: 3 | O43: 4 | Q43: 5 | S43: 6 | U43: 7 | W43: 8 | Y43: 9 | AA43: 10
H44: DÉLKA SESTAVY | I44: 3 | K44: 3 | M44: 3 | O44: 3 | Q44: 3 | S44: 0 | U44: 0 | W44: 0 | Y44: 0 | AA44: 0
H45: "potvrdit"
H46: PATRO | I46: 1 | J46: 5 | K46: 1 | L46: 6 | M46: 0 | N46: 6 | O46: 0 | P46: 6 | Q46: 0 | R46: 5
H47: POSUN
H48: plocha [m2] | I48: =(J46-I46)*$D$86*I44 -> 24 | K48: =L46*$D$86*K44 -> 36 | M48: =N46*$D$86*M44 -> 36 | O48: =P46*$D$86*O44 -> 36 | Q48: =R46*$D$86*Q44 -> 30 | S48: =T46*$D$86*S44 -> 0 | U48: =V46*$D$86*U44 -> 0 | W48: =X46*$D$86*W44 -> 0 | Y48: =Z46*$D$86*Y44 -> 0 | AA48: =AB46*$D$86*AA44 -> 0
H49: výška | I49: =IF(I46=-0.5,M22,INDEX($M$23:$M$39,I46+4)) -> 2.2 | J49: =INDEX($M$23:$M$39,J46+4) -> 10.2 | K49: =IF(K46=-0.5,M22,INDEX($M$23:$M$39,K46+4)) -> 2.2 | L49: =INDEX($M$23:$M$39,L46+4) -> 12.2 | M49: =IF(M46=-0.5,M22,INDEX($M$23:$M$39,M46+4)) -> 0.2 | N49: =INDEX($M$23:$M$39,N46+4) -> 12.2 | O49: =IF(O46=-0.5,M22,INDEX($M$23:$M$39,O46+4)) -> 0.2 | P49: =INDEX($M$23:$M$39,P46+4) -> 12.2 | Q49: =IF(Q46=-0.5,M22,INDEX($M$23:$M$39,Q46+4)) -> 0.2 | R49: =INDEX($M$23:$M$39,R46+4) -> 10.2 | S49: =IF(S46=-0.5,M22,INDEX($M$23:$M$39,S46+4)) -> 0.2 | T49: =INDEX($M$23:$M$39,T46+4) -> 0.2 | U49: =IF(U46=-0.5,M22,INDEX($M$23:$M$39,U46+4)) -> 0.2 | V49: =INDEX($M$23:$M$39,V46+4) -> 0.2 | W49: =IF(W46=-0.5,M22,INDEX($M$23:$M$39,W46+4)) -> 0.2 | X49: =INDEX($M$23:$M$39,X46+4) -> 0.2 | Y49: =IF(Y46=-0.5,M22,INDEX($M$23:$M$39,Y46+4)) -> 0.2 | Z49: =INDEX($M$23:$M$39,Z46+4) -> 0.2 | AA49: =IF(AA46=-0.5,M22,INDEX($M$23:$M$39,AA46+4)) -> 0.2 | AB49: =INDEX($M$23:$M$39,AB46+4) -> 0.2
H55: -1 | I55: =$I$49 -> 2.2 | J55: =$J$49 -> 10.2
H56: 0 | I56: =$I$49 -> 2.2 | J56: =$J$49 -> 10.2
H57: 1 | I57: =$I$49 -> 2.2 | J57: =$J$49 -> 10.2
H58: 2 | I58: =$I$49 -> 2.2 | J58: =$J$49 -> 10.2 | K58: =$K$49 -> 2.2 | L58: =$L$49 -> 12.2
H59: 3 | K59: =$K$49 -> 2.2 | L59: =$L$49 -> 12.2
H60: 4 | K60: =$K$49 -> 2.2 | L60: =$L$49 -> 12.2
H61: 5 | K61: =$K$49 -> 2.2 | L61: =$L$49 -> 12.2 | M61: =$M$49 -> 0.2 | N61: =$N$49 -> 12.2
H62: 6 | M62: =$M$49 -> 0.2 | N62: =$N$49 -> 12.2
H63: 7 | M63: =$M$49 -> 0.2 | N63: =$N$49 -> 12.2
H64: 8 | M64: =$M$49 -> 0.2 | N64: =$N$49 -> 12.2 | O64: =$O$49 -> 0.2 | P64: =$P$49 -> 12.2
H65: 9 | O65: =$O$49 -> 0.2 | P65: =$P$49 -> 12.2
H66: 10 | O66: =$O$49 -> 0.2 | P66: =$P$49 -> 12.2
H67: 11 | O67: =$O$49 -> 0.2 | P67: =$P$49 -> 12.2 | Q67: =$Q$49 -> 0.2 | R67: =$R$49 -> 10.2
H68: 12 | Q68: =$Q$49 -> 0.2 | R68: =$R$49 -> 10.2
C69: Pomocný výpočet počtu sestav lešení: | H69: 13 | Q69: =$Q$49 -> 0.2 | R69: =$R$49 -> 10.2
C70: Délka: | H70: 14 | Q70: =$Q$49 -> 0.2 | R70: =$R$49 -> 10.2 | S70: =$S$49 -> 0.2 | T70: =$T$49 -> 0.2
C71: přesah za roh objektu: | D71: Ne | H71: 15 | S71: =$S$49 -> 0.2 | T71: =$T$49 -> 0.2
C72: Požadovaná minimální délka lešení [m] | D72: =IF(D71=Data_podpora!B17,'stěna H'!D12+2,IF('stěna H'!D71=Data_podpora!B14,'stěna H'!D12+0.5,IF(D71=Data_podpora!B13,'stěna H'!D12,'stěna H'!D12+1))) -> 13.25 | E72: [m] | H72: 16 | S72: =$S$49 -> 0.2 | T72: =$T$49 -> 0.2
C73: Počet sestav lešení (3m) [-] | D73: =ROUNDDOWN(D72/E73,0) -> 4 | E73: 3 | F73: =D73*E73 -> 12 | G73: [m] | H73: 17 | S73: =$S$49 -> 0.2 | T73: =$T$49 -> 0.2 | U73: =$U$49 -> 0.2 | V73: =$V$49 -> 0.2
C74: Počet sestav lešení (2m) [-] | D74: =ROUNDDOWN(MOD(D72,E73)/E74,0) -> 0 | E74: 2 | F74: =D74*E74 -> 0 | G74: [m] | H74: 18 | U74: =$U$49 -> 0.2 | V74: =$V$49 -> 0.2
C75: Počet sestav lešení (0,75m) [-] | D75: =ROUNDUP(D72-(D73*E73+D74*E74),0) -> 2 | E75: 0,75 | F75: =D75*E75 -> 1.5 | G75: [m] | H75: 19 | U75: =$U$49 -> 0.2 | V75: =$V$49 -> 0.2
C76: Reálná délka lešení [m] | D76: =D73*E73+D74*E74+D75*E75 -> 13.5 | E76: [m] | H76: 20 | U76: =$U$49 -> 0.2 | V76: =$V$49 -> 0.2 | W76: =$W$49 -> 0.2 | X76: =$X$49 -> 0.2
H77: 21 | W77: =$W$49 -> 0.2 | X77: =X76 -> 0.2
C78: Výška: | H78: 22 | W78: =$W$49 -> 0.2 | X78: =X77 -> 0.2
C79: Lešení pro: | D79: Fasádu | H79: 23 | W79: =$W$49 -> 0.2 | X79: =X78 -> 0.2 | Y79: =$Y$49 -> 0.2 | Z79: =$Z$49 -> 0.2
C80: Výška zábradlí posledního patra [m] | D80: 1 | E80: [m] | H80: 24 | Y80: =$Y$49 -> 0.2 | Z80: =Z79 -> 0.2
C81: Požadovaná výška [m] | D81: =IF(D79=Data_podpora!B22,'stěna H'!D14+D80,'stěna H'!D14) -> 13.65 | E81: [m] | H81: 25 | Y81: =$Y$49 -> 0.2 | Z81: =Z80 -> 0.2
A82: Založení | C82: Výška nejnižžšího bodu terénu [m] | D82: =MIN(D4,D5,D6,D8) -> -0.75 | E82: [m] | H82: 26 | Y82: =$Y$49 -> 0.2 | Z82: =Z81 -> 0.2 | AA82: =$AA$49 -> 0.2 | AB82: =$AB$49 -> 0.2
C83: Výška nejvyššího bodu terénu [m] | D83: =D8 -> 0.75 | E83: [m] | H83: 27 | AA83: =$AA$49 -> 0.2 | AB83: =AB82 -> 0.2
C84: Rozdíl max a min [m] | D84: =D83-D82 -> 1.5 | E84: [m] | F84: =IF(D84<0.4,"(Patky 0,4m)",IF(D84<=1,"(Patky 1m)",IF(2>=D84>1,"(Rám 1m)",IF(5>D84>2,"(Rám 2m)","")))) -> (Rám 1m) | H84: 28 | AA84: =$AA$49 -> 0.2 | AB84: =AB83 -> 0.2
B85: # | C85: Výška založení [m] | D85: =D8+0.1 -> 0.85 | E85: [m] | H85: 29 | AA85: =$AA$49 -> 0.2 | AB85: =AB84 -> 0.2
C86: Modulová výška patra lešení [m] | D86: 2 | E86: [m] | H86: 30
C87: Počet pater lešení [-]; výška [m]) | D87: =IF(D81-D85<11,ROUNDDOWN((D81-D85)/2.15,0),ROUNDDOWN((D81-D85)/2.1,0)) -> 6 | E87: pater | F87: =INDEX(M27:M39,D87) -> 12.2 | G87: [m] | H87: 31
C88: Reálná výška lešení [m] | D88: =D87*D86+D85+D80 -> 13.85 | E88: [m]
A90: Uskočení pater | B90: → | C90: Hranice posouzení uskočení | D90: 4 | F90: =INDEX(M27:M39,D90) -> 8.2 | G90: [m]
C91: Zbývající výška do hřebene | D91: =$D$14-F90 -> 5.45 | E91: [m]
C92: Počet uskočených pater | D92: =IF(D91<11,ROUNDDOWN((D91)/2.6,0),ROUNDDOWN((D91)/2.6,0)) -> 2 | E92: =IF(D92=1,"patro",IF(D92<=4,"patra","pater")) -> patra
C93: Rozdíl výšky okapu a nejbližšího patra | D93: =$J$4-(INDEX(M27:M39,D90)) -> 3.55 | E93: [m]
C94: Rozdíl výšek na 3 m sestavu | D94: =$N$5*$E$73 -> 0.8603773585 | E94: [m]
B95: =IF($D$92>=1,1,"") -> 1 | C95: První sestava | D95: =D93+D94 -> 4.410377358 | E95: [m] | F95: =IF(D$95<=2,"posoudit další",IF(D$95<=3.2,"ponechat","pokračuje patrem")) -> pokračuje patrem
B96: =IF(1<=$D$92,2,"X") -> 2 | C96: Druhá sestava | D96: =IF(F95="ponechat",$D$93+$D$94*B96,$D$93+$D$94*B96-2) -> 3.270754717 | E96: [m] | F96: =IF(D96<2,"posoudit další",IF(D96<=3.2,"ponechat",IF(D96>3.2,"pokračuje patrem",""))) -> pokračuje patrem
B97: =IF(2<=$D$92,3,"X") -> 3 | C97: Třetí sestava | D97: =IF(F96="ponechat",$D$93+$D$94*B97,$D$93+$D$94*B97-2) -> 4.131132075 | E97: [m] | F97: =IF(D97<2,"posoudit další",IF(D97<=3.2,"ponechat",IF(D97>3.2,"pokračuje patrem",""))) -> pokračuje patrem
B98: =IF(3<=$D$92,4,"X") -> X | C98: Čtvrtá sestava | D98: =IF(F97="ponechat",$D$93+$D$94*B98,$D$93+$D$94*B98-2) ->  | E98: [m] | F98: =IF(D98<2,"posoudit další",IF(D98<=3.2,"ponechat",IF(D98>3.2,"pokračuje patrem",""))) -> 
C103: NAKLÁDACÍ LIST
C105: stavitelná patka 0,5m | D105: počet kusů
C106: stavitelná patka 1m | D106: =IF(D107>=0,($D$73+$D$74+$D$75)*2+2-D107,($D$73+$D$74+$D$75)*2+2) -> 12
C107: rám 2m | D107: 2
C108: rám 1m | D108: =(($D$73+$D$74+$D$75)+1)*$D$87 -> 42
C109: podlaha 3m | D109: =IF(D85>=1,($D$73+$D$74+$D$75)+1,0) -> 0
C110: podlaha 2m | D110: =(D73*D87-$D112)*2 -> 36
C111: průlezová podlaha 3m | D111: =D74*D87 -> 0
C112: zábradlí 3m | D112: =D87 -> 6
C113: zábradlí 2m | D113: =(1+$D$87*2)*D73 -> 52
C114: diagonální úchyt | D114: =(1+$D$87*2)*D74 -> 0
C115: diagonála 3m
C116: diagonála 2m | D116: =$D$87*(ROUNDUP((D73+D74+D75)/4,0)) -> 12
C117: kotva 0,5 m | D117: =IF(D116=0,$D$87*ROUNDUP(D74/4,0),0) -> 0
C118: kotva dlouhá 1 m | D118: =(($D$87-1)*SUM(D73:D75))/2 -> 15
C119: eLko / sloupek
C120: eLko 2 m | D120: =SUM(D73:D75)+1 -> 7
C121: Háčko
C122: boční zábradlí
C123: okopové prkno 3m | D123: =D87*2 -> 12
C124: okopové prkno 2m | D124: =D73*D87 -> 24
C125: konzola | D125: =D74*D87 -> 0
C126: pevna spojka
C127: otočná spojka
C128: závlačná spojka

Sheet Rekapitulace
B1: Rekapitulace
B2: Název zakázky: | C2: =Nabídka!A7 -> Akce:
B3: Výška nejvyššího patra: | C3: =MAX('stěna A'!I46:AB46,'stěna B'!I46:AB47,'stěna C'!I46:AB46,'stěna D'!I46:AB46,'stěna E'!I46:AB46,'stěna F'!I46:AB46,'stěna G'!I46:AB46,'stěna H'!I46:AB46) -> 6
B4: Počet sestav lešení na jedno patro: | D4: 3 m | E4: =COUNTIF('stěna A'!I44:AB44,Data_podpora!B29)+COUNTIF('stěna B'!I44:AB44,Data_podpora!B29)+COUNTIF('stěna C'!I44:AB44,Data_podpora!B29)+COUNTIF('stěna D'!I44:AB44,Data_podpora!B29)+COUNTIF('stěna E'!I44:AB44,Data_podpora!B29)+COUNTIF('stěna F'!I44:AB44,Data_podpora!B29)+COUNTIF('stěna G'!I44:AB44,Data_podpora!B29)+COUNTIF('stěna H'!I44:AB44,Data_podpora!B29) -> 42
D5: 2 m | E5: =COUNTIF('stěna A'!I44:AB44,Data_podpora!B28)+COUNTIF('stěna B'!I44:AB44,Data_podpora!B28)+COUNTIF('stěna C'!I44:AB44,Data_podpora!B28)+COUNTIF('stěna D'!I44:AB44,Data_podpora!B28)+COUNTIF('stěna E'!I44:AB44,Data_podpora!B28)+COUNTIF('stěna F'!I44:AB44,Data_podpora!B28)+COUNTIF('stěna G'!I44:AB44,Data_podpora!B28)+COUNTIF('stěna H'!I44:AB44,Data_podpora!B28) -> 1
B7: CELKOVÝ NAKLÁDACÍ LIST ZAKÁZKY: | G7: VYTÍŽENOST ODVOZNÍHO PROSTŘEDKU: | L7: pro navezení lešení bez uvažování postupu výstavby, orientace podle hmotnosti všeho
B8: Celková plocha lešení: | C8: ='stěna A'!Y3+'stěna B'!Y3+'stěna C'!Y3+'stěna D'!Y3+'stěna E'!Y3+'stěna F'!Y3+'stěna G'!Y3+'stěna H'!Y3 -> 1593 | E8: [m2] | G8: [kg] | H8: 1. cesta | J8: =IF(I10+I11<=H10,"Naložit AUTO","") ->  | L8: 2. cesta | N8: =IF(M10+M11<=L10,"Naložit AUTO","") ->  | P8: 3. cesta | R8: =IF(Q10+Q11<=P10,"Naložit AUTO","") ->  | T8: 4. cesta | U8: =IF(U10+U11=0,"Žádný náklad","") ->  | V8: =IF(U10+U11<=T10,"Naložit AUTO","") -> Naložit AUTO
A9: Auto/Závěs | B9: Komponenta | C9: počet kusů [ks] | D9: jednotková hmotnost [kg/ks] | E9: hmotnost [kg] | H9: KAPACITA | I9: ZBÝVÁ | J9: VYUŽITO | K9: VOLNO | L9: KAPACITA | M9: ZBÝVÁ | N9: VYUŽITO | O9: VOLNO | P9: KAPACITA | Q9: ZBÝVÁ | R9: VYUŽITO | S9: VOLNO | T9: KAPACITA | U9: ZBÝVÁ | V9: VYUŽITO | W9: VOLNO
G10: AUTO | H10: 2500 | I10: =IF(E36<=H10,SUM(E11:E34),SUM(E11:E14,E31:E34,E20:E28,E18/2,E19/2)) -> 7550.85 | J10: =IF(I10<=H10,I10,H10) -> 2500 | K10: =IF((H10-J10)<=0,0,H10-J10) -> 0 | L10: 2500 | M10: =IF(I10-J10<=0,0,(I10-J10)) -> 5050.85 | N10: =IF(M10<=L10,L10-M10,L10) -> 2500 | O10: =IF((L10-M10)<=0,0,L10-M10) -> 0 | P10: 2500 | Q10: =IF(M10-N10<=0,0,(M10-N10)) -> 2550.85 | R10: =IF(Q10<=P10,Q10,P10) -> 2500 | S10: =IF((P10-Q10)<=0,0,P10-Q10) -> 0 | T10: 2500 | U10: =IF(Q10-R10<=0,0,(Q10-R10)) -> 50.85 | V10: =IF(U10<=T10,U10,T10) -> 50.85 | W10: =IF((T10-U10)<=0,0,T10-U10) -> 2449.15
A11: A | B11: stavitelná patka 0,5m | C11: ='stěna A'!X6+'stěna B'!X6+'stěna C'!X6+'stěna D'!X6+'stěna E'!X6+'stěna F'!X6+'stěna G'!X6+'stěna H'!X6 -> 102 | D11: 3.1 | E11: =D11*C11 -> 316.2 | G11: ZÁVĚS | H11: 3500 | I11: =IF(E36<=H10,0,SUM(E15:E17,E29:E30,E18/2,E19/2)) -> 12054.25 | J11: =IF(I11<=H11,I11,H11) -> 3500 | K11: =IF((H11-J11)<=0,0,H11-J11) -> 0 | L11: 3500 | M11: =IF(I11-J11<=0,0,(I11-J11)) -> 8554.25 | N11: =IF(M11<=L11,M11,L11) -> 3500 | O11: =IF((L11-N11)<=0,0,L11-N11) -> 0 | P11: 3500 | Q11: =IF(M11-N11<=0,0,(M11-N11)) -> 5054.25 | R11: =IF(Q11<=P11,Q11,P11) -> 3500 | S11: =IF((P11-R11)<=0,0,P11-R11) -> 0 | T11: 3500 | U11: =IF(Q11-R11<=0,0,(Q11-R11)) -> 1554.25 | V11: =IF(U11<=T11,U11,T11) -> 1554.25 | W11: =IF((T11-V11)<=0,0,T11-V11) -> 1945.75
A12: A | B12: stavitelná patka 1m | C12: ='stěna A'!X7+'stěna B'!X7+'stěna C'!X7+'stěna D'!X7+'stěna E'!X7+'stěna F'!X7+'stěna G'!X7+'stěna H'!X7 -> 0 | D12: 4.7 | E12: =D12*C12 -> 0
A13: A | B13: rám 2 m | C13: ='stěna A'!X8+'stěna B'!X8+'stěna C'!X8+'stěna D'!X8+'stěna E'!X8+'stěna F'!X8+'stěna G'!X8+'stěna H'!X8 -> 261 | D13: 16.5 | E13: =D13*C13 -> 4306.5
A14: A | B14: rám 1 m | C14: ='stěna A'!X9+'stěna B'!X9+'stěna C'!X9+'stěna D'!X9+'stěna E'!X9+'stěna F'!X9+'stěna G'!X9+'stěna H'!X9 -> 1 | D14: 11.3 | E14: 11.3
A15: Z | B15: podlaha 3 m | C15: =('stěna A'!X10+'stěna B'!X10+'stěna C'!X10+'stěna D'!X10+'stěna E'!X10+'stěna F'!X10+'stěna G'!X10+'stěna H'!X10)+(('stěna A'!X12+'stěna B'!X12+'stěna C'!X12+'stěna E'!X12+'stěna D'!X12+'stěna F'!X12+'stěna G'!X12+'stěna H'!X12)-C17)*2 -> 394 | D15: 22 | E15: 8668
A16: Z | B16: podlaha 2 m | C16: ='stěna A'!X11+'stěna B'!X11+'stěna C'!X11+'stěna D'!X11+'stěna E'!X11+'stěna F'!X11+'stěna G'!X11+'stěna H'!X11 -> 10 | D16: 14.5 | E16: 145
A17: Z | B17: průlezová podlaha 3 m | C17: =MAX('stěna A'!I46:AB46,'stěna B'!I46:AB46,'stěna C'!I46:AB46,'stěna D'!I46:AB46,'stěna E'!I46:AB46,'stěna F'!I46:AB46,'stěna G'!I46:AB46,'stěna H'!I46:AB46)*ROUNDUP(COUNT(Půdorys!C5:C15)/3,0) -> 18 | D17: 28 | E17: 504
A18: A/Z | B18: zábradlí 3 m | C18: ='stěna A'!X13+'stěna B'!X13+'stěna C'!X13+'stěna D'!X13+'stěna E'!X13+'stěna F'!X13+'stěna G'!X13+'stěna H'!X13 -> 472 | D18: 5.5 | E18: 2596
A19: A/Z | B19: zábradlí 2 m | C19: ='stěna A'!X14+'stěna B'!X14+'stěna C'!X14+'stěna D'!X14+'stěna E'!X14+'stěna F'!X14+'stěna G'!X14+'stěna H'!X14 -> 11 | D19: 3.5 | E19: 38.5
A20: A | B20: diagonální úchyt | C20: ='stěna A'!X15+'stěna B'!X15+'stěna C'!X15+'stěna D'!X15+'stěna E'!X15+'stěna F'!X15+'stěna G'!X15+'stěna H'!X15 -> 12 | D20: 0.5 | E20: 6
A21: A | B21: diagonála 3 m | C21: ='stěna A'!X16+'stěna B'!X16+'stěna C'!X16+'stěna D'!X16+'stěna E'!X16+'stěna F'!X16+'stěna G'!X16+'stěna H'!X16 -> 62 | D21: 11 | E21: 682
A22: A | B22: diagonála 2 m | C22: ='stěna A'!X17+'stěna B'!X17+'stěna C'!X17+'stěna D'!X17+'stěna E'!X17+'stěna F'!X17+'stěna G'!X17+'stěna H'!X17 -> 0 | D22: 8 | E22: 0
A23: A | B23: kotva 0,5 m | C23: ='stěna A'!X18+'stěna B'!X18+'stěna C'!X18+'stěna D'!X18+'stěna E'!X18+'stěna F'!X18+'stěna G'!X18+'stěna H'!X18 -> 120 | D23: 2 | E23: 240
A24: A | B24: kotva dlouhá 1 m | C24: ='stěna A'!X19+'stěna B'!X19+'stěna C'!X19+'stěna D'!X19+'stěna E'!X19+'stěna F'!X19+'stěna G'!X19+'stěna H'!X19 -> 0 | D24: 3.8 | E24: 0
A25: A | B25: eLko / sloupek | C25: ='stěna A'!X20+'stěna B'!X20+'stěna C'!X20+'stěna D'!X20+'stěna E'!X20+'stěna F'!X20+'stěna G'!X20+'stěna H'!X20 -> 47 | D25: 5 | E25: 235
A26: A | B26: eLko 2 m | C26: ='stěna A'!X21+'stěna B'!X21+'stěna C'!X21+'stěna D'!X21+'stěna E'!X21+'stěna F'!X21+'stěna G'!X21+'stěna H'!X21 -> 0 | D26: 11.5 | E26: 0
A27: A | B27: Háčko | C27: ='stěna A'!X22+'stěna B'!X22+'stěna C'!X22+'stěna D'!X22+'stěna E'!X22+'stěna F'!X22+'stěna G'!X22+'stěna H'!X22 -> 4 | D27: 9.7 | E27: 38.8
A28: A | B28: boční zábradlí | C28: =('stěna A'!X23+'stěna B'!X23+'stěna C'!X23+'stěna D'!X23+'stěna E'!X23+'stěna F'!X23+'stěna G'!X23+'stěna H'!X23)/2 -> 48 | D28: 3 | E28: 144
A29: Z | B29: okopové prkno 3 m | C29: ='stěna A'!X24+'stěna B'!X24+'stěna C'!X24+'stěna D'!X24+'stěna E'!X24+'stěna F'!X24+'stěna G'!X24+'stěna H'!X24 -> 215 | D29: 6.5 | E29: 1397.5
A30: Z | B30: okopové prkno 2 m | C30: ='stěna A'!X25+'stěna B'!X25+'stěna C'!X25+'stěna D'!X25+'stěna E'!X25+'stěna F'!X25+'stěna G'!X25+'stěna H'!X25 -> 5 | D30: 4.5 | E30: 22.5
A31: A | B31: konzola | C31: ='stěna A'!X26+'stěna B'!X26+'stěna C'!X26+'stěna D'!X26+'stěna E'!X26+'stěna F'!X26+'stěna G'!X26+'stěna H'!X26 -> 0 | D31: 10 | E31: 0
A32: A | B32: pevná spojka | C32: =('stěna A'!X27+'stěna B'!X27+'stěna C'!X27+'stěna D'!X27+'stěna E'!X27+'stěna F'!X27+'stěna G'!X27+'stěna H'!X27)*1.3 -> 104 | D32: 1.15 | E32: 119.6
A33: A | B33: otočná spojka | C33: =('stěna A'!X28+'stěna B'!X28+'stěna C'!X28+'stěna D'!X28+'stěna E'!X28+'stěna F'!X28+'stěna G'!X28+'stěna H'!X28)*1.3 -> 52 | D33: 1.35 | E33: 70.2
A34: A | B34: závlačná spojka | C34: =('stěna A'!X29+'stěna B'!X29+'stěna C'!X29+'stěna D'!X29+'stěna E'!X29+'stěna F'!X29+'stěna G'!X29+'stěna H'!X29) -> 80 | D34: 0.8 | E34: 64
A35: A | B35: spojovací trubka 0,5 m | C35: =SUM('stěna A'!J46,'stěna B'!J46,'stěna C'!$J$46,'stěna D'!$J$46,'stěna E'!$J$46,'stěna F'!$J$46,'stěna G'!$J$46,'stěna H'!$J$46) -> 40 | D35: 2 | E35: 80
B36: CELKOVÁ HMOTNOST [kg] | E36: =SUM(E11:E35) -> 19685.1
B41: NASTAVITELNÝ NAKLÁDACÍ LIST ZAKÁZKY: | F41: zohlednění nejen hmotnosti, ale i postupu výstavby
A42: Auto/Závěs | B42: =B9 -> Komponenta | C42: =C9 -> počet kusů [ks] | D42: 1. cesta | F42: 2. cesta | H42: 3. cesta | J42: 4. cesta | L42: ZBÝVÁ | N42: Časový výpočet: | P42: Montáž | Q42: Demontáž
D43: POČET [ks] | E43: HMOTNOST [kg] | F43: POČET [ks] | G43: HMOTNOST [kg] | H43: POČET [ks] | I43: HMOTNOST [kg] | J43: POČET [ks] | K43: HMOTNOST [kg] | N43: Počet pracovníků: | P43: 6 | Q43: 2
A44: A | B44: stavitelná patka 0,5m | C44: =C11 -> 102 | D44: 102 | E44: =D11*D44 -> 316.2 | F44: 0 | G44: =D11*F44 -> 0 | I44: =D11*H44 -> 0 | K44: =D11*J44 -> 0 | L44: =C11-SUM(D44,F44,H44,J44) -> 0 | N44: Koeficient počtu pater: | P44: =VLOOKUP($C$3,List1!$O$11:$P$21,2) -> 1.5 | Q44: =VLOOKUP($C$3,List1!$O$11:$P$21,2) -> 1.5
A45: A | B45: stavitelná patka 1m | C45: 0 | E45: 0 | G45: 0 | I45: 0 | K45: 0 | L45: 0 | N45: Přibližná doba trvání [h]: | P45: =($C$8/List1!$F$9/$P$43)*P44 -> 34.78868795 | Q45: =$C$8/List1!K9/$P$43 -> 10.42266422
A46: A | B46: rám 2m | C46: 261 | D46: 92 | E46: 1518 | F46: 92 | G46: 1518 | H46: 74 | I46: 1221 | K46: 0 | L46: 3
A47: A | B47: rám 1m | C47: 1 | E47: 0 | G47: 0 | I47: 0 | K47: 0 | L47: 1
A48: Z | B48: podlaha 3m | C48: 394 | D48: 90 | E48: 1980 | F48: 100 | G48: 2200 | H48: 100 | I48: 2200 | J48: 96 | K48: 2112 | L48: 8
A49: Z | B49: podlaha 2m | C49: 10 | D49: 8 | E49: 116 | F49: 2 | G49: 29 | I49: 0 | K49: 0 | L49: 0
A50: Z | B50: průlezová podlaha 3m | C50: 18 | D50: 6 | E50: 168 | F50: 6 | G50: 168 | H50: 6 | I50: 168 | K50: 0 | L50: 0
A51: A/Z | B51: zábradlí 3m | C51: 472 | D51: 150 | E51: 825 | F51: 150 | G51: 825 | H51: 150 | I51: 825 | J51: 14 | K51: 77 | L51: 8
A52: A/Z | B52: zábradlí 2m | C52: 11 | D52: 6 | E52: 21 | F52: 5 | G52: 17.5 | I52: 0 | K52: 0 | L52: 0
A53: A | B53: diagonální úchyt | C53: 12 | D53: 12 | E53: 6 | G53: 0 | I53: 0 | K53: 0 | L53: 0
A54: A | B54: diagonála 3m | C54: 62 | D54: 20 | E54: 220 | F54: 20 | G54: 220 | H54: 22 | I54: 242 | K54: 0 | L54: 0
A55: A | B55: diagonála 2m | C55: 0 | E55: 0 | G55: 0 | I55: 0 | K55: 0 | L55: 0
A56: A | B56: kotva 0,5 m | C56: 120 | D56: 30 | E56: 60 | F56: 50 | G56: 100 | H56: 39 | I56: 78 | K56: 0 | L56: 1
A57: A | B57: kotva dlouhá 1 m | C57: 0 | E57: 0 | G57: 0 | I57: 0 | K57: 0 | L57: 0
A58: A | B58: eLko / sloupek | C58: 47 | E58: 0 | G58: 0 | H58: 47 | I58: 235 | K58: 0 | L58: 0
A59: A | B59: eLko 2 m | C59: 0 | E59: 0 | G59: 0 | I59: 0 | K59: 0 | L59: 0
A60: A | B60: Háčko | C60: 4 | E60: 0 | G60: 0 | H60: 4 | I60: 38.8 | K60: 0 | L60: 0
A61: A | B61: boční zábradlí | C61: 48 | D61: 10 | E61: 30 | F61: 20 | G61: 60 | H61: 10 | I61: 30 | J61: 8 | K61: 24 | L61: 0
A62: Z | B62: okopové prkno 3m | C62: 215 | D62: 50 | E62: 325 | F62: 50 | G62: 325 | H62: 40 | I62: 260 | J62: 71 | K62: 461.5 | L62: 4
A63: Z | B63: okopové prkno 2m | C63: 5 | D63: 5 | E63: 22.5 | F63: 0 | G63: 0 | I63: 0 | K63: 0 | L63: 0
A64: A | B64: konzola | C64: 0 | E64: 0 | G64: 0 | I64: 0 | K64: 0 | L64: 0
A65: A | B65: pevná spojka | C65: 104 | D65: 40 | E65: 46 | F65: 30 | G65: 34.5 | H65: 34 | I65: 39.1 | K65: 0 | L65: 0
A66: A | B66: otočná spojka | C66: 52 | D66: 20 | E66: 27 | F66: 20 | G66: 27 | H66: 12 | I66: 16.2 | K66: 0 | L66: 0
A67: A | B67: závlačná spojka | C67: 80 | D67: 20 | E67: 16 | F67: 20 | G67: 16 | H67: 20 | I67: 16 | J67: 20 | K67: 16 | L67: 0
A68: A | B68: spojovací trubka 0,5 m | C68: 40 | D68: 10 | E68: 20 | F68: 10 | G68: 20 | H68: 10 | I68: 20 | J68: 10 | K68: 20 | L68: 0
B69: HMOTNOST CELKEM [kg] | C69: =E69+G69+I69+K69 -> 19376.3 | E69: =SUM(E44:E68) -> 5716.7 | G69: =SUM(G44:G68) -> 5560 | I69: =SUM(I44:I68) -> 5389.1 | K69: =SUM(K44:K68) -> 2710.5
B71: VYTÍŽENOST ODVOZNÍHO PROSTŘEDKU: | F71: pro navezení lešení dle potřeby postupu výstavby
B72: [kg] | C72: 1. cesta | E72: =IF(D74+D75<=C74,"Naložit AUTO","") ->  | G72: 2. cesta | I72: =IF(H74+H75<=G74,"Naložit AUTO","") ->  | K72: 3. cesta | M72: =IF(L74+L75<=K74,"Naložit AUTO","") ->  | O72: 4. cesta | Q72: =IF(P74+P75<=O74,"Naložit AUTO","") -> 
C73: KAPACITA | D73: ZBÝVÁ | E73: VYUŽITO | F73: VOLNO | G73: KAPACITA | H73: ZBÝVÁ | I73: VYUŽITO | J73: VOLNO | K73: KAPACITA | L73: ZBÝVÁ | M73: VYUŽITO | N73: VOLNO | O73: KAPACITA | P73: ZBÝVÁ | Q73: VYUŽITO | R73: VOLNO
B74: AUTO | C74: 2500 | D74: =IF(E36<=C74,SUM(E44:E68),SUM(E44:E68)-E48-E49-E50-E62-E63-E51) -> 2280.2 | E74: =IF(D74<=C74,D74,C74) -> 2280.2 | F74: =IF((C74-E74)<=0,0,C74-E74) -> 219.8 | G74: 2500 | H74: =IF(G69<=G74,SUM(G44:G68),SUM(G44:G68)-G48-G49-G50-G62-G63-G51/2) -> 2425.5 | I74: =IF(H74<=G74,H74,G74) -> 2425.5 | J74: =IF((G74-I74)<=0,0,G74-I74) -> 74.5 | K74: 2500 | L74: =IF(I69<=K74,SUM(I44:I68),SUM(I44:I68)-I48-I49-I50-I62-I63-I51) -> 1936.1 | M74: =IF(L74<=K74,L74,K74) -> 1936.1 | N74: =IF((K74-M74)<=0,0,K74-M74) -> 563.9 | O74: 2500 | P74: =IF(K69<=O74,SUM(K44:K68),SUM(K44:K68)-K48-K49-K50-K62-K63-K51) -> 60 | Q74: =IF(P74<=O74,P74,O74) -> 60 | R74: =IF((O74-Q74)<=0,0,O74-Q74) -> 2440
B75: ZÁVĚS | C75: 3500 | D75: =E48+E49+E50+E62+E63+E51 -> 3436.5 | E75: =IF(D75<=C75,D75,C75) -> 3436.5 | F75: =IF((C75-E75)<=0,0,C75-E75) -> 63.5 | G75: 3500 | H75: =G48+G49+G50+G62+G63+G51/2 -> 3134.5 | I75: =IF(H75<=G75,H75,G75) -> 3134.5 | J75: =IF((G75-I75)<=0,0,G75-I75) -> 365.5 | K75: 3500 | L75: =I48+I49+I50+I62+I63+I51 -> 3453 | M75: =IF(L75<=K75,L75,K75) -> 3453 | N75: =IF((K75-M75)<=0,0,K75-M75) -> 47 | O75: 3500 | P75: =K48+K49+K50+K62+K63+K51 -> 2650.5 | Q75: =IF(P75<=O75,P75,O75) -> 2650.5 | R75: =IF((O75-Q75)<=0,0,O75-Q75) -> 849.5

Sheet Předávací protokol
A1: Protokol o předání a převzetí rámového lešení
A3: Předávající
A4: (Zhotovitel) | B4: =VLOOKUP($B$3,Předávací_protokol_data!$A$3:$C$5,2) -> 
B5: =VLOOKUP($B$3,Předávací_protokol_data!$A$3:$C$5,3) -> 
A6: Přebírající
A7: (Objednatel) | B7: =VLOOKUP('Předávací protokol'!$B$6:$H$6,Předávací_protokol_data!$A$7:$C$50,2) -> 
B8: =VLOOKUP('Předávací protokol'!$B$6:$H$6,Předávací_protokol_data!$A$7:$C$50,3) -> 
A10: Specifikace akce | B10: =Nabídka!A7 -> Akce:
A13: Výměra lešení: | B13: =Rekapitulace!C8 -> 1593 | C13: [m2]
A14: Způsob použití lešení: | B14: Pro fasádu
A15: Typ lešení: | B15: S osovou šířkou 0,732 m | D15: Třída únosnosti podlah: | F15: 3 (2,00 kN/m2)
A16: Použití sítě: | B16: Ne | D16: Výměra sítě: | G16: [m2]
A19: komponenta | B19: počet kusů
A20: stavitelná patka 0,5 m | B20: =Rekapitulace!C11 -> 102
A21: stavitelná patka 1 m | B21: =Rekapitulace!C12 -> 0
A22: rám 2 m | B22: =Rekapitulace!C13 -> 261
A23: rám 1 m | B23: =Rekapitulace!C14 -> 1
A24: podlážka 3 m | B24: =Rekapitulace!C15 -> 394
A25: podlážka 2 m | B25: =Rekapitulace!C16 -> 10
A26: průlezová podlážka 3 m | B26: =Rekapitulace!C17 -> 18
A27: zábradlí 3 m | B27: =Rekapitulace!C18 -> 472
A28: zábradlí 2 m | B28: =Rekapitulace!C19 -> 11
A29: diagonální úchyt | B29: =Rekapitulace!C20 -> 12
A30: diagonála 3 m | B30: =Rekapitulace!C21 -> 62
A31: diagonála 2 m | B31: =Rekapitulace!C22 -> 0
A32: kotva 0,5 m | B32: =Rekapitulace!C23 -> 120
A33: kotva dlouhá 1 m | B33: =Rekapitulace!C24 -> 0
A34: eLko / sloupek | B34: =Rekapitulace!C25 -> 47
A35: eLko 2 m | B35: =Rekapitulace!C26 -> 0
A36: Háčko | B36: =Rekapitulace!C27 -> 4
A37: boční zábradlí | B37: =Rekapitulace!C28 -> 48
A38: okopové prkno 3 m | B38: =Rekapitulace!C29 -> 215
A39: okopové prkno 2 m | B39: =Rekapitulace!C30 -> 5
A40: konzola | B40: =Rekapitulace!C31 -> 0
A41: pevna spojka | B41: =Rekapitulace!C32 -> 104
A42: otočná spojka | B42: =Rekapitulace!C33 -> 52
A43: závlačná spojka | B43: =Rekapitulace!C34 -> 80
A44: spojovací trubka 0,5 m | B44: =Rekapitulace!C35 -> 40
A47: Tento Protokol o předání a převzetí byl vyhotoven dle Článku III. odst. 3. Obchodních podmínek společnosti Jasico s.r.o. - přeprava, montáž a nájem lešení. Přebírající podpisem tohoto Protokolu o předání a převzetí výslovně potvrzuje, že od Předávajícího převzal lešení řádně provedené dle jeho požadavků uvedených v cenové nabídce (rozpočtu) Zhotovitele a Objednávce Objednatele a v souladu s požadavky normy ČSN 73 8101:2005.
A53: V…………………………………………………………. | C53: dne | D53: =TODAY() -> 2017-05-21
B57: ……………………………………… | E57: ……………………………………………
B58: =B3 -> 0 | E58: =B6 -> 0
B59: =A3 -> Předávající | E59: =A6 -> Přebírající

Sheet Faktura
A1: FAKTURA – daňový doklad | C1: =_xlfn.CONCAT("Akce: ",Nabídka!A7) -> Akce: Akce: | E1: Číslo: | F1: =TODAY() -> 2017-05-21 | G1: 01
A2: Dodavatel: | D2: Odběratel:
A3: Jasico s.r.o. | B3: www.jasico.cz
A4: E.Beneše 609/7 | B4: info@jasico.cz | E4: =VLOOKUP($E$3,Předávací_protokol_data!$A$7:$C$50,3) -> 
A5: 370 06 České Budějovice | B5: 733544047
A7: IČO: 281 49 483 | B7: DIČ: CZ 281 49 483 | D7: IČO: | E7: =VLOOKUP($E$3,Předávací_protokol_data!$A$7:$C$50,2) -> 
A8: zapsána KS v Českých Budějovicích, oddíl C,vložka 21483 | D8: DIČ: | E8: =_xlfn.CONCAT("CZ ",VLOOKUP($E$3,Předávací_protokol_data!$A$7:$C$50,2)) -> 
A9: Bankovní spojení: | B9: Komerční banka | D9: Datum vystavení: | F9: =TODAY() -> 2017-05-21
A10: Číslo účtu: | B10: 107-4158640217/0100 | D10: Datum uskutečnění zdaň. plnění: | F10: =F9 -> 2017-05-21
D11: Datum splatnosti: | F11: =F9+14 -> 2017-06-04
D12: Forma úhrady: | F12: převodem
A13: Označení dodávky | C13: množství | D13: mj | E13: cena za mj bez DPH | F13: cena bez DPH
A14: Montáž lešení | C14: =Rekapitulace!C8 -> 1593 | D14: m2 | E14: 0 | F14: =C14*E14 -> 0
A15: Pronájem lešení | C15: =Rekapitulace!C8 -> 1593 | D15: m2 | E15: 0 | F15: =C15*E15 -> 0
A16: Doprava | C16: 1 | D16: kpl | E16: 0 | F16: =C16*E16 -> 0
A45: Podle § 92e zákona č. 235/2004 Sb., o dani z přidané hodnoty. Daň odvede zákazník.
C46: DPH 21% | D46: =F48*0.21 -> 0
A48: Vystavil: | E48: Celkem cena bez DPH | F48: =SUM(F14:F44) -> 0
E49: DPH 21% | F49: 0
E51: Celkem k úhradě CZK | F51: =F48+F49 -> 0
A53: 0,5

Sheet Data_podpora
A1: Použití | B1: Data | C1: Vysvětlivky
A2: půdorys - načtrnout jako… | B2: vodorovná zleva doprava | C2: →
B3: vodorovná zprava doleva | C3: ←
B4: svislá zdora nahoru | C4: ↑
B5: svislá shora dolu | C5: ↓
A8: tvar střechy | B8: sedlová
B9: valbová
B10: polovalbová
A13: Přesah za roh | B13: Ne | C13: v případě neprovázaného lešení (volně stojící lešení)
B14: Nepřesahuje (+0,5 m) | C14: přičte +0,5 m z důvodu případného propojení lešeení
B15: Zleva +1 m
B16: Zprava +1 m
B17: Zleva +1 m | Zprava +1 m
B18: Napojení zprava + 0,25 m
B19: Napojení zleva + 0,25 m
B20: Napojení zprava i zleva
A22: Pro střechu | B22: Střechu
B23: Fasádu
A24: Výška zábradlí posledního patra [m] | B24: 1
B25: 2
A27: délka sestavy | B27: 0
B28: 2
B29: 3
A30: Předsazená konstrukce | B30: Ano
B31: Ne
A32: Auto/Závěs | B32: A
B33: A/Z
B34: Z

Sheet Předávací_protokol_data
A1: Protokol o předání a převzetí rámového lešení | J1: použití sítě: | K1: Ano
A2: Předávající | B2: IČ | C2: sídlo | K2: Ne
A3: Jasico s.r.o. | B3: IČ: 28149483 | C3: se sídlem J. Jindřicha 1550/4, 370 06 České Budějovice | J3: Třída únosnosti podlah | K3: 1 (0,75 kN/m2)
K4: 2 (1,50 kN/m2)
K5: 3 (2,00 kN/m2)
A6: Přebírající | B6: IČ | C6: sídlo | D6: DIČ | K6: 4 (3,00 kN/m2)
A7: a | B7: 10 | C7: aa | K7: 5 (4,50 kN/m2)
A8: b | B8: 20 | C8: bb | K8: 6 (6,00 kN/m2)
A9: c | B9: 33 | C9: cc
A10: d | B10: 15 | C10: dd | J10: Použití lešení: | K10: Pro fasádu
A11: e | B11: 16 | C11: ee | K11: Pro střechu
A12: f | B12: 18 | C12: ff
A13: g | B13: 11 | C13: gg
A14: h | B14: 2 | C14: hh
A15: i | B15: 66 | C15: ii | J15: Kde: | K15: V……………………………………………………
A16: j | B16: 10 | C16: jj | K16: V Českých Budějovicích
A17: k | B17: 11 | C17: kk | K17: V Českém Krumlově
A18: l | B18: 12 | C18: ll
A19: m | B19: 13 | C19: mm | J19: Typ lešení: | K19: S osovou šířkou 0,739 m
A20: n | B20: 14 | C20: nn | K20: S osovou šířkou 0,732 m
A21: o | B21: 15 | C21: oo | K21: S osovou šířkou 0,65 m
A22: p | B22: 16 | C22: pp | K22: Jiné
A23: q | B23: 17 | C23: qq
A24: r | B24: 18 | C24: rr
A25: s | B25: 19 | C25: ss

Sheet List1
A1: Mediální hrubá měsíční mzda lešenáře (data -www.platy.cz) | F1: 21286 | G1: Kč
A2: hrubý počet měsíčně odpracovaných hodin lešenáře | F2: 160 | G2: h
A3: hrubá hodinová mzda lešenáře | F3: =F1/F2 -> 133.0375 | G3: Kč/h
A7: Evidence práce na lešení | B7: Montáž | I7: Demontáž
A8: Akce/ Projekt | B8: Výměra lešení [m2] | C8: Max počet pater lešení | D8: Počet pracovníků | E8: Doba práce [h] | F8: Počet postavených m2 za 1 hodinu na jednoho lešenáře | G8: Cena práce lešenářů [Kč] | H8: Cena práce lešenářů za 1 m2 lešení [Kč/m2] | I8: Počet pracovníků | J8: Doba práce [h] | K8: Počet zbouraných m2 za 1 hodinu na jednoho lešenáře | L8: Cena práce lešenářů [Kč] | M8: Cena práce lešenářů za 1 m2 lešení [Kč/m2]
A9: Součty / Průměry | F9: =AVERAGE(F10:F81) -> 11.44768669 | H9: =AVERAGE(H10:H257) -> 13.52390797 | K9: =AVERAGE(K10:K81) -> 25.47333333 | M9: =AVERAGE(M10:M257) -> 5.552129111 | O9: Koeficient počtu pater
A10: ČK - Panská | B10: 250 | C10: 3 | D10: 4 | E10: 5.5 | F10: =B10/D10/E10 -> 11.36363636 | G10: =D10*E10*$F$3 -> 2926.825 | H10: =G10/B10 -> 11.7073 | I10: 5 | J10: 1.5 | K10: =B10/I10/J10 -> 33.33333333 | L10: =I10*J10*$F$3 -> 997.78125 | M10: =L10/B10 -> 3.991125 | O10: patro | P10: koeficient
A11: Freyung KozenyBau | B11: 330 | C11: 3 | D11: 3 | E11: 7 | F11: =B11/D11/E11 -> 15.71428571 | G11: 2793.7875 | H11: 8.466022727 | L11: 0 | O11: 1 | P11: 1
A12: ČB - Kanaloš | B12: 312 | C12: 8 | D12: 5 | E12: 7 | F12: 8.914285714 | G12: 4656.3125 | H12: 14.92407853 | I12: 5 | J12: 2 | K12: =B12/I12/J12 -> 31.2 | L12: 1330.375 | M12: =L12/B12 -> 4.264022436 | O12: 2 | P12: 1.1
A13: ČK - Čičeli | B13: 60 | C13: 2 | D13: 3 | E13: 4 | F13: 5 | G13: 1596.45 | H13: 26.6075 | I13: 3 | J13: 1 | K13: =B13/I13/J13 -> 20 | L13: 399.1125 | M13: =L13/B13 -> 6.651875 | O13: 3 | P13: 1.2
A14: ČK - Čičeli - předek | B14: =3*5*6+3*4+3 -> 105 | C14: 3 | D14: 3 | E14: 4 | F14: 8.75 | G14: 1596.45 | H14: 15.20428571 | I14: 3 | J14: 2 | K14: 17.5 | L14: 798.225 | M14: 7.602142857 | O14: 4 | P14: 1.3
A15: ČB - Bobeš | B15: =76*4 -> 304 | C15: 1 | D15: 4 | E15: 4 | F15: 19 | G15: 2128.6 | H15: 7.001973684 | I15: 4 | J15: 3 | K15: =B15/I15/J15 -> 25.33333333 | L15: 1596.45 | M15: =L15/B15 -> 5.251480263 | O15: 5 | P15: 1.4
A16: Adamov RD | B16: =21*4+6*13+8+5*12+9*6+3+10*3+8*6 -> 365 | C16: 2 | D16: 5 | E16: 8 | F16: 9.125 | G16: 5321.5 | H16: 14.57945205 | O16: 6 | P16: 1.5
A17: Waldkirchen_Rosenium_1P | C17: 1 | D17: 5 | E17: 8 | G17: 5321.5 | O17: 7 | P17: 1.6
A18: Sedlec PKK | B18: 480 | C18: 4 | D18: 5 | E18: 7 | F18: 13.71428571 | G18: 4656.3125 | H18: 9.700651042 | O18: 8 | P18: 1.7
A19: Kreuzberg_1P | C19: 1 | D19: 5 | E19: 3 | G19: 1995.5625 | O19: 9 | P19: 1.8
O20: 10 | P20: 1.9
O21: 11 | P21: 2
